Workbook

Sheet 1. Info
AB1: Algoma Power Inc.
AB2: Atikokan Hydro Inc.
AB3: Attawapiskat Power Corporation
AB4: Bluewater Power Distribution Corp.
AB5: Brant County Power
AB6: Brantford Power Inc.
AB7: Burlington Hydro Inc.
AB8: Cambridge and North Dumfries Hydro
AB9: Canadian Niagara Power Inc. – Eastern Ontario Power/Fort Erie/Port Colborne
AB10: Centre Wellington Hydro Ltd.
AB11: Chapleau Public Utilities Corporation
AB12: COLLUS Power Corp.
AB13: Cooperative Hydro Embrun Inc.
AB14: E.L.K. Energy Inc.
C15: Utility Name | D15: Brant County Power | AB15: Enersource Hydro Mississauga Inc.
AB16: Entegrus Powerlines Inc.
C17: Service Territory | AB17: ENWIN Utilities Ltd.
AB18: Erie Thames Powerlines Corp.
C19: Assigned EB Number | D19: EB-2013-0113 | AB19: Espanola Regional Hydro Distribution Corporation
AB20: Essex Powerlines Corporation
C21: Name and Title | D21: Ian McKenzie, CFO | AB21: Festival Hydro Inc.
AB22: Fort Albany Power Corporation
C23: Phone Number | D23: 519-442-2215 | AB23: Fort Frances Power Corporation
AB24: Greater Sudbury Hydro Inc.
C25: Email Address | D25: imckenzie@brantcountypower.com | AB25: Grimsby Power Inc.
AB26: Guelph Hydro Electric Systems Inc.
C27: Date | D27: Sept. 12, 2013 | AB27: Haldimand County Hydro Inc.
AB28: Halton Hills Hydro Inc.
C29: Last COS Re-based Year | D29: 2011 | AB29: Hearst Power Distribution Co. Ltd.
AB30: Horizon Utilities Corporation
AB31: Hydro 2000 Inc.
A32: Note: Drop-down lists are shaded blue; Input cells are shaded green. | AB32: Hydro Hawkesbury Inc.
AB33: Hydro One Brampton Networks Inc.
AB34: Hydro One Networks Inc.
AB35: Hydro One Remote Communities Inc.
AB36: Hydro Ottawa Limited
AB37: Innisfil Hydro Dist. Systems Limited
AB38: Kashechewan Power Corporation
AB39: Kenora Hydro Electric Corporation Ltd.
AB40: Kingston Hydro Corporation
AB41: Kitchener-Wilmot Hydro Inc.
AB42: Lakefront Utilities Inc.
AB43: Lakeland Power Distribution Ltd.
AB44: London Hydro Inc.
AB45: Midland Power Utility Corporation
AB46: Milton Hydro Distribution Inc.
AB47: Newmarket – Tay Power Distribution Ltd.
AB48: Niagara Peninsula Energy Inc.
AB49: Niagara-on-the-Lake Hydro Inc.
AB50: Norfolk Power Distribution Ltd.
AB51: North Bay Hydro Distribution Limited
AB52: Northern Ontario Wires Inc.
AB53: Oakville Hydro Distribution Inc.
AB54: Orangeville Hydro Limited
AB55: Orillia Power Distribution Corp.
AB56: Oshawa PUC Networks Inc.
AB57: Ottawa River Power Corporation
AB58: Parry Sound Power Corporation
AB59: Peterborough Distribution Inc.
AB60: PowerStream Inc.
AB61: PUC Distribution Inc.
AB62: Renfrew Hydro Inc.
AB63: Rideau St. Lawrence Distribution Inc.
AB64: St. Thomas Energy Inc.
AB65: Sioux Lookout Hydro Inc.
AB66: Thunder Bay Hydro Electricity Distribution
AB67: Tillsonburg Hydro Inc.
AB68: Toronto Hydro-Electric System Limited
AB69: Veridian Connections Inc.
AB70: Wasaga Distribution Inc.
AB71: Waterloo North Hydro Inc.
AB72: Welland Hydro Electric System Corp.
AB73: Wellington North Power Inc.
AB74: West Coast Huron Energy Inc.
AB75: Westario Power Inc.
AB76: Whitby Hydro Electric Corporation
AB77: Woodstock Hydro Services Inc.

Sheet 2. Table of Contents
D20: 1. Info | I20: 7. Current Wholesale
D22: 2. Table of Contents | I22: 8. Forecast Wholesale
D24: 3. Rate Classes | I24: 9. Adj Network to Current WS
D26: 4. RRR Data | I26: 10. Adj Conn. to Current WS
D28: 5. UTRs and Sub-Transmission | I28: 11. Adj Network to Forecast WS
D30: 6. Historical Wholesale | I30: 12. Adj Conn. to Forecast WS
I32: 13. Final 2013 RTS Rates

Sheet 3. Rate Classes
C13: 1. Select the appropriate rate classes that appear on your most recent Board-Approved Tariff of Rates and Charges. 2. Enter the RTS Network and Connection Rate as it appears on the Tariff of Rates and Charges
C22: Rate Class | H22: Unit | J22: RTSR-Network | M22: RTSR-Connection
C24: Residential | H24: kWh | J24: 0.0059 | M24: 0.0038 | Q24: =IF(OR(ISBLANK(C24), ISERROR(FIND("Choose", C24))=FALSE), 0, 1) -> 1 | R24: ="C" & ROW(C24) -> C24 | S24: =IF(OR(C24="General Service Intermediate Rate Class 1,000 To 4,999 kW (formerly General Service > 50 kW Customers)", C24="General Service Intermediate Rate Class 1,000 To 4,999 kW (formerly Large Use Customers)"), "x", "") ->  | AB24: Choose Rate Class
C25: General Service Less Than 50 kW | H25: kWh | J25: 0.0055 | M25: 0.0034 | Q25: 1 | R25: C25 | S25: =IF(OR(C25="General Service Intermediate Rate Class 1,000 To 4,999 kW (formerly General Service > 50 kW Customers)", C25="General Service Intermediate Rate Class 1,000 To 4,999 kW (formerly Large Use Customers)"), "x", "") ->  | AB25: Residential
C26: General Service 50 to 4,999 kW | H26: kW | J26: 2.189 | M26: 1.3815 | Q26: 1 | R26: C26 | AB26: Residential Regular
C27: General Service 50 to 999 kW - Interval Metered | H27: kW | J27: 2.3221 | M27: 1.5267 | Q27: 1 | R27: C27 | AB27: Residential Urban
C28: General Service 1,000 to 4,999 kW - Interval Meters | H28: kW | J28: 2.3248 | M28: 1.5144 | Q28: 1 | R28: C28 | AB28: Residential Urban Year-Round
C29: Unmetered Scattered Load | H29: kWh | J29: 0.0055 | M29: 0.0034 | Q29: 1 | R29: C29 | AB29: Residential Suburban
C30: Sentinel Lighting | H30: kW | J30: 1.6137 | M30: 1.1163 | Q30: 1 | R30: C30 | AB30: Residential Suburban Seasonal
C31: Street Lighting | H31: kW | J31: 1.6511 | M31: 1.0678 | Q31: 1 | R31: C31 | AB31: Residential Suburban Year Round
C32: Choose Rate Class | Q32: 0 | R32: C32 | AB32: Residential - Time of Use
C33: Choose Rate Class | Q33: 0 | R33: C33 | AB33: Residential - Hensall
C34: Choose Rate Class | Q34: 0 | R34: C34 | AB34: Residential – High Density [R1]
C35: Choose Rate Class | Q35: 0 | R35: C35 | AB35: Residential – Normal Density [R2]
C36: Choose Rate Class | Q36: 0 | R36: C36 | AB36: Seasonal Residential – High Density [R3]
C37: Choose Rate Class | Q37: 0 | R37: C37 | AB37: Seasonal Residential – Normal Density [R4]
C38: Choose Rate Class | Q38: 0 | R38: C38 | AB38: Residential – Urban [UR]
C39: Choose Rate Class | Q39: 0 | R39: C39
C40: Choose Rate Class | Q40: 0 | R40: C40 | AB40: General Service Less Than 50 kW
C41: Choose Rate Class | Q41: 0 | R41: C41 | AB41: General Service Less Than 50 kW – Single Phase energy-billed [G1]
C42: Choose Rate Class | Q42: 0 | R42: C42 | AB42: General Service Less Than 50 kW – Three Phase energy-billed [G3]
C43: Choose Rate Class | Q43: 0 | R43: C43 | AB43: General Service Less Than 50 kW – Transmission Class energy-billed [T]
C44: Choose Rate Class | Q44: 0 | R44: C44 | AB44: General Service Less Than 50 kW – Urban energy-billed [UG]
C45: Choose Rate Class | Q45: 0 | R45: C45 | AB45: Westport Sewage Treatment Plant
S46: =COUNTIF(S24:S45, "x") -> 0 | AB46: Small Commercial and USL - per meter
AB47: Small Commercial and USL - per connection
AB48: Farms – Single Phase energy-billed [F1]
AB50: General Service 50 to 499 kW
AB51: General Service 50 to 699 kW
AB52: General Service 50 to 999 kW
AB53: General Service 50 to 999 kW - Interval Metered
AB54: General Service 50 to 1,000 kW
AB55: General Service 50 to 1,000 kW - Interval Meters
AB56: General Service 50 to 1,000 kW - Non Interval Meters
AB57: General Service 50 to 1,499 kW
AB58: General Service 50 to 1,499 kW - Interval Metered
AB59: General Service 50 to 2,499 kW
AB60: General Service 50 to 2,999 kW
AB61: General Service 50 to 2,999 kW - Time of Use
AB62: General Service 50 to 4,999 kW
AB63: General Service 50 to 4,999 kW – Interval Metered
AB64: General Service 50 to 4,999 kW - Time of Use
AB65: General Service 50 to 4,999 kW (CoGeneration)
AB66: General Service 50 to 4,999 kW (formerly Time of Use)
AB67: General Service 500 to 4,999 kW
AB68: General Service 700 to 4,999 kW
AB69: General Service 1,000 to 2,999 kW
AB70: General Service 1,000 to 4,999 kW
AB71: General Service 1,000 to 4,999 kW - Interval Meters
AB72: General Service 1,000 To 4,999 kW (co-generation)
AB73: General Service Greater Than 1,000 kW
AB74: General Service Intermediate Rate Class 1,000 To 4,999 kW (formerly Large Use Customers)
AB75: General Service Intermediate Rate Class 1,000 To 4,999 kW (formerly General Service > 50 kW Customers)
AB76: General Service 1,500 to 4,999 kW
AB77: General Service Equal To Or Greater Than 1,500 kW
AB78: General Service Equal To Or Greater Than 1,500 kW - Interval Metered
AB79: General Service Intermediate 1,000 To 4,999 kW
AB80: General Service 2,500 to 4,999 kW
AB81: General Service 3,000 to 4,999 kW
AB82: General Service 3,000 to 4,999 kW - Interval Metered
AB83: General Service 3,000 to 4,999 kW - Intermediate Use
AB84: General Service 3,000 to 4,999 kW - Time of Use
AB85: Intermediate With Self Generation
AB86: General Service - Commercial
AB87: General Service - Institutional
AB88: Farms – Three Phase energy-billed [F3]
AB90: Large Use
AB91: Large Use - Regular
AB92: Large Use > 5000 kW
AB93: Large Use - 3TS
AB94: Large Use - Ford Annex
AB96: Unmetered Scattered Load
AB98: Sentinel Lighting
AB100: Street Lighting
AB102: Embedded Distributor
AB103: Low Voltage Wheeling Charge Rate
AB105: Stand-By
AB106: Standby Power
AB107: Standby Power – INTERIM APPROVAL
AB108: Standby Power - APPROVED ON AN INTERIM BASIS
AB109: Standby - General Service 50 - 1,000 kW
AB110: Standby Power General Service 50 to 1,499 kW
AB111: Standby - General Service 1,000 - 5,000 kW
AB112: Standby Power General Service 1,500 to 4,999 kW
AB113: Standby - Large Use
AB114: Standby Power General Service Large Use
AB115: Standby Distribution Service

Sheet 4. RRR Data
B13: In the green shaded cells, enter the most recent reported RRR billing determinants. Please ensure that billing determinants are non-loss adjusted.
B24: Rate Class | D24: Unit | F24: Non-Loss Adjusted Metered kWh | G24: Non-Loss Adjusted Metered kW | H24: Applicable Loss Factor | J24: Load Factor | L24: Loss Adjusted Billed kWh | M24: Billed kW
B27: =IF('3. Rate Classes'!Q24=1,'3. Rate Classes'!C24, 0) -> Residential | D27: =IF(OR(VLOOKUP($B27, '3. Rate Classes'!$C$24:$H$45,6,0)=0, ISERROR(VLOOKUP($B27, '3. Rate Classes'!$C$24:$H$45,6,0))), "", VLOOKUP($B27, '3. Rate Classes'!$C$24:$H$45,6,0)) -> kWh | F27: 80545193 | H27: 1.0495 | J27: =IF(ISERROR(F27/(G27*30.4*24)), "", IF(D27="kW", F27/(G27*30.4*24), "")) ->  | L27: =IF(OR(H27=0, OR(ISBLANK(H27), TRIM(H27)="")), F27, F27*H27) -> 84532180.05 | M27: =IF(OR(H27=0, OR(ISBLANK(H27), TRIM(H27)="")), G27, G27) -> 0
B28: =IF('3. Rate Classes'!Q25=1,'3. Rate Classes'!C25, 0) -> General Service Less Than 50 kW | D28: =IF(OR(VLOOKUP($B28, '3. Rate Classes'!$C$24:$H$45,6,0)=0, ISERROR(VLOOKUP($B28, '3. Rate Classes'!$C$24:$H$45,6,0))), "", VLOOKUP($B28, '3. Rate Classes'!$C$24:$H$45,6,0)) -> kWh | F28: 35864944 | H28: 1.0495 | L28: =IF(OR(H28=0, OR(ISBLANK(H28), TRIM(H28)="")), F28, F28*H28) -> 37640258.73 | M28: =IF(OR(H28=0, OR(ISBLANK(H28), TRIM(H28)="")), G28, G28) -> 0
B29: =IF('3. Rate Classes'!Q26=1,'3. Rate Classes'!C26, 0) -> General Service 50 to 4,999 kW | D29: =IF(OR(VLOOKUP($B29, '3. Rate Classes'!$C$24:$H$45,6,0)=0, ISERROR(VLOOKUP($B29, '3. Rate Classes'!$C$24:$H$45,6,0))), "", VLOOKUP($B29, '3. Rate Classes'!$C$24:$H$45,6,0)) -> kW | G29: 152191 | J29: 0 | L29: 0 | M29: 152191
B30: =IF('3. Rate Classes'!Q27=1,'3. Rate Classes'!C27, 0) -> General Service 50 to 999 kW - Interval Metered | D30: =IF(OR(VLOOKUP($B30, '3. Rate Classes'!$C$24:$H$45,6,0)=0, ISERROR(VLOOKUP($B30, '3. Rate Classes'!$C$24:$H$45,6,0))), "", VLOOKUP($B30, '3. Rate Classes'!$C$24:$H$45,6,0)) -> kW | G30: 102564 | J30: 0 | L30: 0 | M30: 102564
B31: =IF('3. Rate Classes'!Q28=1,'3. Rate Classes'!C28, 0) -> General Service 1,000 to 4,999 kW - Interval Meters | D31: =IF(OR(VLOOKUP($B31, '3. Rate Classes'!$C$24:$H$45,6,0)=0, ISERROR(VLOOKUP($B31, '3. Rate Classes'!$C$24:$H$45,6,0))), "", VLOOKUP($B31, '3. Rate Classes'!$C$24:$H$45,6,0)) -> kW | G31: 76096 | J31: 0 | L31: 0 | M31: 76096
B32: =IF('3. Rate Classes'!Q29=1,'3. Rate Classes'!C29, 0) -> Unmetered Scattered Load | D32: =IF(OR(VLOOKUP($B32, '3. Rate Classes'!$C$24:$H$45,6,0)=0, ISERROR(VLOOKUP($B32, '3. Rate Classes'!$C$24:$H$45,6,0))), "", VLOOKUP($B32, '3. Rate Classes'!$C$24:$H$45,6,0)) -> kWh | F32: 442068 | H32: 1.0495 | L32: 463950.366 | M32: 0
B33: =IF('3. Rate Classes'!Q30=1,'3. Rate Classes'!C30, 0) -> Sentinel Lighting | D33: =IF(OR(VLOOKUP($B33, '3. Rate Classes'!$C$24:$H$45,6,0)=0, ISERROR(VLOOKUP($B33, '3. Rate Classes'!$C$24:$H$45,6,0))), "", VLOOKUP($B33, '3. Rate Classes'!$C$24:$H$45,6,0)) -> kW | G33: 31 | J33: =IF(ISERROR(F33/(G33*30.4*24)), "", IF(D33="kW", F33/(G33*30.4*24), "")) -> 0 | L33: 0 | M33: 31
B34: =IF('3. Rate Classes'!Q31=1,'3. Rate Classes'!C31, 0) -> Street Lighting | D34: =IF(OR(VLOOKUP($B34, '3. Rate Classes'!$C$24:$H$45,6,0)=0, ISERROR(VLOOKUP($B34, '3. Rate Classes'!$C$24:$H$45,6,0))), "", VLOOKUP($B34, '3. Rate Classes'!$C$24:$H$45,6,0)) -> kW | G34: 460 | J34: 0 | L34: 0 | M34: 460
B35: =IF('3. Rate Classes'!Q32=1,'3. Rate Classes'!C32, 0) -> 0 | D35: =IF(OR(VLOOKUP($B35, '3. Rate Classes'!$C$24:$H$45,6,0)=0, ISERROR(VLOOKUP($B35, '3. Rate Classes'!$C$24:$H$45,6,0))), "", VLOOKUP($B35, '3. Rate Classes'!$C$24:$H$45,6,0)) ->  | L35: 0 | M35: 0
B36: =IF('3. Rate Classes'!Q33=1,'3. Rate Classes'!C33, 0) -> 0 | D36: =IF(OR(VLOOKUP($B36, '3. Rate Classes'!$C$24:$H$45,6,0)=0, ISERROR(VLOOKUP($B36, '3. Rate Classes'!$C$24:$H$45,6,0))), "", VLOOKUP($B36, '3. Rate Classes'!$C$24:$H$45,6,0)) ->  | L36: 0 | M36: 0
B37: =IF('3. Rate Classes'!Q34=1,'3. Rate Classes'!C34, 0) -> 0 | D37: =IF(OR(VLOOKUP($B37, '3. Rate Classes'!$C$24:$H$45,6,0)=0, ISERROR(VLOOKUP($B37, '3. Rate Classes'!$C$24:$H$45,6,0))), "", VLOOKUP($B37, '3. Rate Classes'!$C$24:$H$45,6,0)) ->  | L37: 0 | M37: 0
B38: =IF('3. Rate Classes'!Q35=1,'3. Rate Classes'!C35, 0) -> 0 | D38: =IF(OR(VLOOKUP($B38, '3. Rate Classes'!$C$24:$H$45,6,0)=0, ISERROR(VLOOKUP($B38, '3. Rate Classes'!$C$24:$H$45,6,0))), "", VLOOKUP($B38, '3. Rate Classes'!$C$24:$H$45,6,0)) ->  | L38: 0 | M38: 0
B39: =IF('3. Rate Classes'!Q36=1,'3. Rate Classes'!C36, 0) -> 0 | D39: =IF(OR(VLOOKUP($B39, '3. Rate Classes'!$C$24:$H$45,6,0)=0, ISERROR(VLOOKUP($B39, '3. Rate Classes'!$C$24:$H$45,6,0))), "", VLOOKUP($B39, '3. Rate Classes'!$C$24:$H$45,6,0)) ->  | L39: 0 | M39: 0
B40: =IF('3. Rate Classes'!Q37=1,'3. Rate Classes'!C37, 0) -> 0 | D40: =IF(OR(VLOOKUP($B40, '3. Rate Classes'!$C$24:$H$45,6,0)=0, ISERROR(VLOOKUP($B40, '3. Rate Classes'!$C$24:$H$45,6,0))), "", VLOOKUP($B40, '3. Rate Classes'!$C$24:$H$45,6,0)) ->  | L40: 0 | M40: 0
B41: =IF('3. Rate Classes'!Q38=1,'3. Rate Classes'!C38, 0) -> 0 | D41: =IF(OR(VLOOKUP($B41, '3. Rate Classes'!$C$24:$H$45,6,0)=0, ISERROR(VLOOKUP($B41, '3. Rate Classes'!$C$24:$H$45,6,0))), "", VLOOKUP($B41, '3. Rate Classes'!$C$24:$H$45,6,0)) ->  | L41: 0 | M41: 0
B42: =IF('3. Rate Classes'!Q39=1,'3. Rate Classes'!C39, 0) -> 0 | D42: =IF(OR(VLOOKUP($B42, '3. Rate Classes'!$C$24:$H$45,6,0)=0, ISERROR(VLOOKUP($B42, '3. Rate Classes'!$C$24:$H$45,6,0))), "", VLOOKUP($B42, '3. Rate Classes'!$C$24:$H$45,6,0)) ->  | L42: 0 | M42: 0
B43: =IF('3. Rate Classes'!Q40=1,'3. Rate Classes'!C40, 0) -> 0 | D43: =IF(OR(VLOOKUP($B43, '3. Rate Classes'!$C$24:$H$45,6,0)=0, ISERROR(VLOOKUP($B43, '3. Rate Classes'!$C$24:$H$45,6,0))), "", VLOOKUP($B43, '3. Rate Classes'!$C$24:$H$45,6,0)) ->  | L43: 0 | M43: 0
B44: =IF('3. Rate Classes'!Q41=1,'3. Rate Classes'!C41, 0) -> 0 | D44: =IF(OR(VLOOKUP($B44, '3. Rate Classes'!$C$24:$H$45,6,0)=0, ISERROR(VLOOKUP($B44, '3. Rate Classes'!$C$24:$H$45,6,0))), "", VLOOKUP($B44, '3. Rate Classes'!$C$24:$H$45,6,0)) ->  | L44: 0 | M44: 0
B45: =IF('3. Rate Classes'!Q42=1,'3. Rate Classes'!C42, 0) -> 0 | D45: =IF(OR(VLOOKUP($B45, '3. Rate Classes'!$C$24:$H$45,6,0)=0, ISERROR(VLOOKUP($B45, '3. Rate Classes'!$C$24:$H$45,6,0))), "", VLOOKUP($B45, '3. Rate Classes'!$C$24:$H$45,6,0)) ->  | L45: 0 | M45: 0
B46: =IF('3. Rate Classes'!Q43=1,'3. Rate Classes'!C43, 0) -> 0 | D46: =IF(OR(VLOOKUP($B46, '3. Rate Classes'!$C$24:$H$45,6,0)=0, ISERROR(VLOOKUP($B46, '3. Rate Classes'!$C$24:$H$45,6,0))), "", VLOOKUP($B46, '3. Rate Classes'!$C$24:$H$45,6,0)) ->  | L46: 0 | M46: 0
B47: =IF('3. Rate Classes'!Q44=1,'3. Rate Classes'!C44, 0) -> 0 | D47: =IF(OR(VLOOKUP($B47, '3. Rate Classes'!$C$24:$H$45,6,0)=0, ISERROR(VLOOKUP($B47, '3. Rate Classes'!$C$24:$H$45,6,0))), "", VLOOKUP($B47, '3. Rate Classes'!$C$24:$H$45,6,0)) ->  | L47: 0 | M47: 0
B48: =IF('3. Rate Classes'!Q45=1,'3. Rate Classes'!C45, 0) -> 0 | D48: =IF(OR(VLOOKUP($B48, '3. Rate Classes'!$C$24:$H$45,6,0)=0, ISERROR(VLOOKUP($B48, '3. Rate Classes'!$C$24:$H$45,6,0))), "", VLOOKUP($B48, '3. Rate Classes'!$C$24:$H$45,6,0)) ->  | L48: 0 | M48: 0

Sheet 5. UTRs and Sub-Transmission
B18: Uniform Transmission Rates | C18: Unit | E18: Effective January 1, 2012 | G18: Effective January 1, 2013 | I18: Effective January 1, 2014
B20: Rate Description | E20: Rate | G20: Rate | I20: Rate
B22: Network Service Rate | C22: kW | E22: 3.57 | G22: 3.63 | I22: 3.82
B24: Line Connection Service Rate | C24: kW | E24: 0.8 | G24: 0.75 | I24: 0.82
B26: Transformation Connection Service Rate | C26: kW | E26: 1.86 | G26: 1.85 | I26: 1.98
B29: Hydro One Sub-Transmission Rates | C29: Unit | E29: Effective January 1, 2012 | G29: Effective January 1, 2013 | I29: Effective January 1, 2014
B33: Rate Description | E33: Rate | G33: Rate | I33: Rate
B35: Network Service Rate | C35: kW | E35: 2.65 | G35: 3.18 | I35: 3.23
B37: Line Connection Service Rate | C37: kW | E37: 0.64 | G37: 0.7 | I37: 0.65
B39: Transformation Connection Service Rate | C39: kW | E39: 1.5 | G39: 1.63 | I39: 1.62
B41: Both Line and Transformation Connection Service Rate | C41: kW | E41: =E39+E37 -> 2.14 | G41: =G39+G37 -> 2.33 | I41: =I39+I37 -> 2.27
B44: If needed , add extra host here (I) | C44: Unit | E44: Effective January 1, 2012 | G44: Effective January 1, 2013 | I44: Effective January 1, 2014
B48: Rate Description | E48: Rate | G48: Rate | I48: Rate
B50: Network Service Rate | C50: kW | E50: 2.174 | G50: 2.4601 | I50: 2.3
B52: Line Connection Service Rate | C52: kW | E52: 0.45 | G52: 0.49 | I52: 0.47
B54: Transformation Connection Service Rate | C54: kW | E54: 1.05 | G54: 1.15 | I54: 1.1
B56: Both Line and Transformation Connection Service Rate | C56: kW | E56: =E54+E52 -> 1.5 | G56: =G54+G52 -> 1.64 | I56: =I54+I52 -> 1.57
B59: If needed , add extra host here (II) | C59: Unit | E59: Effective January 1, 2012 | G59: Effective January 1, 2013 | I59: Effective January 1, 2014
B63: Rate Description | E63: Rate | G63: Rate | I63: Rate
B65: Network Service Rate | C65: kW
B67: Line Connection Service Rate | C67: kW
B69: Transformation Connection Service Rate | C69: kW
B71: Both Line and Transformation Connection Service Rate | C71: kW | E71: =E69+E67 -> 0 | G71: =G69+G67 -> 0 | I71: =I69+I67 -> 0
B75: Hydro One Sub-Transmission Rate Rider 9A | C75: Unit | E75: Effective January 1, 2012 | G75: Effective January 1, 2013 | I75: Effective January 1, 2014
B77: Rate Description | E77: Rate | G77: Rate | I77: Rate
B79: RSVA Transmission network – 4714 – which affects 1584 | C79: kW | E79: 0 | G79: 0.1465 | I79: 0.1465
B81: RSVA Transmission connection – 4716 – which affects 1586 | C81: kW | E81: 0 | G81: 0.0667 | I81: 0.0667
B83: RSVA LV – 4750 – which affects 1550 | C83: kW | E83: 0 | G83: 0.0475 | I83: 0.0475
B85: RARA 1 – 2252 – which affects 1590 | C85: kW | E85: 0 | G85: 0.0419 | I85: 0.0419
B87: RARA 1 – 2252 – which affects 1590 (2008) | C87: kW | E87: 0 | G87: -0.027 | I87: -0.027
B89: RARA 1 – 2252 – which affects 1590 (2009) | C89: kW | E89: 0 | G89: -0.0006 | I89: -0.0006
B91: Hydro One Sub-Transmission Rate Rider 9A | C91: kW | E91: =SUM(E79:E89) -> 0 | G91: =SUM(G79:G89) -> 0.275 | I91: =SUM(I79:I89) -> 0.275
E94: Historical 2012 | G94: Current 2013 | I94: Forecast 2014
B95: Transformer Allowance Credit (if applicable, enter as a negative value) | C95: $ | E95: 0 | G95: 0 | I95: 0

Sheet 6. Historical Wholesale
B21: IESO | D21: Network | H21: Line Connection | L21: Transformation Connection | P21: Total Line
B22: Month | D22: Units Billed | E22: Rate | F22: Amount | H22: Units Billed | I22: Rate | J22: Amount | L22: Units Billed | M22: Rate | N22: Amount | P22: Amount
B24: January | D24: =F24/3.57 -> 17945 | E24: =IF(D24<>0,F24/D24,0) -> 3.57 | F24: 64063.65 | H24: =J24/0.8 -> 18443 | I24: =IF(H24<>0,J24/H24,0) -> 0.8 | J24: 14754.4 | L24: =N24/1.86 -> 1094 | M24: =IF(L24<>0,N24/L24,0) -> 1.86 | N24: 2034.84 | P24: =J24+N24 -> 16789.24
B25: February | D25: =F25/3.57 -> 16366 | E25: =IF(D25<>0,F25/D25,0) -> 3.57 | F25: 58426.62 | H25: =J25/0.8 -> 18016 | I25: =IF(H25<>0,J25/H25,0) -> 0.8 | J25: 14412.8 | L25: =N25/1.86 -> 1137 | M25: =IF(L25<>0,N25/L25,0) -> 1.86 | N25: 2114.82 | P25: 16527.62
B26: March | D26: 16290 | E26: 3.57 | F26: 58155.3 | H26: 18028 | I26: 0.8 | J26: 14422.4 | L26: 1148 | M26: 1.86 | N26: 2135.28 | P26: 16557.68
B27: April | D27: 15383 | E27: 3.57 | F27: 54917.31 | H27: 17943 | I27: 0.8 | J27: 14354.4 | L27: 1116 | M27: 1.86 | N27: 2075.76 | P27: 16430.16
B28: May | D28: 20788 | E28: 3.57 | F28: 74213.16 | H28: 22252 | I28: 0.8 | J28: 17801.6 | L28: 1392 | M28: 1.86 | N28: 2589.12 | P28: 20390.72
B29: June | D29: 24009 | E29: 3.57 | F29: 85712.13 | H29: 24641 | I29: 0.8 | J29: 19712.8 | L29: 1328 | M29: 1.86 | N29: 2470.08 | P29: 22182.88
B30: July | D30: 23713 | E30: 3.57 | F30: 84655.41 | H30: 25189 | I30: 0.8 | J30: 20151.2 | L30: 1388 | M30: 1.86 | N30: 2581.68 | P30: 22732.88
B31: August | D31: 22232 | E31: 3.57 | F31: 79368.24 | H31: 22966 | I31: 0.8 | J31: 18372.8 | L31: 1598 | M31: 1.86 | N31: 2972.28 | P31: 21345.08
B32: September | D32: 20639 | E32: 3.57 | F32: 73681.23 | H32: 21854 | I32: 0.8 | J32: 17483.2 | L32: 1496 | M32: 1.86 | N32: 2782.56 | P32: 20265.76
B33: October | D33: 16929 | E33: 3.57 | F33: 60436.53 | H33: 19161 | I33: 0.8 | J33: 15328.8 | L33: 1602 | M33: 1.86 | N33: 2979.72 | P33: 18308.52
B34: November | D34: 18132 | E34: 3.57 | F34: 64731.24 | H34: 19136 | I34: 0.8 | J34: 15308.8 | L34: 1625 | M34: 1.86 | N34: 3022.5 | P34: 18331.3
B35: December | D35: 17284 | E35: 3.57 | F35: 61703.88 | H35: 18452 | I35: 0.8 | J35: 14761.6 | L35: 1256 | M35: 1.86 | N35: 2336.16 | P35: 17097.76
B37: Total | D37: =SUM(D24:D35) -> 229710 | E37: =IF(D37<>0,F37/D37,0) -> 3.57 | F37: =SUM(F24:F35) -> 820064.7 | H37: =SUM(H24:H35) -> 246081 | I37: =IF(H37<>0,J37/H37,0) -> 0.8 | J37: =SUM(J24:J35) -> 196864.8 | L37: =SUM(L24:L35) -> 16180 | M37: =IF(L37<>0,N37/L37,0) -> 1.86 | N37: =SUM(N24:N35) -> 30094.8 | P37: =SUM(P24:P35) -> 226959.6
B39: Hydro One | D39: Network | H39: Line Connection | L39: Transformation Connection | P39: Total Line
B41: Month | D41: Units Billed | E41: Rate | F41: Amount | H41: Units Billed | I41: Rate | J41: Amount | L41: Units Billed | M41: Rate | N41: Amount | P41: Amount
B43: January | D43: 7699 | E43: =IF(D43<>0,F43/D43,0) -> 2.65 | F43: 20402.35 | H43: 7749 | I43: =IF(H43<>0,J43/H43,0) -> 0.64 | J43: =H43*0.64 -> 4959.36 | L43: =H43 -> 7749 | M43: =IF(L43<>0,N43/L43,0) -> 1.5 | N43: =L43*1.5 -> 11623.5 | P43: =J43+N43 -> 16582.86
B44: February | D44: 6743 | E44: =IF(D44<>0,F44/D44,0) -> 2.65 | F44: 17868.95 | H44: 7439 | I44: =IF(H44<>0,J44/H44,0) -> 0.64 | J44: =H44*0.64 -> 4760.96 | L44: =H44 -> 7439 | M44: =IF(L44<>0,N44/L44,0) -> 1.5 | N44: =L44*1.5 -> 11158.5 | P44: 15919.46
B45: March | D45: 6520 | E45: 2.65 | F45: 17278 | H45: 7049 | I45: 0.64 | J45: 4511.36 | L45: 7049 | M45: 1.5 | N45: 10573.5 | P45: 15084.86
B46: April | D46: 5770 | E46: 2.65 | F46: 15290.5 | H46: 6006 | I46: 0.64 | J46: 3843.84 | L46: 6006 | M46: 1.5 | N46: 9009 | P46: 12852.84
B47: May | D47: 8090 | E47: 2.65 | F47: 21438.5 | H47: 8090 | I47: 0.64 | J47: 5177.6 | L47: 8090 | M47: 1.5 | N47: 12135 | P47: 17312.6
B48: June | D48: 9717 | E48: 2.65 | F48: 25750.05 | H48: 9717 | I48: 0.64 | J48: 6218.88 | L48: 9717 | M48: 1.5 | N48: 14575.5 | P48: 20794.38
B49: July | D49: 10501 | E49: 2.65 | F49: 27827.65 | H49: 10501 | I49: 0.64 | J49: 6720.64 | L49: 10501 | M49: 1.5 | N49: 15751.5 | P49: 22472.14
B50: August | D50: 9994 | E50: 2.65 | F50: 26484.1 | H50: 10263 | I50: 0.64 | J50: 6568.32 | L50: 10263 | M50: 1.5 | N50: 15394.5 | P50: 21962.82
B51: September | D51: 9719 | E51: 2.65 | F51: 25755.35 | H51: 10273 | I51: 0.64 | J51: 6574.72 | L51: 10273 | M51: 1.5 | N51: 15409.5 | P51: 21984.22
B52: October | D52: 6389 | E52: 2.65 | F52: 16930.85 | H52: 6989 | I52: 0.64 | J52: 4472.96 | L52: 6989 | M52: 1.5 | N52: 10483.5 | P52: 14956.46
B53: November | D53: 6781 | E53: 2.65 | F53: 17969.65 | H53: 7243 | I53: 0.64 | J53: 4635.52 | L53: 7243 | M53: 1.5 | N53: 10864.5 | P53: 15500.02
B54: December | D54: 7258 | E54: 2.65 | F54: 19233.7 | H54: 7540 | I54: 0.64 | J54: 4825.6 | L54: 7540 | M54: 1.5 | N54: 11310 | P54: 16135.6
B56: Total | D56: =SUM(D43:D54) -> 95181 | E56: =IF(D56<>0,F56/D56,0) -> 2.65 | F56: =SUM(F43:F54) -> 252229.65 | H56: =SUM(H43:H54) -> 98859 | I56: =IF(H56<>0,J56/H56,0) -> 0.64 | J56: =SUM(J43:J54) -> 63269.76 | L56: =SUM(L43:L54) -> 98859 | M56: =IF(L56<>0,N56/L56,0) -> 1.5 | N56: =SUM(N43:N54) -> 148288.5 | P56: =SUM(P43:P54) -> 211558.26
B58: Brantford Power | D58: Network | H58: Line Connection | L58: Transformation Connection | P58: Total Line
B59: (if needed)
B60: Month | D60: Units Billed | E60: Rate | F60: Amount | H60: Units Billed | I60: Rate | J60: Amount | L60: Units Billed | M60: Rate | N60: Amount | P60: Amount
B62: January | D62: 12394.69 | E62: 2.17 | F62: =E62*D62 -> 26896.4773 | H62: =D62 -> 12394.69 | I62: 0.45 | J62: =I62*H62 -> 5577.6105 | L62: =D62 -> 12394.69 | M62: 1.05 | N62: =M62*L62 -> 13014.4245 | P62: =J62+N62 -> 18592.035
B63: February | D63: 12488.21 | E63: =IF(D63<>0,F63/D63,0) -> 2.174 | F63: 27149.36854 | H63: =D63 -> 12488.21 | I63: =IF(H63<>0,J63/H63,0) -> 0.44991 | J63: 5618.570561 | L63: =D63 -> 12488.21 | M63: =IF(L63<>0,N63/L63,0) -> 1.04979 | N63: 13109.99798 | P63: 18728.56854
B64: March | D64: 11765.5 | E64: 2.174 | F64: 25578.197 | H64: 11765.5 | I64: 0.44991 | J64: 5293.416105 | L64: 11765.5 | M64: 1.04979 | N64: 12351.30424 | P64: 17644.72035
B65: April | D65: 11131.99 | E65: 2.174 | F65: 24200.94626 | H65: 11131.99 | I65: 0.44991 | J65: 5008.393621 | L65: 11131.99 | M65: 1.04979 | N65: 11686.25178 | P65: 16694.6454
B66: May | D66: 12394.69 | E66: 2.4601 | F66: 30492.17687 | H66: 12394.69 | I66: 0.49194 | J66: 6097.443799 | L66: 12394.69 | M66: 1.14786 | N66: 14227.36886 | P66: 20324.81266
B67: June | D67: 14188.59 | E67: 2.4601 | F67: 34905.35026 | H67: 14188.59 | I67: 0.49194 | J67: 6979.934965 | L67: 14188.59 | M67: 1.14786 | N67: 16286.51492 | P67: 23266.44988
B68: July | D68: 14623.65 | E68: 2.4601 | F68: 35975.64137 | H68: 14623.65 | I68: 0.49194 | J68: 7193.958381 | L68: 14623.65 | M68: 1.14786 | N68: 16785.90289 | P68: 23979.86127
B69: August | D69: 13316.43 | E69: 2.4601 | F69: 32759.74944 | H69: 13316.43 | I69: 0.49194 | J69: 6550.884574 | L69: 13316.43 | M69: 1.14786 | N69: 15285.39734 | P69: 21836.28191
B70: September | D70: 12687.24 | E70: 2.4601 | F70: 31211.87912 | H70: 12687.24 | I70: 0.49194 | J70: 6241.360846 | L70: 12687.24 | M70: 1.14786 | N70: 14563.17531 | P70: 20804.53615
B71: October | D71: 12393.97 | E71: 2.4601 | F71: 30490.4056 | H71: 12393.97 | I71: 0.49194 | J71: 6097.089602 | L71: 12393.97 | M71: 1.14786 | N71: 14226.5424 | P71: 20323.63201
B72: November | D72: 12517.79 | E72: 2.4601 | F72: 30795.01518 | H72: 12517.79 | I72: 0.49194 | J72: 6158.001613 | L72: 12517.79 | M72: 1.14786 | N72: 14368.67043 | P72: 20526.67204
B73: December | D73: 13219.03 | E73: 2.4601 | F73: 32520.1357 | H73: 13219.03 | I73: 0.49194 | J73: 6502.969618 | L73: 13219.03 | M73: 1.14786 | N73: 15173.59578 | P73: 21676.56539
B75: Total | D75: =SUM(D62:D73) -> 153121.78 | E75: =IF(D75<>0,F75/D75,0) -> 2.370501065 | F75: =SUM(F62:F73) -> 362975.3426 | H75: =SUM(H62:H73) -> 153121.78 | I75: =IF(H75<>0,J75/H75,0) -> 0.4788321699 | J75: =SUM(J62:J73) -> 73319.63418 | L75: =SUM(L62:L73) -> 153121.78 | M75: =IF(L75<>0,N75/L75,0) -> 1.117275063 | N75: =SUM(N62:N73) -> 171079.1464 | P75: =SUM(P62:P73) -> 244398.7806
B77: Add Extra Host Here (II) | D77: Network | H77: Line Connection | L77: Transformation Connection | P77: Total Line
B78: (if needed)
B79: Month | D79: Units Billed | E79: Rate | F79: Amount | H79: Units Billed | I79: Rate | J79: Amount | L79: Units Billed | M79: Rate | N79: Amount | P79: Amount
B81: January | E81: =IF(D81<>0,F81/D81,0) -> 0 | I81: =IF(H81<>0,J81/H81,0) -> 0 | M81: =IF(L81<>0,N81/L81,0) -> 0 | P81: =J81+N81 -> 0
B82: February | E82: 0 | I82: 0 | M82: 0 | P82: 0
B83: March | E83: 0 | I83: 0 | M83: 0 | P83: 0
B84: April | E84: 0 | I84: 0 | M84: 0 | P84: 0
B85: May | E85: 0 | I85: 0 | M85: 0 | P85: 0
B86: June | E86: 0 | I86: 0 | M86: 0 | P86: 0
B87: July | E87: 0 | I87: 0 | M87: 0 | P87: 0
B88: August | E88: 0 | I88: 0 | M88: 0 | P88: 0
B89: September | E89: 0 | I89: 0 | M89: 0 | P89: 0
B90: October | E90: 0 | I90: 0 | M90: 0 | P90: 0
B91: November | E91: 0 | I91: 0 | M91: 0 | P91: 0
B92: December | E92: 0 | I92: 0 | M92: 0 | P92: 0
B94: Total | D94: =SUM(D81:D92) -> 0 | E94: =IF(D94<>0,F94/D94,0) -> 0 | F94: =SUM(F81:F92) -> 0 | H94: =SUM(H81:H92) -> 0 | I94: =IF(H94<>0,J94/H94,0) -> 0 | J94: =SUM(J81:J92) -> 0 | L94: =SUM(L81:L92) -> 0 | M94: =IF(L94<>0,N94/L94,0) -> 0 | N94: =SUM(N81:N92) -> 0 | P94: =SUM(P81:P92) -> 0
B96: Total | D96: Network | H96: Line Connection | L96: Transformation Connection | P96: Total Line
B98: Month | D98: Units Billed | E98: Rate | F98: Amount | H98: Units Billed | I98: Rate | J98: Amount | L98: Units Billed | M98: Rate | N98: Amount | P98: Amount
B100: January | D100: =D24+D43+D62+D81 -> 38038.69 | E100: =IF(D100<>0,F100/D100,0) -> 2.927610738 | F100: =F24+F43+F62+F81 -> 111362.4773 | H100: =H24+H43+H62+H81 -> 38586.69 | I100: =IF(H100<>0,J100/H100,0) -> 0.6554428613 | J100: =J24+J43+J62+J81 -> 25291.3705 | L100: =L24+L43+L62+L81 -> 21237.69 | M100: =IF(L100<>0,N100/L100,0) -> 1.255916463 | N100: =N24+N43+N62+N81 -> 26672.7645 | P100: =J100+N100 -> 51964.135
B101: February | D101: =D25+D44+D63+D82 -> 35597.21 | E101: 2.905984445 | F101: =F25+F44+F63+F82 -> 103444.9385 | H101: =H25+H44+H63+H82 -> 37943.21 | I101: 0.6534062501 | J101: =J25+J44+J63+J82 -> 24792.33056 | L101: =L25+L44+L63+L82 -> 21064.21 | M101: 1.25251875 | N101: =N25+N44+N63+N82 -> 26383.31798 | P101: 51175.64854
B102: March | D102: 34575.5 | E102: 2.921476103 | F102: 101011.497 | H102: 36842.5 | I102: 0.6575877344 | J102: 24227.1761 | L102: 19962.5 | M102: 1.255358009 | N102: 25060.08424 | P102: 49287.26035
B103: April | D103: 32284.99 | E103: 2.924230618 | F103: 94408.75626 | H103: 35080.99 | I103: 0.661515927 | J103: 23206.63362 | L103: 18253.99 | M103: 1.247453942 | N103: 22771.01178 | P103: 45977.6454
B104: May | D104: 41272.69 | E104: 3.056351231 | F104: 126143.8369 | H104: 42736.69 | I104: 0.6803672395 | J104: 29076.6438 | L104: 21876.69 | M104: 1.323394392 | N104: 28951.48886 | P104: 58028.13266
B105: June | D105: 47914.59 | E105: 3.054759109 | F105: 146367.5303 | H105: 48546.59 | I105: 0.6779387587 | J105: 32911.61496 | L105: 25233.59 | M105: 1.320941448 | N105: 33332.09492 | P105: 66243.70988
B106: July | D106: 48837.65 | E106: 3.039841216 | F106: 148458.7014 | H106: 50313.65 | I106: 0.6770687156 | J106: 34065.79838 | L106: 26512.65 | M106: 1.324616094 | N106: 35119.08289 | P106: 69184.88127
B107: August | D107: 45542.43 | E107: 3.043581325 | F107: 138612.0894 | H107: 46545.43 | I107: 0.6765863926 | J107: 31492.00457 | L107: 25177.43 | M107: 1.336600969 | N107: 33652.17734 | P107: 65144.18191
B108: September | D108: 43045.24 | E108: 3.035143006 | F108: 130648.4591 | H108: 44814.24 | I108: 0.6761083273 | J108: 30299.28085 | L108: 24456.24 | M108: 1.339340606 | N108: 32755.23531 | P108: 63054.51615
B109: October | D109: 35711.97 | E109: 3.020213827 | F109: 107857.7856 | H109: 38543.97 | I109: 0.6719299958 | J109: 25898.8496 | L109: 20984.97 | M109: 1.319504503 | N109: 27689.7624 | P109: 53588.61201
B110: November | D110: 37430.79 | E110: 3.032153614 | F110: 113495.9052 | H110: 38896.79 | I110: 0.6710662143 | J110: 26102.32161 | L110: 21385.79 | M110: 1.321235757 | N110: 28255.67043 | P110: 54357.99204
B111: December | D111: 37761.03 | E111: 3.004624495 | F111: 113457.7157 | H111: 39211.03 | I111: 0.665378329 | J111: 26090.16962 | L111: 22015.03 | M111: 1.309094549 | N111: 28819.75578 | P111: 54909.92539
B113: Total | D113: =SUM(D100:D111) -> 478012.78 | E113: =IF(D113<>0,F113/D113,0) -> 3.002575983 | F113: =SUM(F100:F111) -> 1435269.693 | H113: =SUM(H100:H111) -> 498061.78 | I113: =IF(H113<>0,J113/H113,0) -> 0.6695036792 | J113: =SUM(J100:J111) -> 333454.1942 | L113: =SUM(L100:L111) -> 268160.78 | M113: =IF(L113<>0,N113/L113,0) -> 1.30318254 | N113: =SUM(N100:N111) -> 349462.4464 | P113: =SUM(P100:P111) -> 682916.6406
N115: Transformer Allowance Credit (if applicable) | P115: ='5. UTRs and Sub-Transmission'!E95 -> 0
N117: Total including deduction for Transformer Allowance Credit | P117: =P113+P115 -> 682916.6406

Sheet 7. Current Wholesale
B13: The purpose of this sheet is to calculate the expected billing when current 2013 Uniform Transmission Rates are applied against historical 2012 transmission units.
B20: IESO | D20: Network | H20: Line Connection | L20: Transformation Connection | P20: Total Line
B22: Month | D22: Units Billed | E22: Rate | F22: Amount | H22: Units Billed | I22: Rate | J22: Amount | L22: Units Billed | M22: Rate | N22: Amount | P22: Amount
B24: January | D24: ='6. Historical Wholesale'!D24 -> 17945 | E24: ='5. UTRs and Sub-Transmission'!G22 -> 3.63 | F24: =D24*E24 -> 65140.35 | H24: ='6. Historical Wholesale'!H24 -> 18443 | I24: ='5. UTRs and Sub-Transmission'!G24 -> 0.75 | J24: =H24*I24 -> 13832.25 | L24: ='6. Historical Wholesale'!L24 -> 1094 | M24: ='5. UTRs and Sub-Transmission'!G26 -> 1.85 | N24: =L24*M24 -> 2023.9 | P24: =J24+N24 -> 15856.15
B25: February | D25: ='6. Historical Wholesale'!D25 -> 16366 | E25: =E24 -> 3.63 | F25: =D25*E25 -> 59408.58 | H25: ='6. Historical Wholesale'!H25 -> 18016 | I25: =I24 -> 0.75 | J25: =H25*I25 -> 13512 | L25: ='6. Historical Wholesale'!L25 -> 1137 | M25: =M24 -> 1.85 | N25: =L25*M25 -> 2103.45 | P25: 15615.45
B26: March | D26: ='6. Historical Wholesale'!D26 -> 16290 | E26: =E25 -> 3.63 | F26: 59132.7 | H26: ='6. Historical Wholesale'!H26 -> 18028 | I26: =I25 -> 0.75 | J26: 13521 | L26: ='6. Historical Wholesale'!L26 -> 1148 | M26: =M25 -> 1.85 | N26: 2123.8 | P26: 15644.8
B27: April | D27: ='6. Historical Wholesale'!D27 -> 15383 | E27: 3.63 | F27: 55840.29 | H27: ='6. Historical Wholesale'!H27 -> 17943 | I27: 0.75 | J27: 13457.25 | L27: ='6. Historical Wholesale'!L27 -> 1116 | M27: 1.85 | N27: 2064.6 | P27: 15521.85
B28: May | D28: ='6. Historical Wholesale'!D28 -> 20788 | E28: 3.63 | F28: 75460.44 | H28: ='6. Historical Wholesale'!H28 -> 22252 | I28: 0.75 | J28: 16689 | L28: ='6. Historical Wholesale'!L28 -> 1392 | M28: 1.85 | N28: 2575.2 | P28: 19264.2
B29: June | D29: ='6. Historical Wholesale'!D29 -> 24009 | E29: 3.63 | F29: 87152.67 | H29: ='6. Historical Wholesale'!H29 -> 24641 | I29: 0.75 | J29: 18480.75 | L29: ='6. Historical Wholesale'!L29 -> 1328 | M29: 1.85 | N29: 2456.8 | P29: 20937.55
B30: July | D30: ='6. Historical Wholesale'!D30 -> 23713 | E30: 3.63 | F30: 86078.19 | H30: ='6. Historical Wholesale'!H30 -> 25189 | I30: 0.75 | J30: 18891.75 | L30: ='6. Historical Wholesale'!L30 -> 1388 | M30: 1.85 | N30: 2567.8 | P30: 21459.55
B31: August | D31: ='6. Historical Wholesale'!D31 -> 22232 | E31: 3.63 | F31: 80702.16 | H31: ='6. Historical Wholesale'!H31 -> 22966 | I31: 0.75 | J31: 17224.5 | L31: ='6. Historical Wholesale'!L31 -> 1598 | M31: 1.85 | N31: 2956.3 | P31: 20180.8
B32: September | D32: ='6. Historical Wholesale'!D32 -> 20639 | E32: 3.63 | F32: 74919.57 | H32: ='6. Historical Wholesale'!H32 -> 21854 | I32: 0.75 | J32: 16390.5 | L32: ='6. Historical Wholesale'!L32 -> 1496 | M32: 1.85 | N32: 2767.6 | P32: 19158.1
B33: October | D33: ='6. Historical Wholesale'!D33 -> 16929 | E33: 3.63 | F33: 61452.27 | H33: ='6. Historical Wholesale'!H33 -> 19161 | I33: 0.75 | J33: 14370.75 | L33: ='6. Historical Wholesale'!L33 -> 1602 | M33: 1.85 | N33: 2963.7 | P33: 17334.45
B34: November | D34: ='6. Historical Wholesale'!D34 -> 18132 | E34: 3.63 | F34: 65819.16 | H34: ='6. Historical Wholesale'!H34 -> 19136 | I34: 0.75 | J34: 14352 | L34: ='6. Historical Wholesale'!L34 -> 1625 | M34: 1.85 | N34: 3006.25 | P34: 17358.25
B35: December | D35: ='6. Historical Wholesale'!D35 -> 17284 | E35: 3.63 | F35: 62740.92 | H35: ='6. Historical Wholesale'!H35 -> 18452 | I35: 0.75 | J35: 13839 | L35: ='6. Historical Wholesale'!L35 -> 1256 | M35: 1.85 | N35: 2323.6 | P35: 16162.6
B37: Total | D37: =SUM(D24:D35) -> 229710 | E37: =IF(D37<>0,F37/D37,0) -> 3.63 | F37: =SUM(F24:F35) -> 833847.3 | H37: =SUM(H24:H35) -> 246081 | I37: =IF(H37<>0,J37/H37,0) -> 0.75 | J37: =SUM(J24:J35) -> 184560.75 | L37: =SUM(L24:L35) -> 16180 | M37: =IF(L37<>0,N37/L37,0) -> 1.85 | N37: =SUM(N24:N35) -> 29933 | P37: =SUM(P24:P35) -> 214493.75
B39: Hydro One | D39: Network | H39: Line Connection | L39: Transformation Connection | P39: Total Line
B41: Month | D41: Units Billed | E41: Rate | F41: Amount | H41: Units Billed | I41: Rate | J41: Amount | L41: Units Billed | M41: Rate | N41: Amount | P41: Amount
B43: January | D43: ='6. Historical Wholesale'!D43 -> 7699 | E43: ='5. UTRs and Sub-Transmission'!G35+'5. UTRs and Sub-Transmission'!G79 -> 3.3265 | F43: =D43*E43 -> 25610.7235 | H43: ='6. Historical Wholesale'!H43 -> 7749 | I43: ='5. UTRs and Sub-Transmission'!G37+'5. UTRs and Sub-Transmission'!G81 -> 0.7667 | J43: =H43*I43 -> 5941.1583 | L43: ='6. Historical Wholesale'!L43 -> 7749 | M43: ='5. UTRs and Sub-Transmission'!G39 -> 1.63 | N43: =L43*M43 -> 12630.87 | P43: =J43+N43 -> 18572.0283
B44: February | D44: ='6. Historical Wholesale'!D44 -> 6743 | E44: =E43 -> 3.3265 | F44: =D44*E44 -> 22430.5895 | H44: ='6. Historical Wholesale'!H44 -> 7439 | I44: =I43 -> 0.7667 | J44: =H44*I44 -> 5703.4813 | L44: ='6. Historical Wholesale'!L44 -> 7439 | M44: =M43 -> 1.63 | N44: =L44*M44 -> 12125.57 | P44: 17829.0513
B45: March | D45: ='6. Historical Wholesale'!D45 -> 6520 | E45: =E44 -> 3.3265 | F45: 21688.78 | H45: ='6. Historical Wholesale'!H45 -> 7049 | I45: =I44 -> 0.7667 | J45: 5404.4683 | L45: ='6. Historical Wholesale'!L45 -> 7049 | M45: =M44 -> 1.63 | N45: 11489.87 | P45: 16894.3383
B46: April | D46: ='6. Historical Wholesale'!D46 -> 5770 | E46: 3.3265 | F46: 19193.905 | H46: ='6. Historical Wholesale'!H46 -> 6006 | I46: 0.7667 | J46: 4604.8002 | L46: ='6. Historical Wholesale'!L46 -> 6006 | M46: =M45 -> 1.63 | N46: 9789.78 | P46: 14394.5802
B47: May | D47: ='6. Historical Wholesale'!D47 -> 8090 | E47: 3.3265 | F47: 26911.385 | H47: ='6. Historical Wholesale'!H47 -> 8090 | I47: 0.7667 | J47: 6202.603 | L47: ='6. Historical Wholesale'!L47 -> 8090 | M47: 1.63 | N47: 13186.7 | P47: 19389.303
B48: June | D48: ='6. Historical Wholesale'!D48 -> 9717 | E48: 3.3265 | F48: 32323.6005 | H48: ='6. Historical Wholesale'!H48 -> 9717 | I48: 0.7667 | J48: 7450.0239 | L48: ='6. Historical Wholesale'!L48 -> 9717 | M48: 1.63 | N48: 15838.71 | P48: 23288.7339
B49: July | D49: ='6. Historical Wholesale'!D49 -> 10501 | E49: 3.3265 | F49: 34931.5765 | H49: ='6. Historical Wholesale'!H49 -> 10501 | I49: 0.7667 | J49: 8051.1167 | L49: ='6. Historical Wholesale'!L49 -> 10501 | M49: 1.63 | N49: 17116.63 | P49: 25167.7467
B50: August | D50: ='6. Historical Wholesale'!D50 -> 9994 | E50: 3.3265 | F50: 33245.041 | H50: ='6. Historical Wholesale'!H50 -> 10263 | I50: 0.7667 | J50: 7868.6421 | L50: ='6. Historical Wholesale'!L50 -> 10263 | M50: 1.63 | N50: 16728.69 | P50: 24597.3321
B51: September | D51: ='6. Historical Wholesale'!D51 -> 9719 | E51: 3.3265 | F51: 32330.2535 | H51: ='6. Historical Wholesale'!H51 -> 10273 | I51: 0.7667 | J51: 7876.3091 | L51: ='6. Historical Wholesale'!L51 -> 10273 | M51: 1.63 | N51: 16744.99 | P51: 24621.2991
B52: October | D52: ='6. Historical Wholesale'!D52 -> 6389 | E52: 3.3265 | F52: 21253.0085 | H52: ='6. Historical Wholesale'!H52 -> 6989 | I52: 0.7667 | J52: 5358.4663 | L52: ='6. Historical Wholesale'!L52 -> 6989 | M52: 1.63 | N52: 11392.07 | P52: 16750.5363
B53: November | D53: ='6. Historical Wholesale'!D53 -> 6781 | E53: 3.3265 | F53: 22556.9965 | H53: ='6. Historical Wholesale'!H53 -> 7243 | I53: 0.7667 | J53: 5553.2081 | L53: ='6. Historical Wholesale'!L53 -> 7243 | M53: 1.63 | N53: 11806.09 | P53: 17359.2981
B54: December | D54: ='6. Historical Wholesale'!D54 -> 7258 | E54: 3.3265 | F54: 24143.737 | H54: ='6. Historical Wholesale'!H54 -> 7540 | I54: 0.7667 | J54: 5780.918 | L54: ='6. Historical Wholesale'!L54 -> 7540 | M54: 1.63 | N54: 12290.2 | P54: 18071.118
B56: Total | D56: =SUM(D43:D54) -> 95181 | E56: =IF(D56<>0,F56/D56,0) -> 3.3265 | F56: =SUM(F43:F54) -> 316619.5965 | H56: =SUM(H43:H54) -> 98859 | I56: =IF(H56<>0,J56/H56,0) -> 0.7667 | J56: =SUM(J43:J54) -> 75795.1953 | L56: =SUM(L43:L54) -> 98859 | M56: =IF(L56<>0,N56/L56,0) -> 1.63 | N56: =SUM(N43:N54) -> 161140.17 | P56: =SUM(P43:P54) -> 236935.3653
B58: ='6. Historical Wholesale'!B58 -> Brantford Power | D58: Network | H58: Line Connection | L58: Transformation Connection | P58: Total Line
B60: Month | D60: Units Billed | E60: Rate | F60: Amount | H60: Units Billed | I60: Rate | J60: Amount | L60: Units Billed | M60: Rate | N60: Amount | P60: Amount
B62: January | D62: ='6. Historical Wholesale'!D62 -> 12394.69 | E62: ='5. UTRs and Sub-Transmission'!G50 -> 2.4601 | F62: =D62*E62 -> 30492.17687 | H62: ='6. Historical Wholesale'!H62 -> 12394.69 | I62: ='5. UTRs and Sub-Transmission'!G52 -> 0.49 | J62: =H62*I62 -> 6073.3981 | L62: ='6. Historical Wholesale'!L62 -> 12394.69 | M62: ='5. UTRs and Sub-Transmission'!G54 -> 1.15 | N62: =L62*M62 -> 14253.8935 | P62: =J62+N62 -> 20327.2916
B63: February | D63: ='6. Historical Wholesale'!D63 -> 12488.21 | E63: =E62 -> 2.4601 | F63: =D63*E63 -> 30722.24542 | H63: ='6. Historical Wholesale'!H63 -> 12488.21 | I63: =I62 -> 0.49 | J63: =H63*I63 -> 6119.2229 | L63: ='6. Historical Wholesale'!L63 -> 12488.21 | M63: =M62 -> 1.15 | N63: =L63*M63 -> 14361.4415 | P63: 20480.6644
B64: March | D64: ='6. Historical Wholesale'!D64 -> 11765.5 | E64: =E63 -> 2.4601 | F64: 28944.30655 | H64: ='6. Historical Wholesale'!H64 -> 11765.5 | I64: =I63 -> 0.49 | J64: 5765.095 | L64: ='6. Historical Wholesale'!L64 -> 11765.5 | M64: =M63 -> 1.15 | N64: 13530.325 | P64: 19295.42
B65: April | D65: ='6. Historical Wholesale'!D65 -> 11131.99 | E65: 2.4601 | F65: 27385.8086 | H65: ='6. Historical Wholesale'!H65 -> 11131.99 | I65: 0.49 | J65: 5454.6751 | L65: ='6. Historical Wholesale'!L65 -> 11131.99 | M65: =M64 -> 1.15 | N65: 12801.7885 | P65: 18256.4636
B66: May | D66: ='6. Historical Wholesale'!D66 -> 12394.69 | E66: 2.4601 | F66: 30492.17687 | H66: ='6. Historical Wholesale'!H66 -> 12394.69 | I66: 0.49 | J66: 6073.3981 | L66: ='6. Historical Wholesale'!L66 -> 12394.69 | M66: 1.15 | N66: 14253.8935 | P66: 20327.2916
B67: June | D67: ='6. Historical Wholesale'!D67 -> 14188.59 | E67: 2.4601 | F67: 34905.35026 | H67: ='6. Historical Wholesale'!H67 -> 14188.59 | I67: 0.49 | J67: 6952.4091 | L67: ='6. Historical Wholesale'!L67 -> 14188.59 | M67: 1.15 | N67: 16316.8785 | P67: 23269.2876
B68: July | D68: ='6. Historical Wholesale'!D68 -> 14623.65 | E68: 2.4601 | F68: 35975.64137 | H68: ='6. Historical Wholesale'!H68 -> 14623.65 | I68: 0.49 | J68: 7165.5885 | L68: ='6. Historical Wholesale'!L68 -> 14623.65 | M68: 1.15 | N68: 16817.1975 | P68: 23982.786
B69: August | D69: ='6. Historical Wholesale'!D69 -> 13316.43 | E69: 2.4601 | F69: 32759.74944 | H69: ='6. Historical Wholesale'!H69 -> 13316.43 | I69: 0.49 | J69: 6525.0507 | L69: ='6. Historical Wholesale'!L69 -> 13316.43 | M69: 1.15 | N69: 15313.8945 | P69: 21838.9452
B70: September | D70: ='6. Historical Wholesale'!D70 -> 12687.24 | E70: 2.4601 | F70: 31211.87912 | H70: ='6. Historical Wholesale'!H70 -> 12687.24 | I70: 0.49 | J70: 6216.7476 | L70: ='6. Historical Wholesale'!L70 -> 12687.24 | M70: 1.15 | N70: 14590.326 | P70: 20807.0736
B71: October | D71: ='6. Historical Wholesale'!D71 -> 12393.97 | E71: 2.4601 | F71: 30490.4056 | H71: ='6. Historical Wholesale'!H71 -> 12393.97 | I71: 0.49 | J71: 6073.0453 | L71: ='6. Historical Wholesale'!L71 -> 12393.97 | M71: 1.15 | N71: 14253.0655 | P71: 20326.1108
B72: November | D72: ='6. Historical Wholesale'!D72 -> 12517.79 | E72: 2.4601 | F72: 30795.01518 | H72: ='6. Historical Wholesale'!H72 -> 12517.79 | I72: 0.49 | J72: 6133.7171 | L72: ='6. Historical Wholesale'!L72 -> 12517.79 | M72: 1.15 | N72: 14395.4585 | P72: 20529.1756
B73: December | D73: ='6. Historical Wholesale'!D73 -> 13219.03 | E73: 2.4601 | F73: 32520.1357 | H73: ='6. Historical Wholesale'!H73 -> 13219.03 | I73: 0.49 | J73: 6477.3247 | L73: ='6. Historical Wholesale'!L73 -> 13219.03 | M73: 1.15 | N73: 15201.8845 | P73: 21679.2092
B75: Total | D75: =SUM(D62:D73) -> 153121.78 | E75: =IF(D75<>0,F75/D75,0) -> 2.4601 | F75: =SUM(F62:F73) -> 376694.891 | H75: =SUM(H62:H73) -> 153121.78 | I75: =IF(H75<>0,J75/H75,0) -> 0.49 | J75: =SUM(J62:J73) -> 75029.6722 | L75: =SUM(L62:L73) -> 153121.78 | M75: =IF(L75<>0,N75/L75,0) -> 1.15 | N75: =SUM(N62:N73) -> 176090.047 | P75: =SUM(P62:P73) -> 251119.7192
B77: ='6. Historical Wholesale'!B77 -> Add Extra Host Here (II) | D77: Network | H77: Line Connection | L77: Transformation Connection | P77: Total Line
B79: Month | D79: Units Billed | E79: Rate | F79: Amount | H79: Units Billed | I79: Rate | J79: Amount | L79: Units Billed | M79: Rate | N79: Amount | P79: Amount
B81: January | D81: ='6. Historical Wholesale'!D81 -> 0 | E81: ='5. UTRs and Sub-Transmission'!G65 -> 0 | F81: =D81*E81 -> 0 | H81: ='6. Historical Wholesale'!H81 -> 0 | I81: ='5. UTRs and Sub-Transmission'!G67 -> 0 | J81: =H81*I81 -> 0 | L81: ='6. Historical Wholesale'!L81 -> 0 | M81: ='5. UTRs and Sub-Transmission'!G69 -> 0 | N81: =L81*M81 -> 0 | P81: =J81+N81 -> 0
B82: February | D82: ='6. Historical Wholesale'!D82 -> 0 | E82: =E81 -> 0 | F82: =D82*E82 -> 0 | H82: ='6. Historical Wholesale'!H82 -> 0 | I82: =I81 -> 0 | J82: =H82*I82 -> 0 | L82: ='6. Historical Wholesale'!L82 -> 0 | M82: =M81 -> 0 | N82: =L82*M82 -> 0 | P82: 0
B83: March | D83: ='6. Historical Wholesale'!D83 -> 0 | E83: =E82 -> 0 | F83: 0 | H83: ='6. Historical Wholesale'!H83 -> 0 | I83: =I82 -> 0 | J83: 0 | L83: ='6. Historical Wholesale'!L83 -> 0 | M83: =M82 -> 0 | N83: 0 | P83: 0
B84: April | D84: ='6. Historical Wholesale'!D84 -> 0 | E84: 0 | F84: 0 | H84: ='6. Historical Wholesale'!H84 -> 0 | I84: 0 | J84: 0 | L84: ='6. Historical Wholesale'!L84 -> 0 | M84: =M83 -> 0 | N84: 0 | P84: 0
B85: May | D85: ='6. Historical Wholesale'!D85 -> 0 | E85: 0 | F85: 0 | H85: ='6. Historical Wholesale'!H85 -> 0 | I85: 0 | J85: 0 | L85: ='6. Historical Wholesale'!L85 -> 0 | M85: 0 | N85: 0 | P85: 0
B86: June | D86: ='6. Historical Wholesale'!D86 -> 0 | E86: 0 | F86: 0 | H86: ='6. Historical Wholesale'!H86 -> 0 | I86: 0 | J86: 0 | L86: ='6. Historical Wholesale'!L86 -> 0 | M86: 0 | N86: 0 | P86: 0
B87: July | D87: ='6. Historical Wholesale'!D87 -> 0 | E87: 0 | F87: 0 | H87: ='6. Historical Wholesale'!H87 -> 0 | I87: 0 | J87: 0 | L87: ='6. Historical Wholesale'!L87 -> 0 | M87: 0 | N87: 0 | P87: 0
B88: August | D88: ='6. Historical Wholesale'!D88 -> 0 | E88: 0 | F88: 0 | H88: ='6. Historical Wholesale'!H88 -> 0 | I88: 0 | J88: 0 | L88: ='6. Historical Wholesale'!L88 -> 0 | M88: 0 | N88: 0 | P88: 0
B89: September | D89: ='6. Historical Wholesale'!D89 -> 0 | E89: 0 | F89: 0 | H89: ='6. Historical Wholesale'!H89 -> 0 | I89: 0 | J89: 0 | L89: ='6. Historical Wholesale'!L89 -> 0 | M89: 0 | N89: 0 | P89: 0
B90: October | D90: ='6. Historical Wholesale'!D90 -> 0 | E90: 0 | F90: 0 | H90: ='6. Historical Wholesale'!H90 -> 0 | I90: 0 | J90: 0 | L90: ='6. Historical Wholesale'!L90 -> 0 | M90: 0 | N90: 0 | P90: 0
B91: November | D91: ='6. Historical Wholesale'!D91 -> 0 | E91: 0 | F91: 0 | H91: ='6. Historical Wholesale'!H91 -> 0 | I91: 0 | J91: 0 | L91: ='6. Historical Wholesale'!L91 -> 0 | M91: 0 | N91: 0 | P91: 0
B92: December | D92: ='6. Historical Wholesale'!D92 -> 0 | E92: 0 | F92: 0 | H92: ='6. Historical Wholesale'!H92 -> 0 | I92: 0 | J92: 0 | L92: ='6. Historical Wholesale'!L92 -> 0 | M92: 0 | N92: 0 | P92: 0
B94: Total | D94: =SUM(D81:D92) -> 0 | E94: =IF(D94<>0,F94/D94,0) -> 0 | F94: =SUM(F81:F92) -> 0 | H94: =SUM(H81:H92) -> 0 | I94: =IF(H94<>0,J94/H94,0) -> 0 | J94: =SUM(J81:J92) -> 0 | L94: =SUM(L81:L92) -> 0 | M94: =IF(L94<>0,N94/L94,0) -> 0 | N94: =SUM(N81:N92) -> 0 | P94: =SUM(P81:P92) -> 0
B96: Total | D96: Network | H96: Line Connection | L96: Transformation Connection | P96: Total Line
B98: Month | D98: Units Billed | E98: Rate | F98: Amount | H98: Units Billed | I98: Rate | J98: Amount | L98: Units Billed | M98: Rate | N98: Amount | P98: Amount
B100: January | D100: =D24+D43+D62+D81 -> 38038.69 | E100: =IF(D100<>0,F100/D100,0) -> 3.187366609 | F100: =F24+F43+F62+F81 -> 121243.2504 | H100: =H24+H43+H62+H81 -> 38586.69 | I100: =IF(H100<>0,J100/H100,0) -> 0.6698373558 | J100: =J24+J43+J62+J81 -> 25846.8064 | L100: =L24+L43+L62+L81 -> 21237.69 | M100: =IF(L100<>0,N100/L100,0) -> 1.361196227 | N100: =N24+N43+N62+N81 -> 28908.6635 | P100: =J100+N100 -> 54755.4699
B101: February | D101: =D25+D44+D63+D82 -> 35597.21 | E101: 3.162085313 | F101: =F25+F44+F63+F82 -> 112561.4149 | H101: =H25+H44+H63+H82 -> 37943.21 | I101: 0.6677006031 | J101: =J25+J44+J63+J82 -> 25334.7042 | L101: =L25+L44+L63+L82 -> 21064.21 | M101: 1.35730044 | N101: =N25+N44+N63+N82 -> 28590.4615 | P101: 53925.1657
B102: March | D102: 34575.5 | E102: 3.174669536 | F102: 109765.7866 | H102: 36842.5 | I102: 0.6701652521 | J102: 24690.5633 | L102: 19962.5 | M102: 1.35974928 | N102: 27143.995 | P102: 51834.5583
B103: April | D103: 32284.99 | E103: 3.172372164 | F103: 102420.0036 | H103: 35080.99 | I103: 0.6703552351 | J103: 23516.7253 | L103: 18253.99 | M103: 1.350727622 | N103: 24656.1685 | P103: 48172.8938
B104: May | D104: 41272.69 | E104: 3.219174759 | F104: 132864.0019 | H104: 42736.69 | I104: 0.677754901 | J104: 28965.0011 | L104: 21876.69 | M104: 1.37204456 | N104: 30015.7935 | P104: 58980.7946
B105: June | D105: 47914.59 | E105: 3.222016942 | F105: 154381.6208 | H105: 48546.59 | I105: 0.6773530952 | J105: 32883.183 | L105: 25233.59 | M105: 1.371679119 | N105: 34612.3885 | P105: 67495.5715
B106: July | D106: 48837.65 | E106: 3.214434107 | F106: 156985.4079 | H106: 50313.65 | I106: 0.6779165336 | J106: 34108.4552 | L106: 26512.65 | M106: 1.376762696 | N106: 36501.6275 | P106: 70610.0827
B107: August | D107: 45542.43 | E107: 3.221324607 | F107: 146706.9504 | H107: 46545.43 | I107: 0.6792974692 | J107: 31618.1928 | L107: 25177.43 | M107: 1.390089636 | N107: 34998.8845 | P107: 66617.0773
B108: September | D108: 43045.24 | E108: 3.216655375 | F108: 138461.7026 | H108: 44814.24 | I108: 0.6802203206 | J108: 30483.5567 | L108: 24456.24 | M108: 1.394446407 | N108: 34102.916 | P108: 64586.4727
B109: October | D109: 35711.97 | E109: 3.169684677 | F109: 113195.6841 | H109: 38543.97 | I109: 0.6694240785 | J109: 25802.2616 | L109: 20984.97 | M109: 1.363301234 | N109: 28608.8355 | P109: 54411.0971
B110: November | D110: 37430.79 | E110: 3.183773885 | F110: 119171.1717 | H110: 38896.79 | I110: 0.6694363519 | J110: 26038.9252 | L110: 21385.79 | M110: 1.365757286 | N110: 29207.7985 | P110: 55246.7237
B111: December | D111: 37761.03 | E111: 3.162116942 | F111: 119404.7927 | H111: 39211.03 | I111: 0.665558714 | J111: 26097.2427 | L111: 22015.03 | M111: 1.354333131 | N111: 29815.6845 | P111: 55912.9272
B113: Total | D113: =SUM(D100:D111) -> 478012.78 | E113: =IF(D113<>0,F113/D113,0) -> 3.194813719 | F113: =SUM(F100:F111) -> 1527161.787 | H113: =SUM(H100:H111) -> 498061.78 | I113: =IF(H113<>0,J113/H113,0) -> 0.6733815582 | J113: =SUM(J100:J111) -> 335385.6175 | L113: =SUM(L100:L111) -> 268160.78 | M113: =IF(L113<>0,N113/L113,0) -> 1.369190592 | N113: =SUM(N100:N111) -> 367163.217 | P113: =SUM(P100:P111) -> 702548.8345
N115: Transformer Allowance Credit (if applicable) | P115: ='5. UTRs and Sub-Transmission'!G95 -> 0
N117: Total including deduction for Transformer Allowance Credit | P117: =P113+P115 -> 702548.8345

Sheet 8. Forecast Wholesale
B13: The purpose of this sheet is to calculate the expected billing when forecasted 2014 Uniform Transmission Rates are applied against historical 2012 transmission units.
B20: IESO | D20: Network | H20: Line Connection | L20: Transformation Connection | P20: Total Line
B22: Month | D22: Units Billed | E22: Rate | F22: Amount | H22: Units Billed | I22: Rate | J22: Amount | L22: Units Billed | M22: Rate | N22: Amount | P22: Amount
B24: January | D24: ='6. Historical Wholesale'!D24 -> 17945 | E24: ='5. UTRs and Sub-Transmission'!I22 -> 3.82 | F24: =D24*E24 -> 68549.9 | H24: ='6. Historical Wholesale'!H24 -> 18443 | I24: ='5. UTRs and Sub-Transmission'!I24 -> 0.82 | J24: =H24*I24 -> 15123.26 | L24: ='6. Historical Wholesale'!L24 -> 1094 | M24: ='5. UTRs and Sub-Transmission'!I26 -> 1.98 | N24: =L24*M24 -> 2166.12 | P24: =J24+N24 -> 17289.38
B25: February | D25: ='6. Historical Wholesale'!D25 -> 16366 | E25: =E24 -> 3.82 | F25: 62518.12 | H25: ='6. Historical Wholesale'!H25 -> 18016 | I25: =I24 -> 0.82 | J25: 14773.12 | L25: ='6. Historical Wholesale'!L25 -> 1137 | M25: =M24 -> 1.98 | N25: 2251.26 | P25: 17024.38
B26: March | D26: ='6. Historical Wholesale'!D26 -> 16290 | E26: 3.82 | F26: 62227.8 | H26: ='6. Historical Wholesale'!H26 -> 18028 | I26: 0.82 | J26: 14782.96 | L26: ='6. Historical Wholesale'!L26 -> 1148 | M26: 1.98 | N26: 2273.04 | P26: 17056
B27: April | D27: ='6. Historical Wholesale'!D27 -> 15383 | E27: 3.82 | F27: 58763.06 | H27: ='6. Historical Wholesale'!H27 -> 17943 | I27: 0.82 | J27: 14713.26 | L27: ='6. Historical Wholesale'!L27 -> 1116 | M27: 1.98 | N27: 2209.68 | P27: 16922.94
B28: May | D28: ='6. Historical Wholesale'!D28 -> 20788 | E28: 3.82 | F28: 79410.16 | H28: ='6. Historical Wholesale'!H28 -> 22252 | I28: 0.82 | J28: 18246.64 | L28: ='6. Historical Wholesale'!L28 -> 1392 | M28: 1.98 | N28: 2756.16 | P28: 21002.8
B29: June | D29: ='6. Historical Wholesale'!D29 -> 24009 | E29: 3.82 | F29: 91714.38 | H29: ='6. Historical Wholesale'!H29 -> 24641 | I29: 0.82 | J29: 20205.62 | L29: ='6. Historical Wholesale'!L29 -> 1328 | M29: 1.98 | N29: 2629.44 | P29: 22835.06
B30: July | D30: ='6. Historical Wholesale'!D30 -> 23713 | E30: 3.82 | F30: 90583.66 | H30: ='6. Historical Wholesale'!H30 -> 25189 | I30: 0.82 | J30: 20654.98 | L30: ='6. Historical Wholesale'!L30 -> 1388 | M30: 1.98 | N30: 2748.24 | P30: 23403.22
B31: August | D31: ='6. Historical Wholesale'!D31 -> 22232 | E31: 3.82 | F31: 84926.24 | H31: ='6. Historical Wholesale'!H31 -> 22966 | I31: 0.82 | J31: 18832.12 | L31: ='6. Historical Wholesale'!L31 -> 1598 | M31: 1.98 | N31: 3164.04 | P31: 21996.16
B32: September | D32: ='6. Historical Wholesale'!D32 -> 20639 | E32: 3.82 | F32: 78840.98 | H32: ='6. Historical Wholesale'!H32 -> 21854 | I32: 0.82 | J32: 17920.28 | L32: ='6. Historical Wholesale'!L32 -> 1496 | M32: 1.98 | N32: 2962.08 | P32: 20882.36
B33: October | D33: ='6. Historical Wholesale'!D33 -> 16929 | E33: 3.82 | F33: 64668.78 | H33: ='6. Historical Wholesale'!H33 -> 19161 | I33: 0.82 | J33: 15712.02 | L33: ='6. Historical Wholesale'!L33 -> 1602 | M33: 1.98 | N33: 3171.96 | P33: 18883.98
B34: November | D34: ='6. Historical Wholesale'!D34 -> 18132 | E34: 3.82 | F34: 69264.24 | H34: ='6. Historical Wholesale'!H34 -> 19136 | I34: 0.82 | J34: 15691.52 | L34: ='6. Historical Wholesale'!L34 -> 1625 | M34: 1.98 | N34: 3217.5 | P34: 18909.02
B35: December | D35: ='6. Historical Wholesale'!D35 -> 17284 | E35: 3.82 | F35: 66024.88 | H35: ='6. Historical Wholesale'!H35 -> 18452 | I35: 0.82 | J35: 15130.64 | L35: ='6. Historical Wholesale'!L35 -> 1256 | M35: 1.98 | N35: 2486.88 | P35: 17617.52
B37: Total | D37: =SUM(D24:D35) -> 229710 | E37: =IF(D37<>0,F37/D37,0) -> 3.82 | F37: =SUM(F24:F35) -> 877492.2 | H37: =SUM(H24:H35) -> 246081 | I37: =IF(H37<>0,J37/H37,0) -> 0.82 | J37: =SUM(J24:J35) -> 201786.42 | L37: =SUM(L24:L35) -> 16180 | M37: =IF(L37<>0,N37/L37,0) -> 1.98 | N37: =SUM(N24:N35) -> 32036.4 | P37: =SUM(P24:P35) -> 233822.82
B39: Hydro One | D39: Network | H39: Line Connection | L39: Transformation Connection | P39: Total Line
B41: Month | D41: Units Billed | E41: Rate | F41: Amount | H41: Units Billed | I41: Rate | J41: Amount | L41: Units Billed | M41: Rate | N41: Amount | P41: Amount
B43: January | D43: ='6. Historical Wholesale'!D43 -> 7699 | E43: ='5. UTRs and Sub-Transmission'!I35+'5. UTRs and Sub-Transmission'!I79 -> 3.3765 | F43: =D43*E43 -> 25995.6735 | H43: ='6. Historical Wholesale'!H43 -> 7749 | I43: ='5. UTRs and Sub-Transmission'!I37+'5. UTRs and Sub-Transmission'!I81 -> 0.7167 | J43: =H43*I43 -> 5553.7083 | L43: ='6. Historical Wholesale'!L43 -> 7749 | M43: ='5. UTRs and Sub-Transmission'!I39 -> 1.62 | N43: =L43*M43 -> 12553.38 | P43: =J43+N43 -> 18107.0883
B44: February | D44: ='6. Historical Wholesale'!D44 -> 6743 | E44: =E43 -> 3.3765 | F44: 22767.7395 | H44: ='6. Historical Wholesale'!H44 -> 7439 | I44: =I43 -> 0.7167 | J44: 5331.5313 | L44: ='6. Historical Wholesale'!L44 -> 7439 | M44: =M43 -> 1.62 | N44: 12051.18 | P44: 17382.7113
B45: March | D45: ='6. Historical Wholesale'!D45 -> 6520 | E45: 3.3765 | F45: 22014.78 | H45: ='6. Historical Wholesale'!H45 -> 7049 | I45: 0.7167 | J45: 5052.0183 | L45: ='6. Historical Wholesale'!L45 -> 7049 | M45: 1.62 | N45: 11419.38 | P45: 16471.3983
B46: April | D46: ='6. Historical Wholesale'!D46 -> 5770 | E46: 3.3765 | F46: 19482.405 | H46: ='6. Historical Wholesale'!H46 -> 6006 | I46: 0.7167 | J46: 4304.5002 | L46: ='6. Historical Wholesale'!L46 -> 6006 | M46: 1.62 | N46: 9729.72 | P46: 14034.2202
B47: May | D47: ='6. Historical Wholesale'!D47 -> 8090 | E47: 3.3765 | F47: 27315.885 | H47: ='6. Historical Wholesale'!H47 -> 8090 | I47: 0.7167 | J47: 5798.103 | L47: ='6. Historical Wholesale'!L47 -> 8090 | M47: 1.62 | N47: 13105.8 | P47: 18903.903
B48: June | D48: ='6. Historical Wholesale'!D48 -> 9717 | E48: 3.3765 | F48: 32809.4505 | H48: ='6. Historical Wholesale'!H48 -> 9717 | I48: 0.7167 | J48: 6964.1739 | L48: ='6. Historical Wholesale'!L48 -> 9717 | M48: 1.62 | N48: 15741.54 | P48: 22705.7139
B49: July | D49: ='6. Historical Wholesale'!D49 -> 10501 | E49: 3.3765 | F49: 35456.6265 | H49: ='6. Historical Wholesale'!H49 -> 10501 | I49: 0.7167 | J49: 7526.0667 | L49: ='6. Historical Wholesale'!L49 -> 10501 | M49: 1.62 | N49: 17011.62 | P49: 24537.6867
B50: August | D50: ='6. Historical Wholesale'!D50 -> 9994 | E50: 3.3765 | F50: 33744.741 | H50: ='6. Historical Wholesale'!H50 -> 10263 | I50: 0.7167 | J50: 7355.4921 | L50: ='6. Historical Wholesale'!L50 -> 10263 | M50: 1.62 | N50: 16626.06 | P50: 23981.5521
B51: September | D51: ='6. Historical Wholesale'!D51 -> 9719 | E51: 3.3765 | F51: 32816.2035 | H51: ='6. Historical Wholesale'!H51 -> 10273 | I51: 0.7167 | J51: 7362.6591 | L51: ='6. Historical Wholesale'!L51 -> 10273 | M51: 1.62 | N51: 16642.26 | P51: 24004.9191
B52: October | D52: ='6. Historical Wholesale'!D52 -> 6389 | E52: 3.3765 | F52: 21572.4585 | H52: ='6. Historical Wholesale'!H52 -> 6989 | I52: 0.7167 | J52: 5009.0163 | L52: ='6. Historical Wholesale'!L52 -> 6989 | M52: 1.62 | N52: 11322.18 | P52: 16331.1963
B53: November | D53: ='6. Historical Wholesale'!D53 -> 6781 | E53: 3.3765 | F53: 22896.0465 | H53: ='6. Historical Wholesale'!H53 -> 7243 | I53: 0.7167 | J53: 5191.0581 | L53: ='6. Historical Wholesale'!L53 -> 7243 | M53: 1.62 | N53: 11733.66 | P53: 16924.7181
B54: December | D54: ='6. Historical Wholesale'!D54 -> 7258 | E54: 3.3765 | F54: 24506.637 | H54: ='6. Historical Wholesale'!H54 -> 7540 | I54: 0.7167 | J54: 5403.918 | L54: ='6. Historical Wholesale'!L54 -> 7540 | M54: 1.62 | N54: 12214.8 | P54: 17618.718
B56: Total | D56: =SUM(D43:D54) -> 95181 | E56: =IF(D56<>0,F56/D56,0) -> 3.3765 | F56: =SUM(F43:F54) -> 321378.6465 | H56: =SUM(H43:H54) -> 98859 | I56: =IF(H56<>0,J56/H56,0) -> 0.7167 | J56: =SUM(J43:J54) -> 70852.2453 | L56: =SUM(L43:L54) -> 98859 | M56: =IF(L56<>0,N56/L56,0) -> 1.62 | N56: =SUM(N43:N54) -> 160151.58 | P56: =SUM(P43:P54) -> 231003.8253
B58: ='6. Historical Wholesale'!B58 -> Brantford Power | D58: Network | H58: Line Connection | L58: Transformation Connection | P58: Total Line
B60: Month | D60: Units Billed | E60: Rate | F60: Amount | H60: Units Billed | I60: Rate | J60: Amount | L60: Units Billed | M60: Rate | N60: Amount | P60: Amount
B62: January | D62: ='6. Historical Wholesale'!D62 -> 12394.69 | E62: ='5. UTRs and Sub-Transmission'!I50 -> 2.3 | F62: =D62*E62 -> 28507.787 | H62: ='6. Historical Wholesale'!H62 -> 12394.69 | I62: ='5. UTRs and Sub-Transmission'!I52 -> 0.47 | J62: =H62*I62 -> 5825.5043 | L62: ='6. Historical Wholesale'!L62 -> 12394.69 | M62: ='5. UTRs and Sub-Transmission'!I54 -> 1.1 | N62: =L62*M62 -> 13634.159 | P62: =J62+N62 -> 19459.6633
B63: February | D63: ='6. Historical Wholesale'!D63 -> 12488.21 | E63: =E62 -> 2.3 | F63: 28722.883 | H63: ='6. Historical Wholesale'!H63 -> 12488.21 | I63: =I62 -> 0.47 | J63: 5869.4587 | L63: ='6. Historical Wholesale'!L63 -> 12488.21 | M63: =M62 -> 1.1 | N63: 13737.031 | P63: 19606.4897
B64: March | D64: ='6. Historical Wholesale'!D64 -> 11765.5 | E64: 2.3 | F64: 27060.65 | H64: ='6. Historical Wholesale'!H64 -> 11765.5 | I64: 0.47 | J64: 5529.785 | L64: ='6. Historical Wholesale'!L64 -> 11765.5 | M64: 1.1 | N64: 12942.05 | P64: 18471.835
B65: April | D65: ='6. Historical Wholesale'!D65 -> 11131.99 | E65: 2.3 | F65: 25603.577 | H65: ='6. Historical Wholesale'!H65 -> 11131.99 | I65: 0.47 | J65: 5232.0353 | L65: ='6. Historical Wholesale'!L65 -> 11131.99 | M65: 1.1 | N65: 12245.189 | P65: 17477.2243
B66: May | D66: ='6. Historical Wholesale'!D66 -> 12394.69 | E66: 2.3 | F66: 28507.787 | H66: ='6. Historical Wholesale'!H66 -> 12394.69 | I66: 0.47 | J66: 5825.5043 | L66: ='6. Historical Wholesale'!L66 -> 12394.69 | M66: 1.1 | N66: 13634.159 | P66: 19459.6633
B67: June | D67: ='6. Historical Wholesale'!D67 -> 14188.59 | E67: 2.3 | F67: 32633.757 | H67: ='6. Historical Wholesale'!H67 -> 14188.59 | I67: 0.47 | J67: 6668.6373 | L67: ='6. Historical Wholesale'!L67 -> 14188.59 | M67: 1.1 | N67: 15607.449 | P67: 22276.0863
B68: July | D68: ='6. Historical Wholesale'!D68 -> 14623.65 | E68: 2.3 | F68: 33634.395 | H68: ='6. Historical Wholesale'!H68 -> 14623.65 | I68: 0.47 | J68: 6873.1155 | L68: ='6. Historical Wholesale'!L68 -> 14623.65 | M68: 1.1 | N68: 16086.015 | P68: 22959.1305
B69: August | D69: ='6. Historical Wholesale'!D69 -> 13316.43 | E69: 2.3 | F69: 30627.789 | H69: ='6. Historical Wholesale'!H69 -> 13316.43 | I69: 0.47 | J69: 6258.7221 | L69: ='6. Historical Wholesale'!L69 -> 13316.43 | M69: 1.1 | N69: 14648.073 | P69: 20906.7951
B70: September | D70: ='6. Historical Wholesale'!D70 -> 12687.24 | E70: 2.3 | F70: 29180.652 | H70: ='6. Historical Wholesale'!H70 -> 12687.24 | I70: 0.47 | J70: 5963.0028 | L70: ='6. Historical Wholesale'!L70 -> 12687.24 | M70: 1.1 | N70: 13955.964 | P70: 19918.9668
B71: October | D71: ='6. Historical Wholesale'!D71 -> 12393.97 | E71: 2.3 | F71: 28506.131 | H71: ='6. Historical Wholesale'!H71 -> 12393.97 | I71: 0.47 | J71: 5825.1659 | L71: ='6. Historical Wholesale'!L71 -> 12393.97 | M71: 1.1 | N71: 13633.367 | P71: 19458.5329
B72: November | D72: ='6. Historical Wholesale'!D72 -> 12517.79 | E72: 2.3 | F72: 28790.917 | H72: ='6. Historical Wholesale'!H72 -> 12517.79 | I72: 0.47 | J72: 5883.3613 | L72: ='6. Historical Wholesale'!L72 -> 12517.79 | M72: 1.1 | N72: 13769.569 | P72: 19652.9303
B73: December | D73: ='6. Historical Wholesale'!D73 -> 13219.03 | E73: 2.3 | F73: 30403.769 | H73: ='6. Historical Wholesale'!H73 -> 13219.03 | I73: 0.47 | J73: 6212.9441 | L73: ='6. Historical Wholesale'!L73 -> 13219.03 | M73: 1.1 | N73: 14540.933 | P73: 20753.8771
B75: Total | D75: =SUM(D62:D73) -> 153121.78 | E75: =IF(D75<>0,F75/D75,0) -> 2.3 | F75: =SUM(F62:F73) -> 352180.094 | H75: =SUM(H62:H73) -> 153121.78 | I75: =IF(H75<>0,J75/H75,0) -> 0.47 | J75: =SUM(J62:J73) -> 71967.2366 | L75: =SUM(L62:L73) -> 153121.78 | M75: =IF(L75<>0,N75/L75,0) -> 1.1 | N75: =SUM(N62:N73) -> 168433.958 | P75: =SUM(P62:P73) -> 240401.1946
B77: ='6. Historical Wholesale'!B77 -> Add Extra Host Here (II) | D77: Network | H77: Line Connection | L77: Transformation Connection | P77: Total Line
B79: Month | D79: Units Billed | E79: Rate | F79: Amount | H79: Units Billed | I79: Rate | J79: Amount | L79: Units Billed | M79: Rate | N79: Amount | P79: Amount
B81: January | D81: ='6. Historical Wholesale'!D81 -> 0 | E81: ='5. UTRs and Sub-Transmission'!I65 -> 0 | F81: =D81*E81 -> 0 | H81: ='6. Historical Wholesale'!H81 -> 0 | I81: ='5. UTRs and Sub-Transmission'!I67 -> 0 | J81: =H81*I81 -> 0 | L81: ='6. Historical Wholesale'!L81 -> 0 | M81: ='5. UTRs and Sub-Transmission'!I69 -> 0 | N81: =L81*M81 -> 0 | P81: =J81+N81 -> 0
B82: February | D82: ='6. Historical Wholesale'!D82 -> 0 | E82: =E81 -> 0 | F82: 0 | H82: ='6. Historical Wholesale'!H82 -> 0 | I82: =I81 -> 0 | J82: 0 | L82: ='6. Historical Wholesale'!L82 -> 0 | M82: =M81 -> 0 | N82: 0 | P82: 0
B83: March | D83: ='6. Historical Wholesale'!D83 -> 0 | E83: 0 | F83: 0 | H83: ='6. Historical Wholesale'!H83 -> 0 | I83: 0 | J83: 0 | L83: ='6. Historical Wholesale'!L83 -> 0 | M83: 0 | N83: 0 | P83: 0
B84: April | D84: ='6. Historical Wholesale'!D84 -> 0 | E84: 0 | F84: 0 | H84: ='6. Historical Wholesale'!H84 -> 0 | I84: 0 | J84: 0 | L84: ='6. Historical Wholesale'!L84 -> 0 | M84: 0 | N84: 0 | P84: 0
B85: May | D85: ='6. Historical Wholesale'!D85 -> 0 | E85: 0 | F85: 0 | H85: ='6. Historical Wholesale'!H85 -> 0 | I85: 0 | J85: 0 | L85: ='6. Historical Wholesale'!L85 -> 0 | M85: 0 | N85: 0 | P85: 0
B86: June | D86: ='6. Historical Wholesale'!D86 -> 0 | E86: 0 | F86: 0 | H86: ='6. Historical Wholesale'!H86 -> 0 | I86: 0 | J86: 0 | L86: ='6. Historical Wholesale'!L86 -> 0 | M86: 0 | N86: 0 | P86: 0
B87: July | D87: ='6. Historical Wholesale'!D87 -> 0 | E87: 0 | F87: 0 | H87: ='6. Historical Wholesale'!H87 -> 0 | I87: 0 | J87: 0 | L87: ='6. Historical Wholesale'!L87 -> 0 | M87: 0 | N87: 0 | P87: 0
B88: August | D88: ='6. Historical Wholesale'!D88 -> 0 | E88: 0 | F88: 0 | H88: ='6. Historical Wholesale'!H88 -> 0 | I88: 0 | J88: 0 | L88: ='6. Historical Wholesale'!L88 -> 0 | M88: 0 | N88: 0 | P88: 0
B89: September | D89: ='6. Historical Wholesale'!D89 -> 0 | E89: 0 | F89: 0 | H89: ='6. Historical Wholesale'!H89 -> 0 | I89: 0 | J89: 0 | L89: ='6. Historical Wholesale'!L89 -> 0 | M89: 0 | N89: 0 | P89: 0
B90: October | D90: ='6. Historical Wholesale'!D90 -> 0 | E90: 0 | F90: 0 | H90: ='6. Historical Wholesale'!H90 -> 0 | I90: 0 | J90: 0 | L90: ='6. Historical Wholesale'!L90 -> 0 | M90: 0 | N90: 0 | P90: 0
B91: November | D91: ='6. Historical Wholesale'!D91 -> 0 | E91: 0 | F91: 0 | H91: ='6. Historical Wholesale'!H91 -> 0 | I91: 0 | J91: 0 | L91: ='6. Historical Wholesale'!L91 -> 0 | M91: 0 | N91: 0 | P91: 0
B92: December | D92: ='6. Historical Wholesale'!D92 -> 0 | E92: 0 | F92: 0 | H92: ='6. Historical Wholesale'!H92 -> 0 | I92: 0 | J92: 0 | L92: ='6. Historical Wholesale'!L92 -> 0 | M92: 0 | N92: 0 | P92: 0
B94: Total | D94: =SUM(D81:D92) -> 0 | E94: =IF(D94<>0,F94/D94,0) -> 0 | F94: =SUM(F81:F92) -> 0 | H94: =SUM(H81:H92) -> 0 | I94: =IF(H94<>0,J94/H94,0) -> 0 | J94: =SUM(J81:J92) -> 0 | L94: =SUM(L81:L92) -> 0 | M94: =IF(L94<>0,N94/L94,0) -> 0 | N94: =SUM(N81:N92) -> 0 | P94: =SUM(P81:P92) -> 0
B96: Total | D96: Network | H96: Line Connection | L96: Transformation Connection | P96: Total Line
B98: Month | D98: Units Billed | E98: Rate | F98: Amount | H98: Units Billed | I98: Rate | J98: Amount | L98: Units Billed | M98: Rate | N98: Amount | P98: Amount
B100: January | D100: =D24+D43 -> 25644 | E100: =IF(D100<>0,F100/D100,0) -> 3.686849692 | F100: =F24+F43 -> 94545.5735 | H100: =H24+H43 -> 26192 | I100: =IF(H100<>0,J100/H100,0) -> 0.7894383132 | J100: =J24+J43 -> 20676.9683 | L100: =L24+L43 -> 8843 | M100: =IF(L100<>0,N100/L100,0) -> 1.664536922 | N100: =N24+N43 -> 14719.5 | P100: =J100+N100 -> 35396.4683
B101: February | D101: 23109 | E101: 3.690590657 | F101: 85285.8595 | H101: 25455 | I101: 0.789811483 | J101: 20104.6513 | L101: 8576 | M101: 1.667728545 | N101: 14302.44 | P101: 34407.0913
B102: March | D102: 22810 | E102: 3.693230162 | F102: 84242.58 | H102: 25077 | I102: 0.7909629661 | J102: 19834.9783 | L102: 8197 | M102: 1.670418446 | N102: 13692.42 | P102: 33527.3983
B103: April | D103: 21153 | E103: 3.699024488 | F103: 78245.465 | H103: 23949 | I103: 0.794094125 | J103: 19017.7602 | L103: 7122 | M103: 1.67641112 | N103: 11939.4 | P103: 30957.1602
B104: May | D104: 28878 | E104: 3.695756112 | F104: 106726.045 | H104: 30342 | I104: 0.7924574188 | J104: 24044.743 | L104: 9482 | M104: 1.67284961 | N104: 15861.96 | P104: 39906.703
B105: June | D105: 33726 | E105: 3.692220557 | F105: 124523.8305 | H105: 34358 | I105: 0.7907850835 | J105: 27169.7939 | L105: 11045 | M105: 1.663284744 | N105: 18370.98 | P105: 45540.7739
B106: July | D106: 34214 | E106: 3.683880473 | F106: 126040.2865 | H106: 35690 | I106: 0.7896062398 | J106: 28181.0467 | L106: 11889 | M106: 1.662028766 | N106: 19759.86 | P106: 47940.9067
B107: August | D107: 32226 | E107: 3.682460777 | F107: 118670.981 | H107: 33229 | I107: 0.7880951007 | J107: 26187.6121 | L107: 11861 | M107: 1.668501813 | N107: 19790.1 | P107: 45977.7121
B108: September | D108: 30358 | E108: 3.678015136 | F108: 111657.1835 | H108: 32127 | I108: 0.7869685654 | J108: 25282.9391 | L108: 11769 | M108: 1.665760897 | N108: 19604.34 | P108: 44887.2791
B109: October | D109: 23318 | E109: 3.698483511 | F109: 86241.2385 | H109: 26150 | I109: 0.7923914455 | J109: 20721.0363 | L109: 8591 | M109: 1.687130718 | N109: 14494.14 | P109: 35215.1763
B110: November | D110: 24913 | E110: 3.699284972 | F110: 92160.2865 | H110: 26379 | I110: 0.791636457 | J110: 20882.5781 | L110: 8868 | M110: 1.685967524 | N110: 14951.16 | P110: 35833.7381
B111: December | D111: 24542 | E111: 3.688840233 | F111: 90531.517 | H111: 25992 | I111: 0.7900337796 | J111: 20534.558 | L111: 8796 | M111: 1.671405184 | N111: 14701.68 | P111: 35236.238
B113: Total | D113: =SUM(D100:D111) -> 324891 | E113: =IF(D113<>0,F113/D113,0) -> 3.690070967 | F113: =SUM(F100:F111) -> 1198870.847 | H113: =SUM(H100:H111) -> 344940 | I113: =IF(H113<>0,J113/H113,0) -> 0.7903944608 | J113: =SUM(J100:J111) -> 272638.6653 | L113: =SUM(L100:L111) -> 115039 | M113: =IF(L113<>0,N113/L113,0) -> 1.670633264 | N113: =SUM(N100:N111) -> 192187.98 | P113: =SUM(P100:P111) -> 464826.6453
N115: Transformer Allowance Credit (if applicable) | P115: ='5. UTRs and Sub-Transmission'!I95 -> 0
N117: Total including deduction for Transformer Allowance Credit | P117: =P113+P115 -> 464826.6453

Sheet 9. Adj Network to Current WS
B13: The purpose of this sheet is to re-align the current RTS Network Rates to recover current wholesale network costs.
B22: Rate Class | D22: Unit | F22: Current RTSR-Network | H22: Loss Adjusted Billed kWh | J22: Loss Adjusted Billed kW | L22: Billed Amount | N22: Billed Amount % | P22: Current Wholesale Billing | R22: Proposed RTSR Network
B25: =IF('3. Rate Classes'!Q24=1,'3. Rate Classes'!C24, 0) -> Residential | D25: =IF(ISERROR(VLOOKUP($B25, '3. Rate Classes'!$C$24:$H$45,6,0)), "", VLOOKUP($B25, '3. Rate Classes'!$C$24:$H$45,6,0)) -> kWh | F25: =IF(ISERROR(VLOOKUP($B25,'3. Rate Classes'!$C$24:$N$45, 8,0)), "", VLOOKUP($B25,'3. Rate Classes'!$C$24:$N$45, 8,0)) -> 0.0059 | H25: =VLOOKUP('9. Adj Network to Current WS'!$B25, '4. RRR Data'!$B$27:$M$49,11,0) -> 84532180.05 | J25: =VLOOKUP('9. Adj Network to Current WS'!$B25, '4. RRR Data'!$B$27:$M$49,12,0) -> 0 | L25: =IF(F25="", "", IF(D25="kWh", F25*H25, F25*J25)) -> 498739.8623 | N25: =IF(ISERROR(L25/$L$49), "", L25/$L$49) -> 0.3422260389 | P25: =IF(ISERROR('7. Current Wholesale'!$F$113*N25), "", '7. Current Wholesale'!$F$113*N25) -> 522634.5293 | R25: =IF(D25="","",IF(D25="kWh",IF(H25<>0,P25/H25,),IF(J25<>0,P25/J25,0))) -> 0.006182669476
B26: =IF('3. Rate Classes'!Q25=1,'3. Rate Classes'!C25, 0) -> General Service Less Than 50 kW | D26: =IF(ISERROR(VLOOKUP($B26, '3. Rate Classes'!$C$24:$H$45,6,0)), "", VLOOKUP($B26, '3. Rate Classes'!$C$24:$H$45,6,0)) -> kWh | F26: =IF(ISERROR(VLOOKUP($B26,'3. Rate Classes'!$C$24:$N$45, 8,0)), "", VLOOKUP($B26,'3. Rate Classes'!$C$24:$N$45, 8,0)) -> 0.0055 | H26: =VLOOKUP('9. Adj Network to Current WS'!$B26, '4. RRR Data'!$B$27:$M$49,11,0) -> 37640258.73 | J26: =VLOOKUP('9. Adj Network to Current WS'!$B26, '4. RRR Data'!$B$27:$M$49,12,0) -> 0 | L26: =IF(F26="", "", IF(D26="kWh", F26*H26, F26*J26)) -> 207021.423 | N26: =IF(ISERROR(L26/$L$49), "", L26/$L$49) -> 0.142054259 | P26: =IF(ISERROR('7. Current Wholesale'!$F$113*N26), "", '7. Current Wholesale'!$F$113*N26) -> 216939.8361 | R26: =IF(D26="","",IF(D26="kWh",IF(H26<>0,P26/H26,),IF(J26<>0,P26/J26,0))) -> 0.005763505443
B27: =IF('3. Rate Classes'!Q26=1,'3. Rate Classes'!C26, 0) -> General Service 50 to 4,999 kW | D27: =IF(ISERROR(VLOOKUP($B27, '3. Rate Classes'!$C$24:$H$45,6,0)), "", VLOOKUP($B27, '3. Rate Classes'!$C$24:$H$45,6,0)) -> kW | F27: =IF(ISERROR(VLOOKUP($B27,'3. Rate Classes'!$C$24:$N$45, 8,0)), "", VLOOKUP($B27,'3. Rate Classes'!$C$24:$N$45, 8,0)) -> 2.189 | H27: =VLOOKUP('9. Adj Network to Current WS'!$B27, '4. RRR Data'!$B$27:$M$49,11,0) -> 0 | J27: =VLOOKUP('9. Adj Network to Current WS'!$B27, '4. RRR Data'!$B$27:$M$49,12,0) -> 152191 | L27: 333146.099 | N27: 0.2285986713 | P27: =IF(ISERROR('7. Current Wholesale'!$F$113*N27), "", '7. Current Wholesale'!$F$113*N27) -> 349107.1555 | R27: 2.293875166
B28: =IF('3. Rate Classes'!Q27=1,'3. Rate Classes'!C27, 0) -> General Service 50 to 999 kW - Interval Metered | D28: =IF(ISERROR(VLOOKUP($B28, '3. Rate Classes'!$C$24:$H$45,6,0)), "", VLOOKUP($B28, '3. Rate Classes'!$C$24:$H$45,6,0)) -> kW | F28: =IF(ISERROR(VLOOKUP($B28,'3. Rate Classes'!$C$24:$N$45, 8,0)), "", VLOOKUP($B28,'3. Rate Classes'!$C$24:$N$45, 8,0)) -> 2.3221 | H28: =VLOOKUP('9. Adj Network to Current WS'!$B28, '4. RRR Data'!$B$27:$M$49,11,0) -> 0 | J28: =VLOOKUP('9. Adj Network to Current WS'!$B28, '4. RRR Data'!$B$27:$M$49,12,0) -> 102564 | L28: 238163.8644 | N28: 0.1634236244 | P28: =IF(ISERROR('7. Current Wholesale'!$F$113*N28), "", '7. Current Wholesale'!$F$113*N28) -> 249574.3143 | R28: 2.433351998
B29: =IF('3. Rate Classes'!Q28=1,'3. Rate Classes'!C28, 0) -> General Service 1,000 to 4,999 kW - Interval Meters | D29: =IF(ISERROR(VLOOKUP($B29, '3. Rate Classes'!$C$24:$H$45,6,0)), "", VLOOKUP($B29, '3. Rate Classes'!$C$24:$H$45,6,0)) -> kW | F29: =IF(ISERROR(VLOOKUP($B29,'3. Rate Classes'!$C$24:$N$45, 8,0)), "", VLOOKUP($B29,'3. Rate Classes'!$C$24:$N$45, 8,0)) -> 2.3248 | H29: =VLOOKUP('9. Adj Network to Current WS'!$B29, '4. RRR Data'!$B$27:$M$49,11,0) -> 0 | J29: =VLOOKUP('9. Adj Network to Current WS'!$B29, '4. RRR Data'!$B$27:$M$49,12,0) -> 76096 | L29: 176907.9808 | N29: 0.1213909737 | P29: =IF(ISERROR('7. Current Wholesale'!$F$113*N29), "", '7. Current Wholesale'!$F$113*N29) -> 185383.6564 | R29: 2.436181355
B30: =IF('3. Rate Classes'!Q29=1,'3. Rate Classes'!C29, 0) -> Unmetered Scattered Load | D30: =IF(ISERROR(VLOOKUP($B30, '3. Rate Classes'!$C$24:$H$45,6,0)), "", VLOOKUP($B30, '3. Rate Classes'!$C$24:$H$45,6,0)) -> kWh | F30: =IF(ISERROR(VLOOKUP($B30,'3. Rate Classes'!$C$24:$N$45, 8,0)), "", VLOOKUP($B30,'3. Rate Classes'!$C$24:$N$45, 8,0)) -> 0.0055 | H30: =VLOOKUP('9. Adj Network to Current WS'!$B30, '4. RRR Data'!$B$27:$M$49,11,0) -> 463950.366 | J30: =VLOOKUP('9. Adj Network to Current WS'!$B30, '4. RRR Data'!$B$27:$M$49,12,0) -> 0 | L30: 2551.727013 | N30: 0.001750947727 | P30: =IF(ISERROR('7. Current Wholesale'!$F$113*N30), "", '7. Current Wholesale'!$F$113*N30) -> 2673.98046 | R30: 0.005763505443
B31: =IF('3. Rate Classes'!Q30=1,'3. Rate Classes'!C30, 0) -> Sentinel Lighting | D31: =IF(ISERROR(VLOOKUP($B31, '3. Rate Classes'!$C$24:$H$45,6,0)), "", VLOOKUP($B31, '3. Rate Classes'!$C$24:$H$45,6,0)) -> kW | F31: =IF(ISERROR(VLOOKUP($B31,'3. Rate Classes'!$C$24:$N$45, 8,0)), "", VLOOKUP($B31,'3. Rate Classes'!$C$24:$N$45, 8,0)) -> 1.6137 | H31: =VLOOKUP('9. Adj Network to Current WS'!$B31, '4. RRR Data'!$B$27:$M$49,11,0) -> 0 | J31: =VLOOKUP('9. Adj Network to Current WS'!$B31, '4. RRR Data'!$B$27:$M$49,12,0) -> 31 | L31: 50.0247 | N31: 3.432602088e-05 | P31: =IF(ISERROR('7. Current Wholesale'!$F$113*N31), "", '7. Current Wholesale'!$F$113*N31) -> 52.42138741 | R31: 1.691012497
B32: =IF('3. Rate Classes'!Q31=1,'3. Rate Classes'!C31, 0) -> Street Lighting | D32: =IF(ISERROR(VLOOKUP($B32, '3. Rate Classes'!$C$24:$H$45,6,0)), "", VLOOKUP($B32, '3. Rate Classes'!$C$24:$H$45,6,0)) -> kW | F32: =IF(ISERROR(VLOOKUP($B32,'3. Rate Classes'!$C$24:$N$45, 8,0)), "", VLOOKUP($B32,'3. Rate Classes'!$C$24:$N$45, 8,0)) -> 1.6511 | H32: =VLOOKUP('9. Adj Network to Current WS'!$B32, '4. RRR Data'!$B$27:$M$49,11,0) -> 0 | J32: =VLOOKUP('9. Adj Network to Current WS'!$B32, '4. RRR Data'!$B$27:$M$49,12,0) -> 460 | L32: 759.506 | N32: 0.0005211589238 | P32: =IF(ISERROR('7. Current Wholesale'!$F$113*N32), "", '7. Current Wholesale'!$F$113*N32) -> 795.8939937 | R32: 1.730204334
B33: =IF('3. Rate Classes'!Q32=1,'3. Rate Classes'!C32, 0) -> 0 | D33: =IF(ISERROR(VLOOKUP($B33, '3. Rate Classes'!$C$24:$H$45,6,0)), "", VLOOKUP($B33, '3. Rate Classes'!$C$24:$H$45,6,0)) ->  | F33: =IF(ISERROR(VLOOKUP($B33,'3. Rate Classes'!$C$24:$N$45, 8,0)), "", VLOOKUP($B33,'3. Rate Classes'!$C$24:$N$45, 8,0)) ->  | H33: =VLOOKUP('9. Adj Network to Current WS'!$B33, '4. RRR Data'!$B$27:$M$49,11,0) -> 0 | J33: =VLOOKUP('9. Adj Network to Current WS'!$B33, '4. RRR Data'!$B$27:$M$49,12,0) -> 0 | P33: =IF(ISERROR('7. Current Wholesale'!$F$113*N33), "", '7. Current Wholesale'!$F$113*N33) -> 
B34: =IF('3. Rate Classes'!Q33=1,'3. Rate Classes'!C33, 0) -> 0 | D34: =IF(ISERROR(VLOOKUP($B34, '3. Rate Classes'!$C$24:$H$45,6,0)), "", VLOOKUP($B34, '3. Rate Classes'!$C$24:$H$45,6,0)) ->  | F34: =IF(ISERROR(VLOOKUP($B34,'3. Rate Classes'!$C$24:$N$45, 8,0)), "", VLOOKUP($B34,'3. Rate Classes'!$C$24:$N$45, 8,0)) ->  | H34: =VLOOKUP('9. Adj Network to Current WS'!$B34, '4. RRR Data'!$B$27:$M$49,11,0) -> 0 | J34: =VLOOKUP('9. Adj Network to Current WS'!$B34, '4. RRR Data'!$B$27:$M$49,12,0) -> 0 | P34: =IF(ISERROR('7. Current Wholesale'!$F$113*N34), "", '7. Current Wholesale'!$F$113*N34) -> 
B35: =IF('3. Rate Classes'!Q34=1,'3. Rate Classes'!C34, 0) -> 0 | D35: =IF(ISERROR(VLOOKUP($B35, '3. Rate Classes'!$C$24:$H$45,6,0)), "", VLOOKUP($B35, '3. Rate Classes'!$C$24:$H$45,6,0)) ->  | F35: =IF(ISERROR(VLOOKUP($B35,'3. Rate Classes'!$C$24:$N$45, 8,0)), "", VLOOKUP($B35,'3. Rate Classes'!$C$24:$N$45, 8,0)) ->  | H35: =VLOOKUP('9. Adj Network to Current WS'!$B35, '4. RRR Data'!$B$27:$M$49,11,0) -> 0 | J35: =VLOOKUP('9. Adj Network to Current WS'!$B35, '4. RRR Data'!$B$27:$M$49,12,0) -> 0 | P35: =IF(ISERROR('7. Current Wholesale'!$F$113*N35), "", '7. Current Wholesale'!$F$113*N35) -> 
B36: =IF('3. Rate Classes'!Q35=1,'3. Rate Classes'!C35, 0) -> 0 | D36: =IF(ISERROR(VLOOKUP($B36, '3. Rate Classes'!$C$24:$H$45,6,0)), "", VLOOKUP($B36, '3. Rate Classes'!$C$24:$H$45,6,0)) ->  | F36: =IF(ISERROR(VLOOKUP($B36,'3. Rate Classes'!$C$24:$N$45, 8,0)), "", VLOOKUP($B36,'3. Rate Classes'!$C$24:$N$45, 8,0)) ->  | H36: =VLOOKUP('9. Adj Network to Current WS'!$B36, '4. RRR Data'!$B$27:$M$49,11,0) -> 0 | J36: =VLOOKUP('9. Adj Network to Current WS'!$B36, '4. RRR Data'!$B$27:$M$49,12,0) -> 0 | P36: =IF(ISERROR('7. Current Wholesale'!$F$113*N36), "", '7. Current Wholesale'!$F$113*N36) -> 
B37: =IF('3. Rate Classes'!Q36=1,'3. Rate Classes'!C36, 0) -> 0 | D37: =IF(ISERROR(VLOOKUP($B37, '3. Rate Classes'!$C$24:$H$45,6,0)), "", VLOOKUP($B37, '3. Rate Classes'!$C$24:$H$45,6,0)) ->  | F37: =IF(ISERROR(VLOOKUP($B37,'3. Rate Classes'!$C$24:$N$45, 8,0)), "", VLOOKUP($B37,'3. Rate Classes'!$C$24:$N$45, 8,0)) ->  | H37: =VLOOKUP('9. Adj Network to Current WS'!$B37, '4. RRR Data'!$B$27:$M$49,11,0) -> 0 | J37: =VLOOKUP('9. Adj Network to Current WS'!$B37, '4. RRR Data'!$B$27:$M$49,12,0) -> 0 | P37: =IF(ISERROR('7. Current Wholesale'!$F$113*N37), "", '7. Current Wholesale'!$F$113*N37) -> 
B38: =IF('3. Rate Classes'!Q37=1,'3. Rate Classes'!C37, 0) -> 0 | D38: =IF(ISERROR(VLOOKUP($B38, '3. Rate Classes'!$C$24:$H$45,6,0)), "", VLOOKUP($B38, '3. Rate Classes'!$C$24:$H$45,6,0)) ->  | F38: =IF(ISERROR(VLOOKUP($B38,'3. Rate Classes'!$C$24:$N$45, 8,0)), "", VLOOKUP($B38,'3. Rate Classes'!$C$24:$N$45, 8,0)) ->  | H38: =VLOOKUP('9. Adj Network to Current WS'!$B38, '4. RRR Data'!$B$27:$M$49,11,0) -> 0 | J38: =VLOOKUP('9. Adj Network to Current WS'!$B38, '4. RRR Data'!$B$27:$M$49,12,0) -> 0 | P38: =IF(ISERROR('7. Current Wholesale'!$F$113*N38), "", '7. Current Wholesale'!$F$113*N38) -> 
B39: =IF('3. Rate Classes'!Q38=1,'3. Rate Classes'!C38, 0) -> 0 | D39: =IF(ISERROR(VLOOKUP($B39, '3. Rate Classes'!$C$24:$H$45,6,0)), "", VLOOKUP($B39, '3. Rate Classes'!$C$24:$H$45,6,0)) ->  | F39: =IF(ISERROR(VLOOKUP($B39,'3. Rate Classes'!$C$24:$N$45, 8,0)), "", VLOOKUP($B39,'3. Rate Classes'!$C$24:$N$45, 8,0)) ->  | H39: =VLOOKUP('9. Adj Network to Current WS'!$B39, '4. RRR Data'!$B$27:$M$49,11,0) -> 0 | J39: =VLOOKUP('9. Adj Network to Current WS'!$B39, '4. RRR Data'!$B$27:$M$49,12,0) -> 0 | L39: =IF(F39="", "", IF(D39="kWh", F39*H39, F39*J39)) ->  | P39: =IF(ISERROR('7. Current Wholesale'!$F$113*N39), "", '7. Current Wholesale'!$F$113*N39) -> 
B40: =IF('3. Rate Classes'!Q39=1,'3. Rate Classes'!C39, 0) -> 0 | D40: =IF(ISERROR(VLOOKUP($B40, '3. Rate Classes'!$C$24:$H$45,6,0)), "", VLOOKUP($B40, '3. Rate Classes'!$C$24:$H$45,6,0)) ->  | F40: =IF(ISERROR(VLOOKUP($B40,'3. Rate Classes'!$C$24:$N$45, 8,0)), "", VLOOKUP($B40,'3. Rate Classes'!$C$24:$N$45, 8,0)) ->  | H40: =VLOOKUP('9. Adj Network to Current WS'!$B40, '4. RRR Data'!$B$27:$M$49,11,0) -> 0 | J40: =VLOOKUP('9. Adj Network to Current WS'!$B40, '4. RRR Data'!$B$27:$M$49,12,0) -> 0 | P40: =IF(ISERROR('7. Current Wholesale'!$F$113*N40), "", '7. Current Wholesale'!$F$113*N40) -> 
B41: =IF('3. Rate Classes'!Q40=1,'3. Rate Classes'!C40, 0) -> 0 | D41: =IF(ISERROR(VLOOKUP($B41, '3. Rate Classes'!$C$24:$H$45,6,0)), "", VLOOKUP($B41, '3. Rate Classes'!$C$24:$H$45,6,0)) ->  | F41: =IF(ISERROR(VLOOKUP($B41,'3. Rate Classes'!$C$24:$N$45, 8,0)), "", VLOOKUP($B41,'3. Rate Classes'!$C$24:$N$45, 8,0)) ->  | H41: =VLOOKUP('9. Adj Network to Current WS'!$B41, '4. RRR Data'!$B$27:$M$49,11,0) -> 0 | J41: =VLOOKUP('9. Adj Network to Current WS'!$B41, '4. RRR Data'!$B$27:$M$49,12,0) -> 0 | P41: =IF(ISERROR('7. Current Wholesale'!$F$113*N41), "", '7. Current Wholesale'!$F$113*N41) -> 
B42: =IF('3. Rate Classes'!Q41=1,'3. Rate Classes'!C41, 0) -> 0 | D42: =IF(ISERROR(VLOOKUP($B42, '3. Rate Classes'!$C$24:$H$45,6,0)), "", VLOOKUP($B42, '3. Rate Classes'!$C$24:$H$45,6,0)) ->  | F42: =IF(ISERROR(VLOOKUP($B42,'3. Rate Classes'!$C$24:$N$45, 8,0)), "", VLOOKUP($B42,'3. Rate Classes'!$C$24:$N$45, 8,0)) ->  | H42: =VLOOKUP('9. Adj Network to Current WS'!$B42, '4. RRR Data'!$B$27:$M$49,11,0) -> 0 | J42: =VLOOKUP('9. Adj Network to Current WS'!$B42, '4. RRR Data'!$B$27:$M$49,12,0) -> 0 | P42: =IF(ISERROR('7. Current Wholesale'!$F$113*N42), "", '7. Current Wholesale'!$F$113*N42) -> 
B43: =IF('3. Rate Classes'!Q42=1,'3. Rate Classes'!C42, 0) -> 0 | D43: =IF(ISERROR(VLOOKUP($B43, '3. Rate Classes'!$C$24:$H$45,6,0)), "", VLOOKUP($B43, '3. Rate Classes'!$C$24:$H$45,6,0)) ->  | F43: =IF(ISERROR(VLOOKUP($B43,'3. Rate Classes'!$C$24:$N$45, 8,0)), "", VLOOKUP($B43,'3. Rate Classes'!$C$24:$N$45, 8,0)) ->  | H43: =VLOOKUP('9. Adj Network to Current WS'!$B43, '4. RRR Data'!$B$27:$M$49,11,0) -> 0 | J43: =VLOOKUP('9. Adj Network to Current WS'!$B43, '4. RRR Data'!$B$27:$M$49,12,0) -> 0 | P43: =IF(ISERROR('7. Current Wholesale'!$F$113*N43), "", '7. Current Wholesale'!$F$113*N43) -> 
B44: =IF('3. Rate Classes'!Q43=1,'3. Rate Classes'!C43, 0) -> 0 | D44: =IF(ISERROR(VLOOKUP($B44, '3. Rate Classes'!$C$24:$H$45,6,0)), "", VLOOKUP($B44, '3. Rate Classes'!$C$24:$H$45,6,0)) ->  | F44: =IF(ISERROR(VLOOKUP($B44,'3. Rate Classes'!$C$24:$N$45, 8,0)), "", VLOOKUP($B44,'3. Rate Classes'!$C$24:$N$45, 8,0)) ->  | H44: =VLOOKUP('9. Adj Network to Current WS'!$B44, '4. RRR Data'!$B$27:$M$49,11,0) -> 0 | J44: =VLOOKUP('9. Adj Network to Current WS'!$B44, '4. RRR Data'!$B$27:$M$49,12,0) -> 0 | P44: =IF(ISERROR('7. Current Wholesale'!$F$113*N44), "", '7. Current Wholesale'!$F$113*N44) -> 
B45: =IF('3. Rate Classes'!Q44=1,'3. Rate Classes'!C44, 0) -> 0 | D45: =IF(ISERROR(VLOOKUP($B45, '3. Rate Classes'!$C$24:$H$45,6,0)), "", VLOOKUP($B45, '3. Rate Classes'!$C$24:$H$45,6,0)) ->  | F45: =IF(ISERROR(VLOOKUP($B45,'3. Rate Classes'!$C$24:$N$45, 8,0)), "", VLOOKUP($B45,'3. Rate Classes'!$C$24:$N$45, 8,0)) ->  | H45: =VLOOKUP('9. Adj Network to Current WS'!$B45, '4. RRR Data'!$B$27:$M$49,11,0) -> 0 | J45: =VLOOKUP('9. Adj Network to Current WS'!$B45, '4. RRR Data'!$B$27:$M$49,12,0) -> 0 | P45: =IF(ISERROR('7. Current Wholesale'!$F$113*N45), "", '7. Current Wholesale'!$F$113*N45) -> 
B46: =IF('3. Rate Classes'!Q45=1,'3. Rate Classes'!C45, 0) -> 0 | D46: =IF(ISERROR(VLOOKUP($B46, '3. Rate Classes'!$C$24:$H$45,6,0)), "", VLOOKUP($B46, '3. Rate Classes'!$C$24:$H$45,6,0)) ->  | F46: =IF(ISERROR(VLOOKUP($B46,'3. Rate Classes'!$C$24:$N$45, 8,0)), "", VLOOKUP($B46,'3. Rate Classes'!$C$24:$N$45, 8,0)) ->  | H46: =VLOOKUP('9. Adj Network to Current WS'!$B46, '4. RRR Data'!$B$27:$M$49,11,0) -> 0 | J46: =VLOOKUP('9. Adj Network to Current WS'!$B46, '4. RRR Data'!$B$27:$M$49,12,0) -> 0 | P46: =IF(ISERROR('7. Current Wholesale'!$F$113*N46), "", '7. Current Wholesale'!$F$113*N46) -> 
L49: =SUM(L25:L46) -> 1457340.487

Sheet 10. Adj Conn. to Current WS
B13: The purpose of this sheet is to re-align the current RTS Connection Rates to recover current wholesale connection costs.
B22: Rate Class | D22: Unit | F22: Current RTSR-Connection | H22: Loss Adjusted Billed kWh | J22: Loss Adjusted Billed kW | L22: Billed Amount | N22: Billed Amount % | P22: Current Wholesale Billing | R22: Proposed RTSR Connection
B25: =IF('3. Rate Classes'!Q24=1,'3. Rate Classes'!C24, 0) -> Residential | D25: =IF(ISERROR(VLOOKUP($B25, '3. Rate Classes'!$C$24:$H$45,6,0)), "", VLOOKUP($B25, '3. Rate Classes'!$C$24:$H$45,6,0)) -> kWh | F25: =IF(ISERROR(VLOOKUP($B25,'3. Rate Classes'!$C$24:$N$45, 11,0)), "", VLOOKUP($B25,'3. Rate Classes'!$C$24:$N$45, 11,0)) -> 0.0038 | H25: =VLOOKUP('9. Adj Network to Current WS'!$B25, '4. RRR Data'!$B$27:$M$49,11,0) -> 84532180.05 | J25: =VLOOKUP('9. Adj Network to Current WS'!$B25, '4. RRR Data'!$B$27:$M$49,12,0) -> 0 | L25: =IF(F25="", "", IF(D25="kWh", F25*H25, F25*J25)) -> 321222.2842 | N25: =IF(ISERROR(L25/$L$49), "", L25/$L$49) -> 0.3441500801 | P25: =IF(ISERROR('7. Current Wholesale'!$P$117*N25), "", '7. Current Wholesale'!$P$117*N25) -> 241782.2377 | R25: =IF(D25="","",IF(D25="kWh",IF(H25<>0,P25/H25,),IF(J25<>0,P25/J25,0))) -> 0.002860238994
B26: =IF('3. Rate Classes'!Q25=1,'3. Rate Classes'!C25, 0) -> General Service Less Than 50 kW | D26: =IF(ISERROR(VLOOKUP($B26, '3. Rate Classes'!$C$24:$H$45,6,0)), "", VLOOKUP($B26, '3. Rate Classes'!$C$24:$H$45,6,0)) -> kWh | F26: =IF(ISERROR(VLOOKUP($B26,'3. Rate Classes'!$C$24:$N$45, 11,0)), "", VLOOKUP($B26,'3. Rate Classes'!$C$24:$N$45, 11,0)) -> 0.0034 | H26: =VLOOKUP('9. Adj Network to Current WS'!$B26, '4. RRR Data'!$B$27:$M$49,11,0) -> 37640258.73 | J26: =VLOOKUP('9. Adj Network to Current WS'!$B26, '4. RRR Data'!$B$27:$M$49,12,0) -> 0 | L26: 127976.8797 | N26: 0.1371114507 | P26: =IF(ISERROR('7. Current Wholesale'!$P$117*N26), "", '7. Current Wholesale'!$P$117*N26) -> 96327.4899 | R26: 0.002559161205
B27: =IF('3. Rate Classes'!Q26=1,'3. Rate Classes'!C26, 0) -> General Service 50 to 4,999 kW | D27: =IF(ISERROR(VLOOKUP($B27, '3. Rate Classes'!$C$24:$H$45,6,0)), "", VLOOKUP($B27, '3. Rate Classes'!$C$24:$H$45,6,0)) -> kW | F27: =IF(ISERROR(VLOOKUP($B27,'3. Rate Classes'!$C$24:$N$45, 11,0)), "", VLOOKUP($B27,'3. Rate Classes'!$C$24:$N$45, 11,0)) -> 1.3815 | H27: =VLOOKUP('9. Adj Network to Current WS'!$B27, '4. RRR Data'!$B$27:$M$49,11,0) -> 0 | J27: =VLOOKUP('9. Adj Network to Current WS'!$B27, '4. RRR Data'!$B$27:$M$49,12,0) -> 152191 | L27: 210251.8665 | N27: 0.225258957 | P27: =IF(ISERROR('7. Current Wholesale'!$P$117*N27), "", '7. Current Wholesale'!$P$117*N27) -> 158255.4177 | R27: 1.039847413
B28: =IF('3. Rate Classes'!Q27=1,'3. Rate Classes'!C27, 0) -> General Service 50 to 999 kW - Interval Metered | D28: =IF(ISERROR(VLOOKUP($B28, '3. Rate Classes'!$C$24:$H$45,6,0)), "", VLOOKUP($B28, '3. Rate Classes'!$C$24:$H$45,6,0)) -> kW | F28: =IF(ISERROR(VLOOKUP($B28,'3. Rate Classes'!$C$24:$N$45, 11,0)), "", VLOOKUP($B28,'3. Rate Classes'!$C$24:$N$45, 11,0)) -> 1.5267 | H28: =VLOOKUP('9. Adj Network to Current WS'!$B28, '4. RRR Data'!$B$27:$M$49,11,0) -> 0 | J28: =VLOOKUP('9. Adj Network to Current WS'!$B28, '4. RRR Data'!$B$27:$M$49,12,0) -> 102564 | L28: 156584.4588 | N28: 0.1677609453 | P28: =IF(ISERROR('7. Current Wholesale'!$P$117*N28), "", '7. Current Wholesale'!$P$117*N28) -> 117860.2566 | R28: 1.149138651
B29: =IF('3. Rate Classes'!Q28=1,'3. Rate Classes'!C28, 0) -> General Service 1,000 to 4,999 kW - Interval Meters | D29: =IF(ISERROR(VLOOKUP($B29, '3. Rate Classes'!$C$24:$H$45,6,0)), "", VLOOKUP($B29, '3. Rate Classes'!$C$24:$H$45,6,0)) -> kW | F29: =IF(ISERROR(VLOOKUP($B29,'3. Rate Classes'!$C$24:$N$45, 11,0)), "", VLOOKUP($B29,'3. Rate Classes'!$C$24:$N$45, 11,0)) -> 1.5144 | H29: =VLOOKUP('9. Adj Network to Current WS'!$B29, '4. RRR Data'!$B$27:$M$49,11,0) -> 0 | J29: =VLOOKUP('9. Adj Network to Current WS'!$B29, '4. RRR Data'!$B$27:$M$49,12,0) -> 76096 | L29: 115239.7824 | N29: 0.1234652211 | P29: =IF(ISERROR('7. Current Wholesale'!$P$117*N29), "", '7. Current Wholesale'!$P$117*N29) -> 86740.34719 | R29: 1.139880509
B30: =IF('3. Rate Classes'!Q29=1,'3. Rate Classes'!C29, 0) -> Unmetered Scattered Load | D30: =IF(ISERROR(VLOOKUP($B30, '3. Rate Classes'!$C$24:$H$45,6,0)), "", VLOOKUP($B30, '3. Rate Classes'!$C$24:$H$45,6,0)) -> kWh | F30: =IF(ISERROR(VLOOKUP($B30,'3. Rate Classes'!$C$24:$N$45, 11,0)), "", VLOOKUP($B30,'3. Rate Classes'!$C$24:$N$45, 11,0)) -> 0.0034 | H30: =VLOOKUP('9. Adj Network to Current WS'!$B30, '4. RRR Data'!$B$27:$M$49,11,0) -> 463950.366 | J30: =VLOOKUP('9. Adj Network to Current WS'!$B30, '4. RRR Data'!$B$27:$M$49,12,0) -> 0 | L30: 1577.431244 | N30: 0.001690023127 | P30: =IF(ISERROR('7. Current Wholesale'!$P$117*N30), "", '7. Current Wholesale'!$P$117*N30) -> 1187.323778 | R30: 0.002559161205
B31: =IF('3. Rate Classes'!Q30=1,'3. Rate Classes'!C30, 0) -> Sentinel Lighting | D31: =IF(ISERROR(VLOOKUP($B31, '3. Rate Classes'!$C$24:$H$45,6,0)), "", VLOOKUP($B31, '3. Rate Classes'!$C$24:$H$45,6,0)) -> kW | F31: =IF(ISERROR(VLOOKUP($B31,'3. Rate Classes'!$C$24:$N$45, 11,0)), "", VLOOKUP($B31,'3. Rate Classes'!$C$24:$N$45, 11,0)) -> 1.1163 | H31: =VLOOKUP('9. Adj Network to Current WS'!$B31, '4. RRR Data'!$B$27:$M$49,11,0) -> 0 | J31: =VLOOKUP('9. Adj Network to Current WS'!$B31, '4. RRR Data'!$B$27:$M$49,12,0) -> 31 | L31: 34.6053 | N31: 3.707531312e-05 | P31: =IF(ISERROR('7. Current Wholesale'!$P$117*N31), "", '7. Current Wholesale'!$P$117*N31) -> 26.04721802 | R31: 0.8402328393
B32: =IF('3. Rate Classes'!Q31=1,'3. Rate Classes'!C31, 0) -> Street Lighting | D32: =IF(ISERROR(VLOOKUP($B32, '3. Rate Classes'!$C$24:$H$45,6,0)), "", VLOOKUP($B32, '3. Rate Classes'!$C$24:$H$45,6,0)) -> kW | F32: =IF(ISERROR(VLOOKUP($B32,'3. Rate Classes'!$C$24:$N$45, 11,0)), "", VLOOKUP($B32,'3. Rate Classes'!$C$24:$N$45, 11,0)) -> 1.0678 | H32: =VLOOKUP('9. Adj Network to Current WS'!$B32, '4. RRR Data'!$B$27:$M$49,11,0) -> 0 | J32: =VLOOKUP('9. Adj Network to Current WS'!$B32, '4. RRR Data'!$B$27:$M$49,12,0) -> 460 | L32: 491.188 | N32: 0.0005262473927 | P32: =IF(ISERROR('7. Current Wholesale'!$P$117*N32), "", '7. Current Wholesale'!$P$117*N32) -> 369.7144924 | R32: 0.8037271574
B33: =IF('3. Rate Classes'!Q32=1,'3. Rate Classes'!C32, 0) -> 0 | D33: =IF(ISERROR(VLOOKUP($B33, '3. Rate Classes'!$C$24:$H$45,6,0)), "", VLOOKUP($B33, '3. Rate Classes'!$C$24:$H$45,6,0)) ->  | F33: =IF(ISERROR(VLOOKUP($B33,'3. Rate Classes'!$C$24:$N$45, 11,0)), "", VLOOKUP($B33,'3. Rate Classes'!$C$24:$N$45, 11,0)) ->  | H33: =VLOOKUP('9. Adj Network to Current WS'!$B33, '4. RRR Data'!$B$27:$M$49,11,0) -> 0 | J33: =VLOOKUP('9. Adj Network to Current WS'!$B33, '4. RRR Data'!$B$27:$M$49,12,0) -> 0 | P33: =IF(ISERROR('7. Current Wholesale'!$P$117*N33), "", '7. Current Wholesale'!$P$117*N33) -> 
B34: =IF('3. Rate Classes'!Q33=1,'3. Rate Classes'!C33, 0) -> 0 | D34: =IF(ISERROR(VLOOKUP($B34, '3. Rate Classes'!$C$24:$H$45,6,0)), "", VLOOKUP($B34, '3. Rate Classes'!$C$24:$H$45,6,0)) ->  | F34: =IF(ISERROR(VLOOKUP($B34,'3. Rate Classes'!$C$24:$N$45, 11,0)), "", VLOOKUP($B34,'3. Rate Classes'!$C$24:$N$45, 11,0)) ->  | H34: =VLOOKUP('9. Adj Network to Current WS'!$B34, '4. RRR Data'!$B$27:$M$49,11,0) -> 0 | J34: =VLOOKUP('9. Adj Network to Current WS'!$B34, '4. RRR Data'!$B$27:$M$49,12,0) -> 0 | P34: =IF(ISERROR('7. Current Wholesale'!$P$117*N34), "", '7. Current Wholesale'!$P$117*N34) -> 
B35: =IF('3. Rate Classes'!Q34=1,'3. Rate Classes'!C34, 0) -> 0 | D35: =IF(ISERROR(VLOOKUP($B35, '3. Rate Classes'!$C$24:$H$45,6,0)), "", VLOOKUP($B35, '3. Rate Classes'!$C$24:$H$45,6,0)) ->  | F35: =IF(ISERROR(VLOOKUP($B35,'3. Rate Classes'!$C$24:$N$45, 11,0)), "", VLOOKUP($B35,'3. Rate Classes'!$C$24:$N$45, 11,0)) ->  | H35: =VLOOKUP('9. Adj Network to Current WS'!$B35, '4. RRR Data'!$B$27:$M$49,11,0) -> 0 | J35: =VLOOKUP('9. Adj Network to Current WS'!$B35, '4. RRR Data'!$B$27:$M$49,12,0) -> 0 | P35: =IF(ISERROR('7. Current Wholesale'!$P$117*N35), "", '7. Current Wholesale'!$P$117*N35) -> 
B36: =IF('3. Rate Classes'!Q35=1,'3. Rate Classes'!C35, 0) -> 0 | D36: =IF(ISERROR(VLOOKUP($B36, '3. Rate Classes'!$C$24:$H$45,6,0)), "", VLOOKUP($B36, '3. Rate Classes'!$C$24:$H$45,6,0)) ->  | F36: =IF(ISERROR(VLOOKUP($B36,'3. Rate Classes'!$C$24:$N$45, 11,0)), "", VLOOKUP($B36,'3. Rate Classes'!$C$24:$N$45, 11,0)) ->  | H36: =VLOOKUP('9. Adj Network to Current WS'!$B36, '4. RRR Data'!$B$27:$M$49,11,0) -> 0 | J36: =VLOOKUP('9. Adj Network to Current WS'!$B36, '4. RRR Data'!$B$27:$M$49,12,0) -> 0 | P36: =IF(ISERROR('7. Current Wholesale'!$P$117*N36), "", '7. Current Wholesale'!$P$117*N36) -> 
B37: =IF('3. Rate Classes'!Q36=1,'3. Rate Classes'!C36, 0) -> 0 | D37: =IF(ISERROR(VLOOKUP($B37, '3. Rate Classes'!$C$24:$H$45,6,0)), "", VLOOKUP($B37, '3. Rate Classes'!$C$24:$H$45,6,0)) ->  | F37: =IF(ISERROR(VLOOKUP($B37,'3. Rate Classes'!$C$24:$N$45, 11,0)), "", VLOOKUP($B37,'3. Rate Classes'!$C$24:$N$45, 11,0)) ->  | H37: =VLOOKUP('9. Adj Network to Current WS'!$B37, '4. RRR Data'!$B$27:$M$49,11,0) -> 0 | J37: =VLOOKUP('9. Adj Network to Current WS'!$B37, '4. RRR Data'!$B$27:$M$49,12,0) -> 0 | P37: =IF(ISERROR('7. Current Wholesale'!$P$117*N37), "", '7. Current Wholesale'!$P$117*N37) -> 
B38: =IF('3. Rate Classes'!Q37=1,'3. Rate Classes'!C37, 0) -> 0 | D38: =IF(ISERROR(VLOOKUP($B38, '3. Rate Classes'!$C$24:$H$45,6,0)), "", VLOOKUP($B38, '3. Rate Classes'!$C$24:$H$45,6,0)) ->  | F38: =IF(ISERROR(VLOOKUP($B38,'3. Rate Classes'!$C$24:$N$45, 11,0)), "", VLOOKUP($B38,'3. Rate Classes'!$C$24:$N$45, 11,0)) ->  | H38: =VLOOKUP('9. Adj Network to Current WS'!$B38, '4. RRR Data'!$B$27:$M$49,11,0) -> 0 | J38: =VLOOKUP('9. Adj Network to Current WS'!$B38, '4. RRR Data'!$B$27:$M$49,12,0) -> 0 | P38: =IF(ISERROR('7. Current Wholesale'!$P$117*N38), "", '7. Current Wholesale'!$P$117*N38) -> 
B39: =IF('3. Rate Classes'!Q38=1,'3. Rate Classes'!C38, 0) -> 0 | D39: =IF(ISERROR(VLOOKUP($B39, '3. Rate Classes'!$C$24:$H$45,6,0)), "", VLOOKUP($B39, '3. Rate Classes'!$C$24:$H$45,6,0)) ->  | F39: =IF(ISERROR(VLOOKUP($B39,'3. Rate Classes'!$C$24:$N$45, 11,0)), "", VLOOKUP($B39,'3. Rate Classes'!$C$24:$N$45, 11,0)) ->  | H39: =VLOOKUP('9. Adj Network to Current WS'!$B39, '4. RRR Data'!$B$27:$M$49,11,0) -> 0 | J39: =VLOOKUP('9. Adj Network to Current WS'!$B39, '4. RRR Data'!$B$27:$M$49,12,0) -> 0 | P39: =IF(ISERROR('7. Current Wholesale'!$P$117*N39), "", '7. Current Wholesale'!$P$117*N39) -> 
B40: =IF('3. Rate Classes'!Q39=1,'3. Rate Classes'!C39, 0) -> 0 | D40: =IF(ISERROR(VLOOKUP($B40, '3. Rate Classes'!$C$24:$H$45,6,0)), "", VLOOKUP($B40, '3. Rate Classes'!$C$24:$H$45,6,0)) ->  | F40: =IF(ISERROR(VLOOKUP($B40,'3. Rate Classes'!$C$24:$N$45, 11,0)), "", VLOOKUP($B40,'3. Rate Classes'!$C$24:$N$45, 11,0)) ->  | H40: =VLOOKUP('9. Adj Network to Current WS'!$B40, '4. RRR Data'!$B$27:$M$49,11,0) -> 0 | J40: =VLOOKUP('9. Adj Network to Current WS'!$B40, '4. RRR Data'!$B$27:$M$49,12,0) -> 0 | P40: =IF(ISERROR('7. Current Wholesale'!$P$117*N40), "", '7. Current Wholesale'!$P$117*N40) -> 
B41: =IF('3. Rate Classes'!Q40=1,'3. Rate Classes'!C40, 0) -> 0 | D41: =IF(ISERROR(VLOOKUP($B41, '3. Rate Classes'!$C$24:$H$45,6,0)), "", VLOOKUP($B41, '3. Rate Classes'!$C$24:$H$45,6,0)) ->  | F41: =IF(ISERROR(VLOOKUP($B41,'3. Rate Classes'!$C$24:$N$45, 11,0)), "", VLOOKUP($B41,'3. Rate Classes'!$C$24:$N$45, 11,0)) ->  | H41: =VLOOKUP('9. Adj Network to Current WS'!$B41, '4. RRR Data'!$B$27:$M$49,11,0) -> 0 | J41: =VLOOKUP('9. Adj Network to Current WS'!$B41, '4. RRR Data'!$B$27:$M$49,12,0) -> 0 | P41: =IF(ISERROR('7. Current Wholesale'!$P$117*N41), "", '7. Current Wholesale'!$P$117*N41) -> 
B42: =IF('3. Rate Classes'!Q41=1,'3. Rate Classes'!C41, 0) -> 0 | D42: =IF(ISERROR(VLOOKUP($B42, '3. Rate Classes'!$C$24:$H$45,6,0)), "", VLOOKUP($B42, '3. Rate Classes'!$C$24:$H$45,6,0)) ->  | F42: =IF(ISERROR(VLOOKUP($B42,'3. Rate Classes'!$C$24:$N$45, 11,0)), "", VLOOKUP($B42,'3. Rate Classes'!$C$24:$N$45, 11,0)) ->  | H42: =VLOOKUP('9. Adj Network to Current WS'!$B42, '4. RRR Data'!$B$27:$M$49,11,0) -> 0 | J42: =VLOOKUP('9. Adj Network to Current WS'!$B42, '4. RRR Data'!$B$27:$M$49,12,0) -> 0 | P42: =IF(ISERROR('7. Current Wholesale'!$P$117*N42), "", '7. Current Wholesale'!$P$117*N42) -> 
B43: =IF('3. Rate Classes'!Q42=1,'3. Rate Classes'!C42, 0) -> 0 | D43: =IF(ISERROR(VLOOKUP($B43, '3. Rate Classes'!$C$24:$H$45,6,0)), "", VLOOKUP($B43, '3. Rate Classes'!$C$24:$H$45,6,0)) ->  | F43: =IF(ISERROR(VLOOKUP($B43,'3. Rate Classes'!$C$24:$N$45, 11,0)), "", VLOOKUP($B43,'3. Rate Classes'!$C$24:$N$45, 11,0)) ->  | H43: =VLOOKUP('9. Adj Network to Current WS'!$B43, '4. RRR Data'!$B$27:$M$49,11,0) -> 0 | J43: =VLOOKUP('9. Adj Network to Current WS'!$B43, '4. RRR Data'!$B$27:$M$49,12,0) -> 0 | P43: =IF(ISERROR('7. Current Wholesale'!$P$117*N43), "", '7. Current Wholesale'!$P$117*N43) -> 
B44: =IF('3. Rate Classes'!Q43=1,'3. Rate Classes'!C43, 0) -> 0 | D44: =IF(ISERROR(VLOOKUP($B44, '3. Rate Classes'!$C$24:$H$45,6,0)), "", VLOOKUP($B44, '3. Rate Classes'!$C$24:$H$45,6,0)) ->  | F44: =IF(ISERROR(VLOOKUP($B44,'3. Rate Classes'!$C$24:$N$45, 11,0)), "", VLOOKUP($B44,'3. Rate Classes'!$C$24:$N$45, 11,0)) ->  | H44: =VLOOKUP('9. Adj Network to Current WS'!$B44, '4. RRR Data'!$B$27:$M$49,11,0) -> 0 | J44: =VLOOKUP('9. Adj Network to Current WS'!$B44, '4. RRR Data'!$B$27:$M$49,12,0) -> 0 | P44: =IF(ISERROR('7. Current Wholesale'!$P$117*N44), "", '7. Current Wholesale'!$P$117*N44) -> 
B45: =IF('3. Rate Classes'!Q44=1,'3. Rate Classes'!C44, 0) -> 0 | D45: =IF(ISERROR(VLOOKUP($B45, '3. Rate Classes'!$C$24:$H$45,6,0)), "", VLOOKUP($B45, '3. Rate Classes'!$C$24:$H$45,6,0)) ->  | F45: =IF(ISERROR(VLOOKUP($B45,'3. Rate Classes'!$C$24:$N$45, 11,0)), "", VLOOKUP($B45,'3. Rate Classes'!$C$24:$N$45, 11,0)) ->  | H45: =VLOOKUP('9. Adj Network to Current WS'!$B45, '4. RRR Data'!$B$27:$M$49,11,0) -> 0 | J45: =VLOOKUP('9. Adj Network to Current WS'!$B45, '4. RRR Data'!$B$27:$M$49,12,0) -> 0 | P45: =IF(ISERROR('7. Current Wholesale'!$P$117*N45), "", '7. Current Wholesale'!$P$117*N45) -> 
B46: =IF('3. Rate Classes'!Q45=1,'3. Rate Classes'!C45, 0) -> 0 | D46: =IF(ISERROR(VLOOKUP($B46, '3. Rate Classes'!$C$24:$H$45,6,0)), "", VLOOKUP($B46, '3. Rate Classes'!$C$24:$H$45,6,0)) ->  | F46: =IF(ISERROR(VLOOKUP($B46,'3. Rate Classes'!$C$24:$N$45, 11,0)), "", VLOOKUP($B46,'3. Rate Classes'!$C$24:$N$45, 11,0)) ->  | H46: =VLOOKUP('9. Adj Network to Current WS'!$B46, '4. RRR Data'!$B$27:$M$49,11,0) -> 0 | J46: =VLOOKUP('9. Adj Network to Current WS'!$B46, '4. RRR Data'!$B$27:$M$49,12,0) -> 0 | P46: =IF(ISERROR('7. Current Wholesale'!$P$117*N46), "", '7. Current Wholesale'!$P$117*N46) -> 
L49: =SUM(L25:L46) -> 933378.4961

Sheet 11. Adj Network to Forecast WS
B13: The purpose of this sheet is to update the re-align RTS Network Rates to recover forecast wholesale network costs.
B22: Rate Class | D22: Unit | F22: Adjusted RTSR-Network | H22: Loss Adjusted Billed kWh | J22: Loss Adjusted Billed kW | L22: Billed Amount | N22: Billed Amount % | P22: Forecast Wholesale Billing | R22: Proposed RTSR Network
B25: =IF('3. Rate Classes'!Q24=1,'3. Rate Classes'!C24, 0) -> Residential | D25: =IF(ISERROR(VLOOKUP($B25, '3. Rate Classes'!$C$24:$H$45,6,0)), "", VLOOKUP($B25, '3. Rate Classes'!$C$24:$H$45,6,0)) -> kWh | F25: =VLOOKUP($B25, '9. Adj Network to Current WS'!$B$25:$R$47, 17,0) -> 0.006182669476 | H25: =VLOOKUP('9. Adj Network to Current WS'!$B25, '4. RRR Data'!$B$27:$M$49,11,0) -> 84532180.05 | J25: =VLOOKUP('9. Adj Network to Current WS'!$B25, '4. RRR Data'!$B$27:$M$49,12,0) -> 0 | L25: =IF(F25="", "", IF(D25="kWh", F25*H25, F25*J25)) -> 522634.5293 | N25: =IF(ISERROR(L25/$L$49), "", L25/$L$49) -> 0.3422260389 | P25: =IF(ISERROR('8. Forecast Wholesale'!$F$113*N25), "", '8. Forecast Wholesale'!$F$113*N25) -> 410284.821 | R25: =IF(D25="","",IF(D25="kWh",IF(H25<>0,P25/H25,),IF(J25<>0,P25/J25,0))) -> 0.004853593279
B26: =IF('3. Rate Classes'!Q25=1,'3. Rate Classes'!C25, 0) -> General Service Less Than 50 kW | D26: =IF(ISERROR(VLOOKUP($B26, '3. Rate Classes'!$C$24:$H$45,6,0)), "", VLOOKUP($B26, '3. Rate Classes'!$C$24:$H$45,6,0)) -> kWh | F26: =VLOOKUP($B26, '9. Adj Network to Current WS'!$B$25:$R$47, 17,0) -> 0.005763505443 | H26: =VLOOKUP('9. Adj Network to Current WS'!$B26, '4. RRR Data'!$B$27:$M$49,11,0) -> 37640258.73 | J26: =VLOOKUP('9. Adj Network to Current WS'!$B26, '4. RRR Data'!$B$27:$M$49,12,0) -> 0 | L26: =IF(F26="", "", IF(D26="kWh", F26*H26, F26*J26)) -> 216939.8361 | N26: 0.142054259 | P26: =IF(ISERROR('8. Forecast Wholesale'!$F$113*N26), "", '8. Forecast Wholesale'!$F$113*N26) -> 170304.7097 | R26: 0.004524536108
B27: =IF('3. Rate Classes'!Q26=1,'3. Rate Classes'!C26, 0) -> General Service 50 to 4,999 kW | D27: =IF(ISERROR(VLOOKUP($B27, '3. Rate Classes'!$C$24:$H$45,6,0)), "", VLOOKUP($B27, '3. Rate Classes'!$C$24:$H$45,6,0)) -> kW | F27: =VLOOKUP($B27, '9. Adj Network to Current WS'!$B$25:$R$47, 17,0) -> 2.293875166 | H27: =VLOOKUP('9. Adj Network to Current WS'!$B27, '4. RRR Data'!$B$27:$M$49,11,0) -> 0 | J27: =VLOOKUP('9. Adj Network to Current WS'!$B27, '4. RRR Data'!$B$27:$M$49,12,0) -> 152191 | L27: 349107.1555 | N27: 0.2285986713 | P27: =IF(ISERROR('8. Forecast Wholesale'!$F$113*N27), "", '8. Forecast Wholesale'!$F$113*N27) -> 274060.2826 | R27: 1.800765371
B28: =IF('3. Rate Classes'!Q27=1,'3. Rate Classes'!C27, 0) -> General Service 50 to 999 kW - Interval Metered | D28: =IF(ISERROR(VLOOKUP($B28, '3. Rate Classes'!$C$24:$H$45,6,0)), "", VLOOKUP($B28, '3. Rate Classes'!$C$24:$H$45,6,0)) -> kW | F28: =VLOOKUP($B28, '9. Adj Network to Current WS'!$B$25:$R$47, 17,0) -> 2.433351998 | H28: =VLOOKUP('9. Adj Network to Current WS'!$B28, '4. RRR Data'!$B$27:$M$49,11,0) -> 0 | J28: =VLOOKUP('9. Adj Network to Current WS'!$B28, '4. RRR Data'!$B$27:$M$49,12,0) -> 102564 | L28: 249574.3143 | N28: 0.1634236244 | P28: =IF(ISERROR('8. Forecast Wholesale'!$F$113*N28), "", '8. Forecast Wholesale'!$F$113*N28) -> 195923.8189 | R28: 1.910259145
B29: =IF('3. Rate Classes'!Q28=1,'3. Rate Classes'!C28, 0) -> General Service 1,000 to 4,999 kW - Interval Meters | D29: =IF(ISERROR(VLOOKUP($B29, '3. Rate Classes'!$C$24:$H$45,6,0)), "", VLOOKUP($B29, '3. Rate Classes'!$C$24:$H$45,6,0)) -> kW | F29: =VLOOKUP($B29, '9. Adj Network to Current WS'!$B$25:$R$47, 17,0) -> 2.436181355 | H29: =VLOOKUP('9. Adj Network to Current WS'!$B29, '4. RRR Data'!$B$27:$M$49,11,0) -> 0 | J29: =VLOOKUP('9. Adj Network to Current WS'!$B29, '4. RRR Data'!$B$27:$M$49,12,0) -> 76096 | L29: 185383.6564 | N29: 0.1213909737 | P29: =IF(ISERROR('8. Forecast Wholesale'!$F$113*N29), "", '8. Forecast Wholesale'!$F$113*N29) -> 145532.0994 | R29: 1.912480281
B30: =IF('3. Rate Classes'!Q29=1,'3. Rate Classes'!C29, 0) -> Unmetered Scattered Load | D30: =IF(ISERROR(VLOOKUP($B30, '3. Rate Classes'!$C$24:$H$45,6,0)), "", VLOOKUP($B30, '3. Rate Classes'!$C$24:$H$45,6,0)) -> kWh | F30: =VLOOKUP($B30, '9. Adj Network to Current WS'!$B$25:$R$47, 17,0) -> 0.005763505443 | H30: =VLOOKUP('9. Adj Network to Current WS'!$B30, '4. RRR Data'!$B$27:$M$49,11,0) -> 463950.366 | J30: =VLOOKUP('9. Adj Network to Current WS'!$B30, '4. RRR Data'!$B$27:$M$49,12,0) -> 0 | L30: 2673.98046 | N30: 0.001750947727 | P30: =IF(ISERROR('8. Forecast Wholesale'!$F$113*N30), "", '8. Forecast Wholesale'!$F$113*N30) -> 2099.160183 | R30: 0.004524536108
B31: =IF('3. Rate Classes'!Q30=1,'3. Rate Classes'!C30, 0) -> Sentinel Lighting | D31: =IF(ISERROR(VLOOKUP($B31, '3. Rate Classes'!$C$24:$H$45,6,0)), "", VLOOKUP($B31, '3. Rate Classes'!$C$24:$H$45,6,0)) -> kW | F31: =VLOOKUP($B31, '9. Adj Network to Current WS'!$B$25:$R$47, 17,0) -> 1.691012497 | H31: =VLOOKUP('9. Adj Network to Current WS'!$B31, '4. RRR Data'!$B$27:$M$49,11,0) -> 0 | J31: =VLOOKUP('9. Adj Network to Current WS'!$B31, '4. RRR Data'!$B$27:$M$49,12,0) -> 31 | L31: 52.42138741 | N31: 3.432602088e-05 | P31: =IF(ISERROR('8. Forecast Wholesale'!$F$113*N31), "", '8. Forecast Wholesale'!$F$113*N31) -> 41.15246571 | R31: 1.327498894
B32: =IF('3. Rate Classes'!Q31=1,'3. Rate Classes'!C31, 0) -> Street Lighting | D32: =IF(ISERROR(VLOOKUP($B32, '3. Rate Classes'!$C$24:$H$45,6,0)), "", VLOOKUP($B32, '3. Rate Classes'!$C$24:$H$45,6,0)) -> kW | F32: =VLOOKUP($B32, '9. Adj Network to Current WS'!$B$25:$R$47, 17,0) -> 1.730204334 | H32: =VLOOKUP('9. Adj Network to Current WS'!$B32, '4. RRR Data'!$B$27:$M$49,11,0) -> 0 | J32: =VLOOKUP('9. Adj Network to Current WS'!$B32, '4. RRR Data'!$B$27:$M$49,12,0) -> 460 | L32: 795.8939937 | N32: 0.0005211589238 | P32: =IF(ISERROR('8. Forecast Wholesale'!$F$113*N32), "", '8. Forecast Wholesale'!$F$113*N32) -> 624.8022402 | R32: 1.35826574
B33: =IF('3. Rate Classes'!Q32=1,'3. Rate Classes'!C32, 0) -> 0 | D33: =IF(ISERROR(VLOOKUP($B33, '3. Rate Classes'!$C$24:$H$45,6,0)), "", VLOOKUP($B33, '3. Rate Classes'!$C$24:$H$45,6,0)) ->  | F33: =VLOOKUP($B33, '9. Adj Network to Current WS'!$B$25:$R$47, 17,0) ->  | H33: =VLOOKUP('9. Adj Network to Current WS'!$B33, '4. RRR Data'!$B$27:$M$49,11,0) -> 0 | J33: =VLOOKUP('9. Adj Network to Current WS'!$B33, '4. RRR Data'!$B$27:$M$49,12,0) -> 0 | P33: =IF(ISERROR('8. Forecast Wholesale'!$F$113*N33), "", '8. Forecast Wholesale'!$F$113*N33) -> 
B34: =IF('3. Rate Classes'!Q33=1,'3. Rate Classes'!C33, 0) -> 0 | D34: =IF(ISERROR(VLOOKUP($B34, '3. Rate Classes'!$C$24:$H$45,6,0)), "", VLOOKUP($B34, '3. Rate Classes'!$C$24:$H$45,6,0)) ->  | F34: =VLOOKUP($B34, '9. Adj Network to Current WS'!$B$25:$R$47, 17,0) ->  | H34: =VLOOKUP('9. Adj Network to Current WS'!$B34, '4. RRR Data'!$B$27:$M$49,11,0) -> 0 | J34: =VLOOKUP('9. Adj Network to Current WS'!$B34, '4. RRR Data'!$B$27:$M$49,12,0) -> 0 | P34: =IF(ISERROR('8. Forecast Wholesale'!$F$113*N34), "", '8. Forecast Wholesale'!$F$113*N34) -> 
B35: =IF('3. Rate Classes'!Q34=1,'3. Rate Classes'!C34, 0) -> 0 | D35: =IF(ISERROR(VLOOKUP($B35, '3. Rate Classes'!$C$24:$H$45,6,0)), "", VLOOKUP($B35, '3. Rate Classes'!$C$24:$H$45,6,0)) ->  | F35: =VLOOKUP($B35, '9. Adj Network to Current WS'!$B$25:$R$47, 17,0) ->  | H35: =VLOOKUP('9. Adj Network to Current WS'!$B35, '4. RRR Data'!$B$27:$M$49,11,0) -> 0 | J35: =VLOOKUP('9. Adj Network to Current WS'!$B35, '4. RRR Data'!$B$27:$M$49,12,0) -> 0 | P35: =IF(ISERROR('8. Forecast Wholesale'!$F$113*N35), "", '8. Forecast Wholesale'!$F$113*N35) -> 
B36: =IF('3. Rate Classes'!Q35=1,'3. Rate Classes'!C35, 0) -> 0 | D36: =IF(ISERROR(VLOOKUP($B36, '3. Rate Classes'!$C$24:$H$45,6,0)), "", VLOOKUP($B36, '3. Rate Classes'!$C$24:$H$45,6,0)) ->  | F36: =VLOOKUP($B36, '9. Adj Network to Current WS'!$B$25:$R$47, 17,0) ->  | H36: =VLOOKUP('9. Adj Network to Current WS'!$B36, '4. RRR Data'!$B$27:$M$49,11,0) -> 0 | J36: =VLOOKUP('9. Adj Network to Current WS'!$B36, '4. RRR Data'!$B$27:$M$49,12,0) -> 0 | P36: =IF(ISERROR('8. Forecast Wholesale'!$F$113*N36), "", '8. Forecast Wholesale'!$F$113*N36) -> 
B37: =IF('3. Rate Classes'!Q36=1,'3. Rate Classes'!C36, 0) -> 0 | D37: =IF(ISERROR(VLOOKUP($B37, '3. Rate Classes'!$C$24:$H$45,6,0)), "", VLOOKUP($B37, '3. Rate Classes'!$C$24:$H$45,6,0)) ->  | F37: =VLOOKUP($B37, '9. Adj Network to Current WS'!$B$25:$R$47, 17,0) ->  | H37: =VLOOKUP('9. Adj Network to Current WS'!$B37, '4. RRR Data'!$B$27:$M$49,11,0) -> 0 | J37: =VLOOKUP('9. Adj Network to Current WS'!$B37, '4. RRR Data'!$B$27:$M$49,12,0) -> 0 | P37: =IF(ISERROR('8. Forecast Wholesale'!$F$113*N37), "", '8. Forecast Wholesale'!$F$113*N37) -> 
B38: =IF('3. Rate Classes'!Q37=1,'3. Rate Classes'!C37, 0) -> 0 | D38: =IF(ISERROR(VLOOKUP($B38, '3. Rate Classes'!$C$24:$H$45,6,0)), "", VLOOKUP($B38, '3. Rate Classes'!$C$24:$H$45,6,0)) ->  | F38: =VLOOKUP($B38, '9. Adj Network to Current WS'!$B$25:$R$47, 17,0) ->  | H38: =VLOOKUP('9. Adj Network to Current WS'!$B38, '4. RRR Data'!$B$27:$M$49,11,0) -> 0 | J38: =VLOOKUP('9. Adj Network to Current WS'!$B38, '4. RRR Data'!$B$27:$M$49,12,0) -> 0 | P38: =IF(ISERROR('8. Forecast Wholesale'!$F$113*N38), "", '8. Forecast Wholesale'!$F$113*N38) -> 
B39: =IF('3. Rate Classes'!Q38=1,'3. Rate Classes'!C38, 0) -> 0 | D39: =IF(ISERROR(VLOOKUP($B39, '3. Rate Classes'!$C$24:$H$45,6,0)), "", VLOOKUP($B39, '3. Rate Classes'!$C$24:$H$45,6,0)) ->  | F39: =VLOOKUP($B39, '9. Adj Network to Current WS'!$B$25:$R$47, 17,0) ->  | H39: =VLOOKUP('9. Adj Network to Current WS'!$B39, '4. RRR Data'!$B$27:$M$49,11,0) -> 0 | J39: =VLOOKUP('9. Adj Network to Current WS'!$B39, '4. RRR Data'!$B$27:$M$49,12,0) -> 0 | P39: =IF(ISERROR('8. Forecast Wholesale'!$F$113*N39), "", '8. Forecast Wholesale'!$F$113*N39) -> 
B40: =IF('3. Rate Classes'!Q39=1,'3. Rate Classes'!C39, 0) -> 0 | D40: =IF(ISERROR(VLOOKUP($B40, '3. Rate Classes'!$C$24:$H$45,6,0)), "", VLOOKUP($B40, '3. Rate Classes'!$C$24:$H$45,6,0)) ->  | F40: =VLOOKUP($B40, '9. Adj Network to Current WS'!$B$25:$R$47, 17,0) ->  | H40: =VLOOKUP('9. Adj Network to Current WS'!$B40, '4. RRR Data'!$B$27:$M$49,11,0) -> 0 | J40: =VLOOKUP('9. Adj Network to Current WS'!$B40, '4. RRR Data'!$B$27:$M$49,12,0) -> 0 | P40: =IF(ISERROR('8. Forecast Wholesale'!$F$113*N40), "", '8. Forecast Wholesale'!$F$113*N40) -> 
B41: =IF('3. Rate Classes'!Q40=1,'3. Rate Classes'!C40, 0) -> 0 | D41: =IF(ISERROR(VLOOKUP($B41, '3. Rate Classes'!$C$24:$H$45,6,0)), "", VLOOKUP($B41, '3. Rate Classes'!$C$24:$H$45,6,0)) ->  | F41: =VLOOKUP($B41, '9. Adj Network to Current WS'!$B$25:$R$47, 17,0) ->  | H41: =VLOOKUP('9. Adj Network to Current WS'!$B41, '4. RRR Data'!$B$27:$M$49,11,0) -> 0 | J41: =VLOOKUP('9. Adj Network to Current WS'!$B41, '4. RRR Data'!$B$27:$M$49,12,0) -> 0 | P41: =IF(ISERROR('8. Forecast Wholesale'!$F$113*N41), "", '8. Forecast Wholesale'!$F$113*N41) -> 
B42: =IF('3. Rate Classes'!Q41=1,'3. Rate Classes'!C41, 0) -> 0 | D42: =IF(ISERROR(VLOOKUP($B42, '3. Rate Classes'!$C$24:$H$45,6,0)), "", VLOOKUP($B42, '3. Rate Classes'!$C$24:$H$45,6,0)) ->  | F42: =VLOOKUP($B42, '9. Adj Network to Current WS'!$B$25:$R$47, 17,0) ->  | H42: =VLOOKUP('9. Adj Network to Current WS'!$B42, '4. RRR Data'!$B$27:$M$49,11,0) -> 0 | J42: =VLOOKUP('9. Adj Network to Current WS'!$B42, '4. RRR Data'!$B$27:$M$49,12,0) -> 0 | P42: =IF(ISERROR('8. Forecast Wholesale'!$F$113*N42), "", '8. Forecast Wholesale'!$F$113*N42) -> 
B43: =IF('3. Rate Classes'!Q42=1,'3. Rate Classes'!C42, 0) -> 0 | D43: =IF(ISERROR(VLOOKUP($B43, '3. Rate Classes'!$C$24:$H$45,6,0)), "", VLOOKUP($B43, '3. Rate Classes'!$C$24:$H$45,6,0)) ->  | F43: =VLOOKUP($B43, '9. Adj Network to Current WS'!$B$25:$R$47, 17,0) ->  | H43: =VLOOKUP('9. Adj Network to Current WS'!$B43, '4. RRR Data'!$B$27:$M$49,11,0) -> 0 | J43: =VLOOKUP('9. Adj Network to Current WS'!$B43, '4. RRR Data'!$B$27:$M$49,12,0) -> 0 | P43: =IF(ISERROR('8. Forecast Wholesale'!$F$113*N43), "", '8. Forecast Wholesale'!$F$113*N43) -> 
B44: =IF('3. Rate Classes'!Q43=1,'3. Rate Classes'!C43, 0) -> 0 | D44: =IF(ISERROR(VLOOKUP($B44, '3. Rate Classes'!$C$24:$H$45,6,0)), "", VLOOKUP($B44, '3. Rate Classes'!$C$24:$H$45,6,0)) ->  | F44: =VLOOKUP($B44, '9. Adj Network to Current WS'!$B$25:$R$47, 17,0) ->  | H44: =VLOOKUP('9. Adj Network to Current WS'!$B44, '4. RRR Data'!$B$27:$M$49,11,0) -> 0 | J44: =VLOOKUP('9. Adj Network to Current WS'!$B44, '4. RRR Data'!$B$27:$M$49,12,0) -> 0 | P44: =IF(ISERROR('8. Forecast Wholesale'!$F$113*N44), "", '8. Forecast Wholesale'!$F$113*N44) -> 
B45: =IF('3. Rate Classes'!Q44=1,'3. Rate Classes'!C44, 0) -> 0 | D45: =IF(ISERROR(VLOOKUP($B45, '3. Rate Classes'!$C$24:$H$45,6,0)), "", VLOOKUP($B45, '3. Rate Classes'!$C$24:$H$45,6,0)) ->  | F45: =VLOOKUP($B45, '9. Adj Network to Current WS'!$B$25:$R$47, 17,0) ->  | H45: =VLOOKUP('9. Adj Network to Current WS'!$B45, '4. RRR Data'!$B$27:$M$49,11,0) -> 0 | J45: =VLOOKUP('9. Adj Network to Current WS'!$B45, '4. RRR Data'!$B$27:$M$49,12,0) -> 0 | P45: =IF(ISERROR('8. Forecast Wholesale'!$F$113*N45), "", '8. Forecast Wholesale'!$F$113*N45) -> 
B46: =IF('3. Rate Classes'!Q45=1,'3. Rate Classes'!C45, 0) -> 0 | D46: =IF(ISERROR(VLOOKUP($B46, '3. Rate Classes'!$C$24:$H$45,6,0)), "", VLOOKUP($B46, '3. Rate Classes'!$C$24:$H$45,6,0)) ->  | F46: =VLOOKUP($B46, '9. Adj Network to Current WS'!$B$25:$R$47, 17,0) ->  | H46: =VLOOKUP('9. Adj Network to Current WS'!$B46, '4. RRR Data'!$B$27:$M$49,11,0) -> 0 | J46: =VLOOKUP('9. Adj Network to Current WS'!$B46, '4. RRR Data'!$B$27:$M$49,12,0) -> 0 | P46: =IF(ISERROR('8. Forecast Wholesale'!$F$113*N46), "", '8. Forecast Wholesale'!$F$113*N46) -> 
L49: =SUM(L25:L46) -> 1527161.787

Sheet 12. Adj Conn. to Forecast WS
B13: The purpose of this sheet is to update the re-aligned RTS Connection Rates to recover forecast wholesale connection costs.
B19: Rate Class
B22: Rate Class | D22: Unit | F22: Adjusted RTSR-Connection | H22: Loss Adjusted Billed kWh | J22: Loss Adjusted Billed kW | L22: Billed Amount | N22: Billed Amount % | P22: Forecast Wholesale Billing | R22: Proposed RTSR Connection
B25: =IF('3. Rate Classes'!Q24=1,'3. Rate Classes'!C24, 0) -> Residential | D25: =IF(ISERROR(VLOOKUP($B25, '3. Rate Classes'!$C$24:$H$45,6,0)), "", VLOOKUP($B25, '3. Rate Classes'!$C$24:$H$45,6,0)) -> kWh | F25: =VLOOKUP($B25, '10. Adj Conn. to Current WS'!$B$25:$R$47, 17,0) -> 0.002860238994 | H25: =VLOOKUP('9. Adj Network to Current WS'!$B25, '4. RRR Data'!$B$27:$M$49,11,0) -> 84532180.05 | J25: =VLOOKUP('9. Adj Network to Current WS'!$B25, '4. RRR Data'!$B$27:$M$49,12,0) -> 0 | L25: =IF(F25="", "", IF(D25="kWh", F25*H25, F25*J25)) -> 241782.2377 | N25: =IF(ISERROR(L25/$L$49), "", L25/$L$49) -> 0.3441500801 | P25: =IF(ISERROR('8. Forecast Wholesale'!$P$117*N25), "", '8. Forecast Wholesale'!$P$117*N25) -> 159970.1272 | R25: =IF(D25="","",IF(D25="kWh",IF(H25<>0,P25/H25,),IF(J25<>0,P25/J25,0))) -> 0.001892416913
B26: =IF('3. Rate Classes'!Q25=1,'3. Rate Classes'!C25, 0) -> General Service Less Than 50 kW | D26: =IF(ISERROR(VLOOKUP($B26, '3. Rate Classes'!$C$24:$H$45,6,0)), "", VLOOKUP($B26, '3. Rate Classes'!$C$24:$H$45,6,0)) -> kWh | F26: =VLOOKUP($B26, '10. Adj Conn. to Current WS'!$B$25:$R$47, 17,0) -> 0.002559161205 | H26: =VLOOKUP('9. Adj Network to Current WS'!$B26, '4. RRR Data'!$B$27:$M$49,11,0) -> 37640258.73 | J26: =VLOOKUP('9. Adj Network to Current WS'!$B26, '4. RRR Data'!$B$27:$M$49,12,0) -> 0 | L26: 96327.4899 | N26: 0.1371114507 | P26: =IF(ISERROR('8. Forecast Wholesale'!$P$117*N26), "", '8. Forecast Wholesale'!$P$117*N26) -> 63733.05567 | R26: 0.001693215133
B27: =IF('3. Rate Classes'!Q26=1,'3. Rate Classes'!C26, 0) -> General Service 50 to 4,999 kW | D27: =IF(ISERROR(VLOOKUP($B27, '3. Rate Classes'!$C$24:$H$45,6,0)), "", VLOOKUP($B27, '3. Rate Classes'!$C$24:$H$45,6,0)) -> kW | F27: =VLOOKUP($B27, '10. Adj Conn. to Current WS'!$B$25:$R$47, 17,0) -> 1.039847413 | H27: =VLOOKUP('9. Adj Network to Current WS'!$B27, '4. RRR Data'!$B$27:$M$49,11,0) -> 0 | J27: =VLOOKUP('9. Adj Network to Current WS'!$B27, '4. RRR Data'!$B$27:$M$49,12,0) -> 152191 | L27: 158255.4177 | N27: 0.225258957 | P27: =IF(ISERROR('8. Forecast Wholesale'!$P$117*N27), "", '8. Forecast Wholesale'!$P$117*N27) -> 104706.3653 | R27: 0.6879931487
B28: =IF('3. Rate Classes'!Q27=1,'3. Rate Classes'!C27, 0) -> General Service 50 to 999 kW - Interval Metered | D28: =IF(ISERROR(VLOOKUP($B28, '3. Rate Classes'!$C$24:$H$45,6,0)), "", VLOOKUP($B28, '3. Rate Classes'!$C$24:$H$45,6,0)) -> kW | F28: =VLOOKUP($B28, '10. Adj Conn. to Current WS'!$B$25:$R$47, 17,0) -> 1.149138651 | H28: =VLOOKUP('9. Adj Network to Current WS'!$B28, '4. RRR Data'!$B$27:$M$49,11,0) -> 0 | J28: =VLOOKUP('9. Adj Network to Current WS'!$B28, '4. RRR Data'!$B$27:$M$49,12,0) -> 102564 | L28: 117860.2566 | N28: 0.1677609453 | P28: =IF(ISERROR('8. Forecast Wholesale'!$P$117*N28), "", '8. Forecast Wholesale'!$P$117*N28) -> 77979.7574 | R28: 0.760303395
B29: =IF('3. Rate Classes'!Q28=1,'3. Rate Classes'!C28, 0) -> General Service 1,000 to 4,999 kW - Interval Meters | D29: =IF(ISERROR(VLOOKUP($B29, '3. Rate Classes'!$C$24:$H$45,6,0)), "", VLOOKUP($B29, '3. Rate Classes'!$C$24:$H$45,6,0)) -> kW | F29: =VLOOKUP($B29, '10. Adj Conn. to Current WS'!$B$25:$R$47, 17,0) -> 1.139880509 | H29: =VLOOKUP('9. Adj Network to Current WS'!$B29, '4. RRR Data'!$B$27:$M$49,11,0) -> 0 | J29: =VLOOKUP('9. Adj Network to Current WS'!$B29, '4. RRR Data'!$B$27:$M$49,12,0) -> 76096 | L29: 86740.34719 | N29: 0.1234652211 | P29: =IF(ISERROR('8. Forecast Wholesale'!$P$117*N29), "", '8. Forecast Wholesale'!$P$117*N29) -> 57389.92454 | R29: 0.7541779402
B30: =IF('3. Rate Classes'!Q29=1,'3. Rate Classes'!C29, 0) -> Unmetered Scattered Load | D30: =IF(ISERROR(VLOOKUP($B30, '3. Rate Classes'!$C$24:$H$45,6,0)), "", VLOOKUP($B30, '3. Rate Classes'!$C$24:$H$45,6,0)) -> kWh | F30: =VLOOKUP($B30, '10. Adj Conn. to Current WS'!$B$25:$R$47, 17,0) -> 0.002559161205 | H30: =VLOOKUP('9. Adj Network to Current WS'!$B30, '4. RRR Data'!$B$27:$M$49,11,0) -> 463950.366 | J30: =VLOOKUP('9. Adj Network to Current WS'!$B30, '4. RRR Data'!$B$27:$M$49,12,0) -> 0 | L30: 1187.323778 | N30: 0.001690023127 | P30: =IF(ISERROR('8. Forecast Wholesale'!$P$117*N30), "", '8. Forecast Wholesale'!$P$117*N30) -> 785.5677805 | R30: 0.001693215133
B31: =IF('3. Rate Classes'!Q30=1,'3. Rate Classes'!C30, 0) -> Sentinel Lighting | D31: =IF(ISERROR(VLOOKUP($B31, '3. Rate Classes'!$C$24:$H$45,6,0)), "", VLOOKUP($B31, '3. Rate Classes'!$C$24:$H$45,6,0)) -> kW | F31: =VLOOKUP($B31, '10. Adj Conn. to Current WS'!$B$25:$R$47, 17,0) -> 0.8402328393 | H31: =VLOOKUP('9. Adj Network to Current WS'!$B31, '4. RRR Data'!$B$27:$M$49,11,0) -> 0 | J31: =VLOOKUP('9. Adj Network to Current WS'!$B31, '4. RRR Data'!$B$27:$M$49,12,0) -> 31 | L31: 26.04721802 | N31: 3.707531312e-05 | P31: =IF(ISERROR('8. Forecast Wholesale'!$P$117*N31), "", '8. Forecast Wholesale'!$P$117*N31) -> 17.23359342 | R31: 0.5559223684
B32: =IF('3. Rate Classes'!Q31=1,'3. Rate Classes'!C31, 0) -> Street Lighting | D32: =IF(ISERROR(VLOOKUP($B32, '3. Rate Classes'!$C$24:$H$45,6,0)), "", VLOOKUP($B32, '3. Rate Classes'!$C$24:$H$45,6,0)) -> kW | F32: =VLOOKUP($B32, '10. Adj Conn. to Current WS'!$B$25:$R$47, 17,0) -> 0.8037271574 | H32: =VLOOKUP('9. Adj Network to Current WS'!$B32, '4. RRR Data'!$B$27:$M$49,11,0) -> 0 | J32: =VLOOKUP('9. Adj Network to Current WS'!$B32, '4. RRR Data'!$B$27:$M$49,12,0) -> 460 | L32: 369.7144924 | N32: 0.0005262473927 | P32: =IF(ISERROR('8. Forecast Wholesale'!$P$117*N32), "", '8. Forecast Wholesale'!$P$117*N32) -> 244.6138102 | R32: 0.5317691525
B33: =IF('3. Rate Classes'!Q32=1,'3. Rate Classes'!C32, 0) -> 0 | D33: =IF(ISERROR(VLOOKUP($B33, '3. Rate Classes'!$C$24:$H$45,6,0)), "", VLOOKUP($B33, '3. Rate Classes'!$C$24:$H$45,6,0)) ->  | F33: =VLOOKUP($B33, '10. Adj Conn. to Current WS'!$B$25:$R$47, 17,0) ->  | H33: =VLOOKUP('9. Adj Network to Current WS'!$B33, '4. RRR Data'!$B$27:$M$49,11,0) -> 0 | J33: =VLOOKUP('9. Adj Network to Current WS'!$B33, '4. RRR Data'!$B$27:$M$49,12,0) -> 0 | P33: =IF(ISERROR('8. Forecast Wholesale'!$P$117*N33), "", '8. Forecast Wholesale'!$P$117*N33) -> 
B34: =IF('3. Rate Classes'!Q33=1,'3. Rate Classes'!C33, 0) -> 0 | D34: =IF(ISERROR(VLOOKUP($B34, '3. Rate Classes'!$C$24:$H$45,6,0)), "", VLOOKUP($B34, '3. Rate Classes'!$C$24:$H$45,6,0)) ->  | F34: =VLOOKUP($B34, '10. Adj Conn. to Current WS'!$B$25:$R$47, 17,0) ->  | H34: =VLOOKUP('9. Adj Network to Current WS'!$B34, '4. RRR Data'!$B$27:$M$49,11,0) -> 0 | J34: =VLOOKUP('9. Adj Network to Current WS'!$B34, '4. RRR Data'!$B$27:$M$49,12,0) -> 0 | P34: =IF(ISERROR('8. Forecast Wholesale'!$P$117*N34), "", '8. Forecast Wholesale'!$P$117*N34) -> 
B35: =IF('3. Rate Classes'!Q34=1,'3. Rate Classes'!C34, 0) -> 0 | D35: =IF(ISERROR(VLOOKUP($B35, '3. Rate Classes'!$C$24:$H$45,6,0)), "", VLOOKUP($B35, '3. Rate Classes'!$C$24:$H$45,6,0)) ->  | F35: =VLOOKUP($B35, '10. Adj Conn. to Current WS'!$B$25:$R$47, 17,0) ->  | H35: =VLOOKUP('9. Adj Network to Current WS'!$B35, '4. RRR Data'!$B$27:$M$49,11,0) -> 0 | J35: =VLOOKUP('9. Adj Network to Current WS'!$B35, '4. RRR Data'!$B$27:$M$49,12,0) -> 0 | P35: =IF(ISERROR('8. Forecast Wholesale'!$P$117*N35), "", '8. Forecast Wholesale'!$P$117*N35) -> 
B36: =IF('3. Rate Classes'!Q35=1,'3. Rate Classes'!C35, 0) -> 0 | D36: =IF(ISERROR(VLOOKUP($B36, '3. Rate Classes'!$C$24:$H$45,6,0)), "", VLOOKUP($B36, '3. Rate Classes'!$C$24:$H$45,6,0)) ->  | F36: =VLOOKUP($B36, '10. Adj Conn. to Current WS'!$B$25:$R$47, 17,0) ->  | H36: =VLOOKUP('9. Adj Network to Current WS'!$B36, '4. RRR Data'!$B$27:$M$49,11,0) -> 0 | J36: =VLOOKUP('9. Adj Network to Current WS'!$B36, '4. RRR Data'!$B$27:$M$49,12,0) -> 0 | P36: =IF(ISERROR('8. Forecast Wholesale'!$P$117*N36), "", '8. Forecast Wholesale'!$P$117*N36) -> 
B37: =IF('3. Rate Classes'!Q36=1,'3. Rate Classes'!C36, 0) -> 0 | D37: =IF(ISERROR(VLOOKUP($B37, '3. Rate Classes'!$C$24:$H$45,6,0)), "", VLOOKUP($B37, '3. Rate Classes'!$C$24:$H$45,6,0)) ->  | F37: =VLOOKUP($B37, '10. Adj Conn. to Current WS'!$B$25:$R$47, 17,0) ->  | H37: =VLOOKUP('9. Adj Network to Current WS'!$B37, '4. RRR Data'!$B$27:$M$49,11,0) -> 0 | J37: =VLOOKUP('9. Adj Network to Current WS'!$B37, '4. RRR Data'!$B$27:$M$49,12,0) -> 0 | P37: =IF(ISERROR('8. Forecast Wholesale'!$P$117*N37), "", '8. Forecast Wholesale'!$P$117*N37) -> 
B38: =IF('3. Rate Classes'!Q37=1,'3. Rate Classes'!C37, 0) -> 0 | D38: =IF(ISERROR(VLOOKUP($B38, '3. Rate Classes'!$C$24:$H$45,6,0)), "", VLOOKUP($B38, '3. Rate Classes'!$C$24:$H$45,6,0)) ->  | F38: =VLOOKUP($B38, '10. Adj Conn. to Current WS'!$B$25:$R$47, 17,0) ->  | H38: =VLOOKUP('9. Adj Network to Current WS'!$B38, '4. RRR Data'!$B$27:$M$49,11,0) -> 0 | J38: =VLOOKUP('9. Adj Network to Current WS'!$B38, '4. RRR Data'!$B$27:$M$49,12,0) -> 0 | P38: =IF(ISERROR('8. Forecast Wholesale'!$P$117*N38), "", '8. Forecast Wholesale'!$P$117*N38) -> 
B39: =IF('3. Rate Classes'!Q38=1,'3. Rate Classes'!C38, 0) -> 0 | D39: =IF(ISERROR(VLOOKUP($B39, '3. Rate Classes'!$C$24:$H$45,6,0)), "", VLOOKUP($B39, '3. Rate Classes'!$C$24:$H$45,6,0)) ->  | F39: =VLOOKUP($B39, '10. Adj Conn. to Current WS'!$B$25:$R$47, 17,0) ->  | H39: =VLOOKUP('9. Adj Network to Current WS'!$B39, '4. RRR Data'!$B$27:$M$49,11,0) -> 0 | J39: =VLOOKUP('9. Adj Network to Current WS'!$B39, '4. RRR Data'!$B$27:$M$49,12,0) -> 0 | P39: =IF(ISERROR('8. Forecast Wholesale'!$P$117*N39), "", '8. Forecast Wholesale'!$P$117*N39) -> 
B40: =IF('3. Rate Classes'!Q39=1,'3. Rate Classes'!C39, 0) -> 0 | D40: =IF(ISERROR(VLOOKUP($B40, '3. Rate Classes'!$C$24:$H$45,6,0)), "", VLOOKUP($B40, '3. Rate Classes'!$C$24:$H$45,6,0)) ->  | F40: =VLOOKUP($B40, '10. Adj Conn. to Current WS'!$B$25:$R$47, 17,0) ->  | H40: =VLOOKUP('9. Adj Network to Current WS'!$B40, '4. RRR Data'!$B$27:$M$49,11,0) -> 0 | J40: =VLOOKUP('9. Adj Network to Current WS'!$B40, '4. RRR Data'!$B$27:$M$49,12,0) -> 0 | P40: =IF(ISERROR('8. Forecast Wholesale'!$P$117*N40), "", '8. Forecast Wholesale'!$P$117*N40) -> 
B41: =IF('3. Rate Classes'!Q40=1,'3. Rate Classes'!C40, 0) -> 0 | D41: =IF(ISERROR(VLOOKUP($B41, '3. Rate Classes'!$C$24:$H$45,6,0)), "", VLOOKUP($B41, '3. Rate Classes'!$C$24:$H$45,6,0)) ->  | F41: =VLOOKUP($B41, '10. Adj Conn. to Current WS'!$B$25:$R$47, 17,0) ->  | H41: =VLOOKUP('9. Adj Network to Current WS'!$B41, '4. RRR Data'!$B$27:$M$49,11,0) -> 0 | J41: =VLOOKUP('9. Adj Network to Current WS'!$B41, '4. RRR Data'!$B$27:$M$49,12,0) -> 0 | P41: =IF(ISERROR('8. Forecast Wholesale'!$P$117*N41), "", '8. Forecast Wholesale'!$P$117*N41) -> 
B42: =IF('3. Rate Classes'!Q41=1,'3. Rate Classes'!C41, 0) -> 0 | D42: =IF(ISERROR(VLOOKUP($B42, '3. Rate Classes'!$C$24:$H$45,6,0)), "", VLOOKUP($B42, '3. Rate Classes'!$C$24:$H$45,6,0)) ->  | F42: =VLOOKUP($B42, '10. Adj Conn. to Current WS'!$B$25:$R$47, 17,0) ->  | H42: =VLOOKUP('9. Adj Network to Current WS'!$B42, '4. RRR Data'!$B$27:$M$49,11,0) -> 0 | J42: =VLOOKUP('9. Adj Network to Current WS'!$B42, '4. RRR Data'!$B$27:$M$49,12,0) -> 0 | P42: =IF(ISERROR('8. Forecast Wholesale'!$P$117*N42), "", '8. Forecast Wholesale'!$P$117*N42) -> 
B43: =IF('3. Rate Classes'!Q42=1,'3. Rate Classes'!C42, 0) -> 0 | D43: =IF(ISERROR(VLOOKUP($B43, '3. Rate Classes'!$C$24:$H$45,6,0)), "", VLOOKUP($B43, '3. Rate Classes'!$C$24:$H$45,6,0)) ->  | F43: =VLOOKUP($B43, '10. Adj Conn. to Current WS'!$B$25:$R$47, 17,0) ->  | H43: =VLOOKUP('9. Adj Network to Current WS'!$B43, '4. RRR Data'!$B$27:$M$49,11,0) -> 0 | J43: =VLOOKUP('9. Adj Network to Current WS'!$B43, '4. RRR Data'!$B$27:$M$49,12,0) -> 0 | P43: =IF(ISERROR('8. Forecast Wholesale'!$P$117*N43), "", '8. Forecast Wholesale'!$P$117*N43) -> 
B44: =IF('3. Rate Classes'!Q43=1,'3. Rate Classes'!C43, 0) -> 0 | D44: =IF(ISERROR(VLOOKUP($B44, '3. Rate Classes'!$C$24:$H$45,6,0)), "", VLOOKUP($B44, '3. Rate Classes'!$C$24:$H$45,6,0)) ->  | F44: =VLOOKUP($B44, '10. Adj Conn. to Current WS'!$B$25:$R$47, 17,0) ->  | H44: =VLOOKUP('9. Adj Network to Current WS'!$B44, '4. RRR Data'!$B$27:$M$49,11,0) -> 0 | J44: =VLOOKUP('9. Adj Network to Current WS'!$B44, '4. RRR Data'!$B$27:$M$49,12,0) -> 0 | P44: =IF(ISERROR('8. Forecast Wholesale'!$P$117*N44), "", '8. Forecast Wholesale'!$P$117*N44) -> 
B45: =IF('3. Rate Classes'!Q44=1,'3. Rate Classes'!C44, 0) -> 0 | D45: =IF(ISERROR(VLOOKUP($B45, '3. Rate Classes'!$C$24:$H$45,6,0)), "", VLOOKUP($B45, '3. Rate Classes'!$C$24:$H$45,6,0)) ->  | F45: =VLOOKUP($B45, '10. Adj Conn. to Current WS'!$B$25:$R$47, 17,0) ->  | H45: =VLOOKUP('9. Adj Network to Current WS'!$B45, '4. RRR Data'!$B$27:$M$49,11,0) -> 0 | J45: =VLOOKUP('9. Adj Network to Current WS'!$B45, '4. RRR Data'!$B$27:$M$49,12,0) -> 0 | P45: =IF(ISERROR('8. Forecast Wholesale'!$P$117*N45), "", '8. Forecast Wholesale'!$P$117*N45) -> 
B46: =IF('3. Rate Classes'!Q45=1,'3. Rate Classes'!C45, 0) -> 0 | D46: =IF(ISERROR(VLOOKUP($B46, '3. Rate Classes'!$C$24:$H$45,6,0)), "", VLOOKUP($B46, '3. Rate Classes'!$C$24:$H$45,6,0)) ->  | F46: =VLOOKUP($B46, '10. Adj Conn. to Current WS'!$B$25:$R$47, 17,0) ->  | H46: =VLOOKUP('9. Adj Network to Current WS'!$B46, '4. RRR Data'!$B$27:$M$49,11,0) -> 0 | J46: =VLOOKUP('9. Adj Network to Current WS'!$B46, '4. RRR Data'!$B$27:$M$49,12,0) -> 0 | P46: =IF(ISERROR('8. Forecast Wholesale'!$P$117*N46), "", '8. Forecast Wholesale'!$P$117*N46) -> 
L49: =SUM(L25:L46) -> 702548.8345

Sheet 13. Final 2014 RTS Rates
B13: For Cost of Service Applicants, please enter the following Proposed RTS rates into your rates model. For IRM applicants, please enter these rates into the 2013 IRM Rate Generator, Sheet 11 "Proposed Rates", column I. Please note that the rate descriptions for the RTSRs are transfered automatically from Sheet 4 to Sheet 11, Column A.
B23: Rate Class | D23: Unit | F23: Proposed RTSR Network | H23: Proposed RTSR Connection
B26: =IF('3. Rate Classes'!Q24=1,'3. Rate Classes'!C24, 0) -> Residential | D26: =IF(ISERROR(VLOOKUP($B26, '3. Rate Classes'!$C$24:$H$45,6,0)), "", VLOOKUP($B26, '3. Rate Classes'!$C$24:$H$45,6,0)) -> kWh | F26: =VLOOKUP($B26, '11. Adj Network to Forecast WS'!$B$25:$R$48,17,0) -> 0.004853593279 | H26: =VLOOKUP($B26, '12. Adj Conn. to Forecast WS'!$B$25:$R$48,17,0) -> 0.001892416913
B27: =IF('3. Rate Classes'!Q25=1,'3. Rate Classes'!C25, 0) -> General Service Less Than 50 kW | D27: =IF(ISERROR(VLOOKUP($B27, '3. Rate Classes'!$C$24:$H$45,6,0)), "", VLOOKUP($B27, '3. Rate Classes'!$C$24:$H$45,6,0)) -> kWh | F27: =VLOOKUP($B27, '11. Adj Network to Forecast WS'!$B$25:$R$48,17,0) -> 0.004524536108 | H27: =VLOOKUP($B27, '12. Adj Conn. to Forecast WS'!$B$25:$R$48,17,0) -> 0.001693215133
B28: =IF('3. Rate Classes'!Q26=1,'3. Rate Classes'!C26, 0) -> General Service 50 to 4,999 kW | D28: =IF(ISERROR(VLOOKUP($B28, '3. Rate Classes'!$C$24:$H$45,6,0)), "", VLOOKUP($B28, '3. Rate Classes'!$C$24:$H$45,6,0)) -> kW | F28: =VLOOKUP($B28, '11. Adj Network to Forecast WS'!$B$25:$R$48,17,0) -> 1.800765371 | H28: =VLOOKUP($B28, '12. Adj Conn. to Forecast WS'!$B$25:$R$48,17,0) -> 0.6879931487
B29: =IF('3. Rate Classes'!Q27=1,'3. Rate Classes'!C27, 0) -> General Service 50 to 999 kW - Interval Metered | D29: =IF(ISERROR(VLOOKUP($B29, '3. Rate Classes'!$C$24:$H$45,6,0)), "", VLOOKUP($B29, '3. Rate Classes'!$C$24:$H$45,6,0)) -> kW | F29: =VLOOKUP($B29, '11. Adj Network to Forecast WS'!$B$25:$R$48,17,0) -> 1.910259145 | H29: =VLOOKUP($B29, '12. Adj Conn. to Forecast WS'!$B$25:$R$48,17,0) -> 0.760303395
B30: =IF('3. Rate Classes'!Q28=1,'3. Rate Classes'!C28, 0) -> General Service 1,000 to 4,999 kW - Interval Meters | D30: =IF(ISERROR(VLOOKUP($B30, '3. Rate Classes'!$C$24:$H$45,6,0)), "", VLOOKUP($B30, '3. Rate Classes'!$C$24:$H$45,6,0)) -> kW | F30: =VLOOKUP($B30, '11. Adj Network to Forecast WS'!$B$25:$R$48,17,0) -> 1.912480281 | H30: =VLOOKUP($B30, '12. Adj Conn. to Forecast WS'!$B$25:$R$48,17,0) -> 0.7541779402
B31: =IF('3. Rate Classes'!Q29=1,'3. Rate Classes'!C29, 0) -> Unmetered Scattered Load | D31: =IF(ISERROR(VLOOKUP($B31, '3. Rate Classes'!$C$24:$H$45,6,0)), "", VLOOKUP($B31, '3. Rate Classes'!$C$24:$H$45,6,0)) -> kWh | F31: =VLOOKUP($B31, '11. Adj Network to Forecast WS'!$B$25:$R$48,17,0) -> 0.004524536108 | H31: =VLOOKUP($B31, '12. Adj Conn. to Forecast WS'!$B$25:$R$48,17,0) -> 0.001693215133
B32: =IF('3. Rate Classes'!Q30=1,'3. Rate Classes'!C30, 0) -> Sentinel Lighting | D32: =IF(ISERROR(VLOOKUP($B32, '3. Rate Classes'!$C$24:$H$45,6,0)), "", VLOOKUP($B32, '3. Rate Classes'!$C$24:$H$45,6,0)) -> kW | F32: =VLOOKUP($B32, '11. Adj Network to Forecast WS'!$B$25:$R$48,17,0) -> 1.327498894 | H32: =VLOOKUP($B32, '12. Adj Conn. to Forecast WS'!$B$25:$R$48,17,0) -> 0.5559223684
B33: =IF('3. Rate Classes'!Q31=1,'3. Rate Classes'!C31, 0) -> Street Lighting | D33: =IF(ISERROR(VLOOKUP($B33, '3. Rate Classes'!$C$24:$H$45,6,0)), "", VLOOKUP($B33, '3. Rate Classes'!$C$24:$H$45,6,0)) -> kW | F33: =VLOOKUP($B33, '11. Adj Network to Forecast WS'!$B$25:$R$48,17,0) -> 1.35826574 | H33: =VLOOKUP($B33, '12. Adj Conn. to Forecast WS'!$B$25:$R$48,17,0) -> 0.5317691525
B34: =IF('3. Rate Classes'!Q32=1,'3. Rate Classes'!C32, 0) -> 0 | D34: =IF(ISERROR(VLOOKUP($B34, '3. Rate Classes'!$C$24:$H$45,6,0)), "", VLOOKUP($B34, '3. Rate Classes'!$C$24:$H$45,6,0)) ->  | F34: =VLOOKUP($B34, '11. Adj Network to Forecast WS'!$B$25:$R$48,17,0) ->  | H34: =VLOOKUP($B34, '12. Adj Conn. to Forecast WS'!$B$25:$R$48,17,0) -> 
B35: =IF('3. Rate Classes'!Q33=1,'3. Rate Classes'!C33, 0) -> 0 | D35: =IF(ISERROR(VLOOKUP($B35, '3. Rate Classes'!$C$24:$H$45,6,0)), "", VLOOKUP($B35, '3. Rate Classes'!$C$24:$H$45,6,0)) ->  | F35: =VLOOKUP($B35, '11. Adj Network to Forecast WS'!$B$25:$R$48,17,0) ->  | H35: =VLOOKUP($B35, '12. Adj Conn. to Forecast WS'!$B$25:$R$48,17,0) -> 
B36: =IF('3. Rate Classes'!Q34=1,'3. Rate Classes'!C34, 0) -> 0 | D36: =IF(ISERROR(VLOOKUP($B36, '3. Rate Classes'!$C$24:$H$45,6,0)), "", VLOOKUP($B36, '3. Rate Classes'!$C$24:$H$45,6,0)) ->  | F36: =VLOOKUP($B36, '11. Adj Network to Forecast WS'!$B$25:$R$48,17,0) ->  | H36: =VLOOKUP($B36, '12. Adj Conn. to Forecast WS'!$B$25:$R$48,17,0) -> 
B37: =IF('3. Rate Classes'!Q35=1,'3. Rate Classes'!C35, 0) -> 0 | D37: =IF(ISERROR(VLOOKUP($B37, '3. Rate Classes'!$C$24:$H$45,6,0)), "", VLOOKUP($B37, '3. Rate Classes'!$C$24:$H$45,6,0)) ->  | F37: =VLOOKUP($B37, '11. Adj Network to Forecast WS'!$B$25:$R$48,17,0) ->  | H37: =VLOOKUP($B37, '12. Adj Conn. to Forecast WS'!$B$25:$R$48,17,0) -> 
B38: =IF('3. Rate Classes'!Q36=1,'3. Rate Classes'!C36, 0) -> 0 | D38: =IF(ISERROR(VLOOKUP($B38, '3. Rate Classes'!$C$24:$H$45,6,0)), "", VLOOKUP($B38, '3. Rate Classes'!$C$24:$H$45,6,0)) ->  | F38: =VLOOKUP($B38, '11. Adj Network to Forecast WS'!$B$25:$R$48,17,0) ->  | H38: =VLOOKUP($B38, '12. Adj Conn. to Forecast WS'!$B$25:$R$48,17,0) -> 
B39: =IF('3. Rate Classes'!Q37=1,'3. Rate Classes'!C37, 0) -> 0 | D39: =IF(ISERROR(VLOOKUP($B39, '3. Rate Classes'!$C$24:$H$45,6,0)), "", VLOOKUP($B39, '3. Rate Classes'!$C$24:$H$45,6,0)) ->  | F39: =VLOOKUP($B39, '11. Adj Network to Forecast WS'!$B$25:$R$48,17,0) ->  | H39: =VLOOKUP($B39, '12. Adj Conn. to Forecast WS'!$B$25:$R$48,17,0) -> 
B40: =IF('3. Rate Classes'!Q38=1,'3. Rate Classes'!C38, 0) -> 0 | D40: =IF(ISERROR(VLOOKUP($B40, '3. Rate Classes'!$C$24:$H$45,6,0)), "", VLOOKUP($B40, '3. Rate Classes'!$C$24:$H$45,6,0)) ->  | F40: =VLOOKUP($B40, '11. Adj Network to Forecast WS'!$B$25:$R$48,17,0) ->  | H40: =VLOOKUP($B40, '12. Adj Conn. to Forecast WS'!$B$25:$R$48,17,0) -> 
B41: =IF('3. Rate Classes'!Q39=1,'3. Rate Classes'!C39, 0) -> 0 | D41: =IF(ISERROR(VLOOKUP($B41, '3. Rate Classes'!$C$24:$H$45,6,0)), "", VLOOKUP($B41, '3. Rate Classes'!$C$24:$H$45,6,0)) ->  | F41: =VLOOKUP($B41, '11. Adj Network to Forecast WS'!$B$25:$R$48,17,0) ->  | H41: =VLOOKUP($B41, '12. Adj Conn. to Forecast WS'!$B$25:$R$48,17,0) -> 
B42: =IF('3. Rate Classes'!Q40=1,'3. Rate Classes'!C40, 0) -> 0 | D42: =IF(ISERROR(VLOOKUP($B42, '3. Rate Classes'!$C$24:$H$45,6,0)), "", VLOOKUP($B42, '3. Rate Classes'!$C$24:$H$45,6,0)) ->  | F42: =VLOOKUP($B42, '11. Adj Network to Forecast WS'!$B$25:$R$48,17,0) ->  | H42: =VLOOKUP($B42, '12. Adj Conn. to Forecast WS'!$B$25:$R$48,17,0) -> 
B43: =IF('3. Rate Classes'!Q41=1,'3. Rate Classes'!C41, 0) -> 0 | D43: =IF(ISERROR(VLOOKUP($B43, '3. Rate Classes'!$C$24:$H$45,6,0)), "", VLOOKUP($B43, '3. Rate Classes'!$C$24:$H$45,6,0)) ->  | F43: =VLOOKUP($B43, '11. Adj Network to Forecast WS'!$B$25:$R$48,17,0) ->  | H43: =VLOOKUP($B43, '12. Adj Conn. to Forecast WS'!$B$25:$R$48,17,0) -> 
B44: =IF('3. Rate Classes'!Q42=1,'3. Rate Classes'!C42, 0) -> 0 | D44: =IF(ISERROR(VLOOKUP($B44, '3. Rate Classes'!$C$24:$H$45,6,0)), "", VLOOKUP($B44, '3. Rate Classes'!$C$24:$H$45,6,0)) ->  | F44: =VLOOKUP($B44, '11. Adj Network to Forecast WS'!$B$25:$R$48,17,0) ->  | H44: =VLOOKUP($B44, '12. Adj Conn. to Forecast WS'!$B$25:$R$48,17,0) -> 
B45: =IF('3. Rate Classes'!Q43=1,'3. Rate Classes'!C43, 0) -> 0 | D45: =IF(ISERROR(VLOOKUP($B45, '3. Rate Classes'!$C$24:$H$45,6,0)), "", VLOOKUP($B45, '3. Rate Classes'!$C$24:$H$45,6,0)) ->  | F45: =VLOOKUP($B45, '11. Adj Network to Forecast WS'!$B$25:$R$48,17,0) ->  | H45: =VLOOKUP($B45, '12. Adj Conn. to Forecast WS'!$B$25:$R$48,17,0) -> 
B46: =IF('3. Rate Classes'!Q44=1,'3. Rate Classes'!C44, 0) -> 0 | D46: =IF(ISERROR(VLOOKUP($B46, '3. Rate Classes'!$C$24:$H$45,6,0)), "", VLOOKUP($B46, '3. Rate Classes'!$C$24:$H$45,6,0)) ->  | F46: =VLOOKUP($B46, '11. Adj Network to Forecast WS'!$B$25:$R$48,17,0) ->  | H46: =VLOOKUP($B46, '12. Adj Conn. to Forecast WS'!$B$25:$R$48,17,0) -> 
B47: =IF('3. Rate Classes'!Q45=1,'3. Rate Classes'!C45, 0) -> 0 | D47: =IF(ISERROR(VLOOKUP($B47, '3. Rate Classes'!$C$24:$H$45,6,0)), "", VLOOKUP($B47, '3. Rate Classes'!$C$24:$H$45,6,0)) ->  | F47: =VLOOKUP($B47, '11. Adj Network to Forecast WS'!$B$25:$R$48,17,0) ->  | H47: =VLOOKUP($B47, '12. Adj Conn. to Forecast WS'!$B$25:$R$48,17,0) -> 

Sheet hidden1 (hidden)
A1: =IF('3. Rate Classes'!Q24=1, '3. Rate Classes'!C24, "") -> Residential | B1: 1
A2: =IF('3. Rate Classes'!Q25=1, '3. Rate Classes'!C25, "") -> General Service Less Than 50 kW | B2: 2
A3: =IF('3. Rate Classes'!Q26=1, '3. Rate Classes'!C26, "") -> General Service 50 to 4,999 kW | B3: 3
A4: =IF('3. Rate Classes'!Q27=1, '3. Rate Classes'!C27, "") -> General Service 50 to 999 kW - Interval Metered | B4: 4
A5: =IF('3. Rate Classes'!Q28=1, '3. Rate Classes'!C28, "") -> General Service 1,000 to 4,999 kW - Interval Meters | B5: 5
A6: =IF('3. Rate Classes'!Q29=1, '3. Rate Classes'!C29, "") -> Unmetered Scattered Load | B6: 6
A7: =IF('3. Rate Classes'!Q30=1, '3. Rate Classes'!C30, "") -> Sentinel Lighting | B7: 7
A8: =IF('3. Rate Classes'!Q31=1, '3. Rate Classes'!C31, "") -> Street Lighting | B8: 8
A9: =IF('3. Rate Classes'!Q32=1, '3. Rate Classes'!C32, "") ->  | B9: 9
A10: =IF('3. Rate Classes'!Q33=1, '3. Rate Classes'!C33, "") ->  | B10: 10
A11: =IF('3. Rate Classes'!Q34=1, '3. Rate Classes'!C34, "") ->  | B11: 11
A12: =IF('3. Rate Classes'!Q35=1, '3. Rate Classes'!C35, "") ->  | B12: 12
A13: =IF('3. Rate Classes'!Q36=1, '3. Rate Classes'!C36, "") ->  | B13: 13
A14: =IF('3. Rate Classes'!Q37=1, '3. Rate Classes'!C37, "") ->  | B14: 14
A15: =IF('3. Rate Classes'!Q38=1, '3. Rate Classes'!C38, "") ->  | B15: 15
A16: =IF('3. Rate Classes'!Q39=1, '3. Rate Classes'!C39, "") ->  | B16: 16
A17: =IF('3. Rate Classes'!Q40=1, '3. Rate Classes'!C40, "") ->  | B17: 17
A18: =IF('3. Rate Classes'!Q41=1, '3. Rate Classes'!C41, "") ->  | B18: 18
A19: =IF('3. Rate Classes'!Q42=1, '3. Rate Classes'!C42, "") ->  | B19: 19
A20: =IF('3. Rate Classes'!Q43=1, '3. Rate Classes'!C43, "") ->  | B20: 20
A21: =IF('3. Rate Classes'!Q44=1, '3. Rate Classes'!C44, "") ->  | B21: 21
A22: =IF('3. Rate Classes'!Q45=1, '3. Rate Classes'!C45, "") ->  | B22: 22
